Invoice_Payment_Date,Org_Level_2_Desc,Supplier_Name,Nominal_Desc,Invoice_Line_Net_Amount,Internal_Category_Code
04/01/2016,HUMAN RESOURCES AND ORGANISATIONAL DEVELOPMENT,Matrix SCM Ltd,AGENCY STAFF,"571,910.34",Human Resources.Temporary & Agency Staff.NA
04/01/2016,CAPITAL CC,Igloo Regeneration Ltd,"MAINTENANCE - EQUIPMENT, FURNITURE AND MATERIALS","270,607.00","Works - Construction, Repair & Maint.Roads.Reconstruction & Resurfacing"
04/01/2016,ADULT SOCIAL CARE,Sanctuary Care Ltd,DOMICILIARY CARE - THIRD PARTY,"23,740.02",Social Community Care Supplies & Service.Adult.Residential Care
04/01/2016,CHILDREN'S SERVICES,Miles & Partners Solicitors,LEGAL FEES,"12,000.00",Legal Services.Advocacy.NA
04/01/2016,EDUCATION & LEARNING,Healthcare & Transport Services,CLIENT TRANSPORT,"10,666.64",Public Transport.Taxi Services.NA
04/01/2016,ADULT SOCIAL CARE,Sanctuary Care Ltd,DOMICILIARY CARE - THIRD PARTY,"7,668.37",Social Community Care Supplies & Service.Adult.Residential Care
04/01/2016,CORPORATE AFFAIRS,Law Absolute Ltd,LEGAL FEES,"7,216.13",Legal Services.General Support.NA
04/01/2016,HOUSING MANAGEMENT SERVICES,Echelon Consultancy Ltd,CONSULTANCY FEES,"6,733.35",Consultancy.Procurement.NA
04/01/2016,HOUSING MANAGEMENT SERVICES,Echelon Consultancy Ltd,CONSULTANCY FEES,"5,462.25",Consultancy.Procurement.NA
04/01/2016,CAPITAL CC,Euro Contracts (London) Ltd,GRANTS AND CONTRIBUTIONS,"3,419.12",Financial Services.Grants.NA
04/01/2016,HOUSING MANAGEMENT SERVICES,Echelon Consultancy Ltd,CONSULTANCY FEES,"3,366.68",Consultancy.Procurement.NA
04/01/2016,EDUCATION & LEARNING,Quality Counts Consultancy,PROFESSIONAL SERVICES - GENERAL,"3,279.10",Education.Adult & Further Education Services.NA
04/01/2016,CHILDREN'S SERVICES,National Fostering Agency,IN HOUSE FOSTER CARE PLACEMENTS - PRIVATE CONTRACTORS PAYMENT,"3,255.00",Social Community Care Supplies & Service.Children.Fostering
04/01/2016,CHILDREN'S SERVICES,National Fostering Agency,IN HOUSE FOSTER CARE PLACEMENTS - PRIVATE CONTRACTORS PAYMENT,"3,150.00",Social Community Care Supplies & Service.Children.Fostering
04/01/2016,"STRATEGY & COMMISSIONING - CHILDREN, DISABILITIES & PUBLIC HEALTH",Westbury Chemist,PAYMENT TO HEALTH AUTHORITIES,"2,769.99",Healthcare.Public Health.NA
04/01/2016,"STRATEGY & COMMISSIONING - CHILDREN, DISABILITIES & PUBLIC HEALTH",Sanctuary Care Ltd,PRIVATE CONTRACTORS PAYMENT - OTHER,"2,766.24",Social Community Care Supplies & Service.Adult.Residential Care
04/01/2016,"REGENERATION, PLANNING & NEIGHBOURHOODS",Oval Events Ltd,PREMISES HIRE - FACILITIES,"2,363.00",Facilities & Management Services.Room Hire.NA
04/01/2016,CHILDREN'S SERVICES,The Aim Project,STAFF DEVELOPMENT AND TRAINING,"2,213.15",Human Resources.Training & Conferences.Training
04/01/2016,BUSINESS & CUSTOMER SERVICES,Bristish Dyslexia Association,PRIVATE CONTRACTORS PAYMENT - OTHER,"2,100.00",Social Community Care Supplies & Service.Adult.Advice & Counselling Services
04/01/2016,ADULT SOCIAL CARE,Sanctuary Care Ltd,DOMICILIARY CARE - THIRD PARTY,"1,935.61",Social Community Care Supplies & Service.Adult.Residential Care
04/01/2016,CHILDREN'S SERVICES,GDST (The Girls'DAy School Trust),IN HOUSE FOSTER CARE PLACEMENTS - PRIVATE CONTRACTORS PAYMENT,"1,757.12",Social Community Care Supplies & Service.Children.Fostering
04/01/2016,HOUSING MANAGEMENT SERVICES,Millennium Academy,STAFF DEVELOPMENT AND TRAINING,"1,440.00",Human Resources.Training & Conferences.Training
04/01/2016,"REGENERATION, PLANNING & NEIGHBOURHOODS",Landmark Chambers,LEGAL FEES,"1,425.00",Legal Services.General Support.NA
04/01/2016,"STRATEGY & COMMISSIONING - CHILDREN, DISABILITIES & PUBLIC HEALTH",The Exchange Surgery_d,PAYMENT TO HEALTH AUTHORITIES,"1,339.17",Healthcare.Public Health.NA
04/01/2016,ADULT SOCIAL CARE,Capital Homecare (UK) Ltd,DOMICILIARY CARE - THIRD PARTY,"1,067.79",Social Community Care Supplies & Service.Adult.Domiciliary Care
04/01/2016,HOUSING MANAGEMENT SERVICES,Echelon Consultancy Ltd,CONSULTANCY FEES,857.80,Consultancy.Procurement.NA
04/01/2016,ADULT SOCIAL CARE,Xtracare Agency Ltd,DOMICILIARY CARE - THIRD PARTY,856.00,Social Community Care Supplies & Service.Adult.Domiciliary Care
04/01/2016,ADULT SOCIAL CARE,Xtracare Agency Ltd,DOMICILIARY CARE - THIRD PARTY,848.00,Social Community Care Supplies & Service.Adult.Domiciliary Care
04/01/2016,ADULT SOCIAL CARE,Capital Homecare (UK) Ltd,DOMICILIARY CARE - THIRD PARTY,820.59,Social Community Care Supplies & Service.Adult.Domiciliary Care
04/01/2016,"REGENERATION, PLANNING & NEIGHBOURHOODS",Willan Shombe,ARTS AND LEISURE COSTS,800.00,Arts & Leisure Services.Sport & Fitness.NA
04/01/2016,ADULT SOCIAL CARE,Xtracare Agency Ltd,DOMICILIARY CARE - THIRD PARTY,796.00,Social Community Care Supplies & Service.Adult.Domiciliary Care
04/01/2016,ADULT SOCIAL CARE,Tendercare 4 You Ltd,DOMICILIARY CARE - THIRD PARTY,792.00,Social Community Care Supplies & Service.Adult.Domiciliary Care
04/01/2016,ADULT SOCIAL CARE,Holistic Community Care Ltd,DOMICILIARY CARE - THIRD PARTY,637.88,Social Community Care Supplies & Service.Adult.Domiciliary Care
04/01/2016,ADULT SOCIAL CARE,Malone & Co,CATERING SERVICES,612.00,Catering.Banquet & Catering.NA
04/01/2016,ADULT SOCIAL CARE,A* Transport Ltd,CLIENT TRANSPORT,550.00,Public Transport.Passenger Transport.NA
04/01/2016,ADULT SOCIAL CARE,A* Transport Ltd,CLIENT TRANSPORT,550.00,Public Transport.Passenger Transport.NA
04/01/2016,ADULT SOCIAL CARE,Capital Homecare (UK) Ltd,DOMICILIARY CARE - THIRD PARTY,546.15,Social Community Care Supplies & Service.Adult.Domiciliary Care
04/01/2016,ADULT SOCIAL CARE,A* Transport Ltd,CLIENT TRANSPORT,540.00,Public Transport.Passenger Transport.NA
04/01/2016,ADULT SOCIAL CARE,A* Transport Ltd,CLIENT TRANSPORT,528.00,Public Transport.Passenger Transport.NA
04/01/2016,"STRATEGY & COMMISSIONING - CHILDREN, DISABILITIES & PUBLIC HEALTH",Epsom & St Helier University Hospitals NHS Trust,PAYMENT TO HEALTH AUTHORITIES,514.46,Healthcare.Public Health.NA
05/01/2016,CHILDREN'S SERVICES,Inner Circle Recruitment,STAFF RECRUITMENT COSTS,"29,925.00",Human Resources.Recruitment & Assessment.NA
05/01/2016,ADULT SOCIAL CARE,Allied Healthcare (UK) Ltd,DOMICILIARY CARE - THIRD PARTY,"23,436.17",Social Community Care Supplies & Service.Adult.NA
05/01/2016,CHILDREN'S SERVICES,Inner Circle Recruitment,STAFF RECRUITMENT COSTS,"21,667.50",Human Resources.Recruitment & Assessment.NA
05/01/2016,CHILDREN'S SERVICES,Inner Circle Recruitment,STAFF RECRUITMENT COSTS,"19,237.50",Human Resources.Recruitment & Assessment.NA
05/01/2016,CHILDREN'S SERVICES,Inner Circle Recruitment,STAFF RECRUITMENT COSTS,"18,922.50",Human Resources.Recruitment & Assessment.NA
05/01/2016,CHILDREN'S SERVICES,Inner Circle Recruitment,STAFF RECRUITMENT COSTS,"17,955.00",Human Resources.Recruitment & Assessment.NA
05/01/2016,CHILDREN'S SERVICES,Inner Circle Recruitment,STAFF RECRUITMENT COSTS,"14,197.50",Human Resources.Recruitment & Assessment.NA
05/01/2016,CHILDREN'S SERVICES,Inner Circle Recruitment,STAFF RECRUITMENT COSTS,"14,085.00",Human Resources.Recruitment & Assessment.NA
05/01/2016,HOUSING MANAGEMENT SERVICES,KNK Building Services Ltd_d,RESPONSIVE REPAIRS - BUILDING,"8,558.90","Works - Construction, Repair & Maint.Buildings.Repair & Maintenance"
05/01/2016,CHILDREN'S SERVICES,Inner Circle Recruitment,STAFF RECRUITMENT COSTS,"6,300.00",Human Resources.Recruitment & Assessment.NA
05/01/2016,CAPITAL CC,Property Renovators Ltd,FACILITIES MANAGEMENT,"6,116.20","Works - Construction, Repair & Maint.Buildings.Repair & Maintenance"
05/01/2016,HOUSING MANAGEMENT SERVICES,KNK Building Services Ltd_d,RESPONSIVE REPAIRS - BUILDING,"5,666.34","Works - Construction, Repair & Maint.Buildings.Repair & Maintenance"
05/01/2016,CHILDREN'S SERVICES,Inner Circle Recruitment,STAFF RECRUITMENT COSTS,"5,355.00",Human Resources.Recruitment & Assessment.NA
05/01/2016,HOUSING MANAGEMENT SERVICES,TV Edwards LLP,LEGAL FEES,"5,250.00",Legal Services.Advocacy.NA
05/01/2016,EDUCATION & LEARNING,NCER CIC,PROFESSIONAL SERVICES - GENERAL,"5,117.20",Education.School Services.NA
05/01/2016,BUSINESS & CUSTOMER SERVICES,Access Independent Ltd,OCCUPATIONAL HEALTH,"4,594.40",Healthcare.Occupational Therapy Services.NA
05/01/2016,CHILDREN'S SERVICES,Marina Lowell_d,IN HOUSE FOSTER CARE PLACEMENTS - PRIVATE CONTRACTORS PAYMENT,"4,574.18",Social Community Care Supplies & Service.Children.Fostering
05/01/2016,HOUSING MANAGEMENT SERVICES,KNK Building Services Ltd_d,RESPONSIVE REPAIRS - MECHANICAL AND ELECTRICAL,"3,312.50","Works - Construction, Repair & Maint.Buildings.Repair & Maintenance"
05/01/2016,NO RECOURSE TO PUBLIC FUNDS,R@W Logistics Ltd,RENTS PAYABLE,"2,904.93","Social Community Care Supplies & Service.Adult.Temporary Accommodation, Long Stay"
05/01/2016,NO RECOURSE TO PUBLIC FUNDS,Garry Purchase,RENTS PAYABLE,"2,307.08","Social Community Care Supplies & Service.Adult.Temporary Accommodation, Short Stay"
05/01/2016,CHILDREN'S SERVICES,Compass Fostering London & Eastern Ltd,IN HOUSE FOSTER CARE PLACEMENTS - PRIVATE CONTRACTORS PAYMENT,"2,305.40",Social Community Care Supplies & Service.Children.Fostering
05/01/2016,CHILDREN'S SERVICES,Sheffean Walcott_d,IN HOUSE FOSTER CARE PLACEMENTS - PRIVATE CONTRACTORS PAYMENT,"2,287.09",Social Community Care Supplies & Service.Children.Fostering
05/01/2016,CHILDREN'S SERVICES,Marcia Rutyy-Williams_d,IN HOUSE FOSTER CARE PLACEMENTS - PRIVATE CONTRACTORS PAYMENT,"2,287.09",Social Community Care Supplies & Service.Children.Fostering
05/01/2016,CHILDREN'S SERVICES,Sumira Khurshid_d,IN HOUSE FOSTER CARE PLACEMENTS - PRIVATE CONTRACTORS PAYMENT,"2,287.09",Social Community Care Supplies & Service.Children.Fostering
05/01/2016,CAPITAL CC,High Trees Community Development Trust,PROFESSIONAL SERVICES - GENERAL,"2,120.00",Education.Adult & Further Education Services.NA
05/01/2016,NO RECOURSE TO PUBLIC FUNDS,Norbury Property Services (London) Ltd,RENTS PAYABLE,"2,100.00","Social Community Care Supplies & Service.Adult.Temporary Accommodation, Long Stay"
05/01/2016,"STRATEGY & COMMISSIONING - CHILDREN, DISABILITIES & PUBLIC HEALTH",GLS Educational Supplies Ltd,"PURCHASE - EQUIPMENT, FURNITURE AND MATERIALS","2,039.60",Furniture & Soft Furnishings.Educational Furniture.NA
05/01/2016,HOUSING MANAGEMENT SERVICES,KNK Building Services Ltd_d,RESPONSIVE REPAIRS - BUILDING,"1,961.44","Works - Construction, Repair & Maint.Buildings.Repair & Maintenance"
05/01/2016,EDUCATION & LEARNING,Access Mobility Transport Ltd,DIRECT TRANSPORT,"1,680.00",Public Transport.Passenger Transport.NA
05/01/2016,EDUCATION & LEARNING,Access Mobility Transport Ltd,DIRECT TRANSPORT,"1,680.00",Public Transport.Passenger Transport.NA
05/01/2016,NO RECOURSE TO PUBLIC FUNDS,Norbury Property Services (London) Ltd,RENTS PAYABLE,"1,600.00","Social Community Care Supplies & Service.Adult.Temporary Accommodation, Long Stay"
05/01/2016,NO RECOURSE TO PUBLIC FUNDS,Norbury Property Services (London) Ltd,RENTS PAYABLE,"1,550.00","Social Community Care Supplies & Service.Adult.Temporary Accommodation, Long Stay"
05/01/2016,NO RECOURSE TO PUBLIC FUNDS,R@W Logistics Ltd,RENTS PAYABLE,"1,530.00","Social Community Care Supplies & Service.Adult.Temporary Accommodation, Long Stay"
05/01/2016,CHILDREN'S SERVICES,Paulo Manuel Da Silva and Maria Moco_d,PRIVATE CONTRACTORS PAYMENT - OTHER,"1,511.12",Social Community Care Supplies & Service.Adult.Residential Care
05/01/2016,NO RECOURSE TO PUBLIC FUNDS,Norbury Property Services (London) Ltd,RENTS PAYABLE,"1,450.00","Social Community Care Supplies & Service.Adult.Temporary Accommodation, Long Stay"
05/01/2016,NO RECOURSE TO PUBLIC FUNDS,Norbury Property Services (London) Ltd,RENTS PAYABLE,"1,400.00","Social Community Care Supplies & Service.Adult.Temporary Accommodation, Long Stay"
05/01/2016,NO RECOURSE TO PUBLIC FUNDS,Norbury Property Services (London) Ltd,BED & BREAKFAST - PRIVATE CONTRACTORS PAYMENT,"1,395.00","Social Community Care Supplies & Service.Adult.Temporary Accommodation, Long Stay"
05/01/2016,HOUSING NEEDS,Mr Matthew Hutchings,LEGAL FEES,"1,350.00",Legal Services.Legal Opinion.NA
05/01/2016,EDUCATION & LEARNING,Jenx Ltd,SPECIALIST EQUIPMENT FOR SERVICE PROVISION,"1,271.50",Social Community Care Supplies & Service.Supplies.Equipment
05/01/2016,HOUSING MANAGEMENT SERVICES,KNK Building Services Ltd_d,RESPONSIVE REPAIRS - BUILDING,"1,248.85","Works - Construction, Repair & Maint.Buildings.Repair & Maintenance"
05/01/2016,NO RECOURSE TO PUBLIC FUNDS,Norbury Property Services (London) Ltd,BED & BREAKFAST - PRIVATE CONTRACTORS PAYMENT,"1,209.00","Social Community Care Supplies & Service.Adult.Temporary Accommodation, Long Stay"
05/01/2016,NO RECOURSE TO PUBLIC FUNDS,Norbury Property Services (London) Ltd,BED & BREAKFAST - PRIVATE CONTRACTORS PAYMENT,"1,209.00","Social Community Care Supplies & Service.Adult.Temporary Accommodation, Long Stay"
05/01/2016,NO RECOURSE TO PUBLIC FUNDS,Norbury Property Services (London) Ltd,BED & BREAKFAST - PRIVATE CONTRACTORS PAYMENT,"1,209.00","Social Community Care Supplies & Service.Adult.Temporary Accommodation, Long Stay"
05/01/2016,NO RECOURSE TO PUBLIC FUNDS,Hytyme Ltd,BED & BREAKFAST - PRIVATE CONTRACTORS PAYMENT,"1,170.00","Social Community Care Supplies & Service.Adult.Temporary Accommodation, Short Stay"
05/01/2016,HOUSING MANAGEMENT SERVICES,KNK Building Services Ltd_d,RESPONSIVE REPAIRS - BUILDING,"1,149.55","Works - Construction, Repair & Maint.Buildings.Repair & Maintenance"
05/01/2016,NO RECOURSE TO PUBLIC FUNDS,Norbury Property Services (London) Ltd,BED & BREAKFAST - PRIVATE CONTRACTORS PAYMENT,"1,085.00","Social Community Care Supplies & Service.Adult.Temporary Accommodation, Long Stay"
05/01/2016,FINANCE,TLT LLP,LEGAL FEES,"1,047.00",Legal Services.Advocacy.NA
05/01/2016,NO RECOURSE TO PUBLIC FUNDS,Norbury Property Services (London) Ltd,RENTS PAYABLE,992.00,"Social Community Care Supplies & Service.Adult.Temporary Accommodation, Long Stay"
05/01/2016,HOUSING MANAGEMENT SERVICES,KNK Building Services Ltd_d,RESPONSIVE REPAIRS - BUILDING,980.72,"Works - Construction, Repair & Maint.Buildings.Repair & Maintenance"
05/01/2016,NO RECOURSE TO PUBLIC FUNDS,Norbury Property Services (London) Ltd,RENTS PAYABLE,950.00,"Social Community Care Supplies & Service.Adult.Temporary Accommodation, Long Stay"
05/01/2016,POLICY & COMMUNICATIONS,"Ellerby, Mr. Julian_d",PRINTING,932.34,Facilities & Management Services.Printing.NA
05/01/2016,NO RECOURSE TO PUBLIC FUNDS,Norbury Property Services (London) Ltd,BED & BREAKFAST - PRIVATE CONTRACTORS PAYMENT,930.00,"Social Community Care Supplies & Service.Adult.Temporary Accommodation, Long Stay"
05/01/2016,NO RECOURSE TO PUBLIC FUNDS,Norbury Property Services (London) Ltd,BED & BREAKFAST - PRIVATE CONTRACTORS PAYMENT,930.00,"Social Community Care Supplies & Service.Adult.Temporary Accommodation, Long Stay"
05/01/2016,NO RECOURSE TO PUBLIC FUNDS,Norbury Property Services (London) Ltd,BED & BREAKFAST - PRIVATE CONTRACTORS PAYMENT,918.00,"Social Community Care Supplies & Service.Adult.Temporary Accommodation, Long Stay"
05/01/2016,FINANCE,New Information Paradigms Ltd,ICT SOFTWARE,900.00,Information Communication Technology.Software.Customised & Bespoke
05/01/2016,NO RECOURSE TO PUBLIC FUNDS,Norbury Property Services (London) Ltd,BED & BREAKFAST - PRIVATE CONTRACTORS PAYMENT,899.00,"Social Community Care Supplies & Service.Adult.Temporary Accommodation, Long Stay"
05/01/2016,NO RECOURSE TO PUBLIC FUNDS,Norbury Property Services (London) Ltd,BED & BREAKFAST - PRIVATE CONTRACTORS PAYMENT,899.00,"Social Community Care Supplies & Service.Adult.Temporary Accommodation, Long Stay"
05/01/2016,NO RECOURSE TO PUBLIC FUNDS,Norbury Property Services (London) Ltd,BED & BREAKFAST - PRIVATE CONTRACTORS PAYMENT,899.00,"Social Community Care Supplies & Service.Adult.Temporary Accommodation, Long Stay"
05/01/2016,POLICY & COMMUNICATIONS,"Ellerby, Mr. Julian_d",ARTS AND LEISURE COSTS,878.06,Arts & Leisure Services.Outsourced Service.NA
05/01/2016,NO RECOURSE TO PUBLIC FUNDS,Hytyme Ltd,BED & BREAKFAST - PRIVATE CONTRACTORS PAYMENT,870.00,"Social Community Care Supplies & Service.Adult.Temporary Accommodation, Short Stay"
05/01/2016,NO RECOURSE TO PUBLIC FUNDS,Norbury Property Services (London) Ltd,BED & BREAKFAST - PRIVATE CONTRACTORS PAYMENT,868.00,"Social Community Care Supplies & Service.Adult.Temporary Accommodation, Long Stay"
05/01/2016,NO RECOURSE TO PUBLIC FUNDS,Norbury Property Services (London) Ltd,BED & BREAKFAST - PRIVATE CONTRACTORS PAYMENT,868.00,"Social Community Care Supplies & Service.Adult.Temporary Accommodation, Long Stay"
05/01/2016,NO RECOURSE TO PUBLIC FUNDS,Norbury Property Services (London) Ltd,BED & BREAKFAST - PRIVATE CONTRACTORS PAYMENT,868.00,"Social Community Care Supplies & Service.Adult.Temporary Accommodation, Long Stay"
05/01/2016,FINANCE,Kier FPS Ltd,VEHICLE LEASES,845.00,Vehicle Management.Leasing.NA
05/01/2016,NO RECOURSE TO PUBLIC FUNDS,Cromwood Ltd,RENTS PAYABLE,825.00,"Social Community Care Supplies & Service.Adult.Temporary Accommodation, Hostels"
05/01/2016,NO RECOURSE TO PUBLIC FUNDS,Cromwood Ltd,RENTS PAYABLE,825.00,"Social Community Care Supplies & Service.Adult.Temporary Accommodation, Hostels"
05/01/2016,NO RECOURSE TO PUBLIC FUNDS,Norbury Property Services (London) Ltd,BED & BREAKFAST - PRIVATE CONTRACTORS PAYMENT,812.00,"Social Community Care Supplies & Service.Adult.Temporary Accommodation, Long Stay"
05/01/2016,NO RECOURSE TO PUBLIC FUNDS,Norbury Property Services (London) Ltd,BED & BREAKFAST - PRIVATE CONTRACTORS PAYMENT,806.00,"Social Community Care Supplies & Service.Adult.Temporary Accommodation, Long Stay"
05/01/2016,NO RECOURSE TO PUBLIC FUNDS,Norbury Property Services (London) Ltd,BED & BREAKFAST - PRIVATE CONTRACTORS PAYMENT,806.00,"Social Community Care Supplies & Service.Adult.Temporary Accommodation, Long Stay"
05/01/2016,HOUSING MANAGEMENT SERVICES,Desmond Kilcoyne,LEGAL FEES,800.00,Legal Services.Legal Opinion.NA
05/01/2016,HOUSING NEEDS,Catherine Rowlands,LEGAL FEES,740.00,Legal Services.Legal Opinion.NA
05/01/2016,EDUCATION & LEARNING,Mrs Emma Bellingham,PROFESSIONAL SERVICES - GENERAL,710.00,Education.School Services.NA
05/01/2016,"REGENERATION, PLANNING & NEIGHBOURHOODS",Croydon Council,DESIGN AND PHOTOGRAPHIC COSTS,622.85,Facilities & Management Services.Design & Photography.NA
05/01/2016,HOUSING NEEDS,Hamed Zovidavi,LEGAL FEES,600.00,Legal Services.Legal Opinion.NA
05/01/2016,POLICY & COMMUNICATIONS,"Ellerby, Mr. Julian_d","BOOKS, PUBLICATIONS AND RESOURCES",585.57,Education.Library Books.NA
05/01/2016,HOUSING MANAGEMENT SERVICES,Damp Diagnosis Consultancy Ltd,LEGAL FEES,550.00,Consultancy.Technical & Feasibility.NA
05/01/2016,POLICY & COMMUNICATIONS,"Ellerby, Mr. Julian_d",ICT SOFTWARE,538.00,Information Communication Technology.Software.NA
05/01/2016,HOUSING MANAGEMENT SERVICES,KNK Building Services Ltd_d,RESPONSIVE REPAIRS - MECHANICAL AND ELECTRICAL,527.56,"Works - Construction, Repair & Maint.Buildings.Repair & Maintenance"
05/01/2016,HOUSING MANAGEMENT SERVICES,KNK Building Services Ltd_d,RESPONSIVE REPAIRS - BUILDING,519.15,"Works - Construction, Repair & Maint.Buildings.Repair & Maintenance"
05/01/2016,NO RECOURSE TO PUBLIC FUNDS,R@W Logistics Ltd,RENTS PAYABLE,"(1,530.00)","Social Community Care Supplies & Service.Adult.Temporary Accommodation, Long Stay"
05/01/2016,CHILDREN'S SERVICES,Holmdene Housing Ltd,PRIVATE CONTRACTORS PAYMENT - OTHER,"(2,538.00)",Social Community Care Supplies & Service.Children.NA
05/01/2016,ADULT SOCIAL CARE,Allied Healthcare (UK) Ltd,DOMICILIARY CARE - THIRD PARTY,"(2,820.41)",Social Community Care Supplies & Service.Adult.NA
06/01/2016,CAPITAL CC,ME Construction Ltd,FACILITIES MANAGEMENT,"68,734.80","Works - Construction, Repair & Maint.Buildings.Repair & Maintenance"
06/01/2016,FINANCE,Lambert Smith Hampton Group Ltd,CONSULTANCY FEES,"51,600.87",Consultancy.Technical & Feasibility.NA
06/01/2016,"STRATEGY & COMMISSIONING - CHILDREN, DISABILITIES & PUBLIC HEALTH",St George's Healthcare NHS Trust,PAYMENT TO HEALTH AUTHORITIES,"38,933.97",Healthcare.Public Health.NA
06/01/2016,FINANCE,Lambert Smith Hampton Group Ltd,CONSULTANCY FEES,"35,151.99",Consultancy.Technical & Feasibility.NA
06/01/2016,EDUCATION & LEARNING,Civica UK Ltd,ICT MAINTENANCE AND SUPPORT,"34,311.24",Information Communication Technology.Services.Maintenance & Support
06/01/2016,CORPORATE AFFAIRS,PricewaterhouseCoopers LLP,AUDIT FEES,"30,000.00",Financial Services.Audit.NA
06/01/2016,CAPITAL CC,ME Construction Ltd,FACILITIES MANAGEMENT,"27,541.42","Works - Construction, Repair & Maint.Buildings.Repair & Maintenance"
06/01/2016,CAPITAL CC,Civica UK Ltd,ICT SOFTWARE,"19,825.30",Information Communication Technology.Software.Customised & Bespoke
06/01/2016,"STRATEGY & COMMISSIONING - CHILDREN, DISABILITIES & PUBLIC HEALTH",Croydon Health Services NHS Trust,PAYMENT TO HEALTH AUTHORITIES,"16,652.19",Healthcare.Public Health.NA
06/01/2016,CHILDREN'S SERVICES,Southern Adolescent Care Services Ltd,RESIDENTIAL PLACEMENTS - PRIVATE CONTRACTORS PAYMENT,"13,064.28",Social Community Care Supplies & Service.Children.Residential Care
06/01/2016,"REGENERATION, PLANNING & NEIGHBOURHOODS",BNP Paribas Real Estate,CONSULTANCY FEES,"10,000.00",Consultancy.Technical & Feasibility.NA
06/01/2016,CORPORATE AFFAIRS,PricewaterhouseCoopers LLP,AUDIT FEES,"9,300.00",Financial Services.Audit.NA
06/01/2016,CORPORATE AFFAIRS,PricewaterhouseCoopers LLP,AUDIT FEES,"9,255.00",Financial Services.Audit.NA
06/01/2016,CAPITAL CC,Civica UK Ltd,ICT MAINTENANCE AND SUPPORT,"5,673.06",Information Communication Technology.Services.Maintenance & Support
06/01/2016,"REGENERATION, PLANNING & NEIGHBOURHOODS",Omnibus-clapham,ARTS AND LEISURE COSTS,"4,999.00",Arts & Leisure Services.Organised Activities.NA
06/01/2016,"REGENERATION, PLANNING & NEIGHBOURHOODS",EDF Energy Plc,ELECTRICITY,"3,844.60",Utilities.Electricity.NA
06/01/2016,CHILDREN'S SERVICES,Race Equality Foundation,PRIVATE CONTRACTORS PAYMENT - OTHER,"3,000.00",Social Community Care Supplies & Service.Adult.Advice & Counselling Services
06/01/2016,ADULT SOCIAL CARE,Oasis Care & Training Agency,DOMICILIARY CARE - THIRD PARTY,"2,819.40",Social Community Care Supplies & Service.Adult.Domiciliary Care
06/01/2016,ADULT SOCIAL CARE,Oasis Care & Training Agency,DOMICILIARY CARE - THIRD PARTY,"2,679.70",Social Community Care Supplies & Service.Adult.Domiciliary Care
06/01/2016,ADULT SOCIAL CARE,Oasis Care & Training Agency,DOMICILIARY CARE - THIRD PARTY,"2,522.22",Social Community Care Supplies & Service.Adult.Domiciliary Care
06/01/2016,ADULT SOCIAL CARE,Unique Office Solutions Ltd,"PURCHASE - EQUIPMENT, FURNITURE AND MATERIALS","2,489.40",Furniture & Soft Furnishings.Office Furniture.NA
06/01/2016,ADULT SOCIAL CARE,Oasis Care & Training Agency,DOMICILIARY CARE - THIRD PARTY,"2,185.71",Social Community Care Supplies & Service.Adult.Domiciliary Care
06/01/2016,ADULT SOCIAL CARE,Oasis Care & Training Agency,DOMICILIARY CARE - THIRD PARTY,"2,100.26",Social Community Care Supplies & Service.Adult.Domiciliary Care
06/01/2016,ADULT SOCIAL CARE,Oasis Care & Training Agency,DOMICILIARY CARE - THIRD PARTY,"2,093.00",Social Community Care Supplies & Service.Adult.Domiciliary Care
06/01/2016,CHILDREN'S SERVICES,Compass Fostering London & Eastern Ltd,IN HOUSE FOSTER CARE PLACEMENTS - PRIVATE CONTRACTORS PAYMENT,"2,074.80",Social Community Care Supplies & Service.Children.Fostering
06/01/2016,HOUSING MANAGEMENT SERVICES,MMP Consultancy Ltd,STAFF RECRUITMENT COSTS,"1,925.00",Human Resources.Recruitment & Assessment.NA
06/01/2016,HOUSING MANAGEMENT SERVICES,MMP Consultancy Ltd,STAFF RECRUITMENT COSTS,"1,925.00",Human Resources.Recruitment & Assessment.NA
06/01/2016,HOUSING MANAGEMENT SERVICES,MMP Consultancy Ltd,STAFF RECRUITMENT COSTS,"1,925.00",Human Resources.Recruitment & Assessment.NA
06/01/2016,HOUSING MANAGEMENT SERVICES,MMP Consultancy Ltd,STAFF RECRUITMENT COSTS,"1,925.00",Human Resources.Recruitment & Assessment.NA
06/01/2016,HOUSING MANAGEMENT SERVICES,MMP Consultancy Ltd,STAFF RECRUITMENT COSTS,"1,925.00",Human Resources.Recruitment & Assessment.NA
06/01/2016,HOUSING MANAGEMENT SERVICES,MMP Consultancy Ltd,STAFF RECRUITMENT COSTS,"1,925.00",Human Resources.Recruitment & Assessment.NA
06/01/2016,HOUSING MANAGEMENT SERVICES,MMP Consultancy Ltd,STAFF RECRUITMENT COSTS,"1,925.00",Human Resources.Recruitment & Assessment.NA
06/01/2016,HOUSING MANAGEMENT SERVICES,MMP Consultancy Ltd,STAFF RECRUITMENT COSTS,"1,925.00",Human Resources.Recruitment & Assessment.NA
06/01/2016,ADULT SOCIAL CARE,Oasis Care & Training Agency,DOMICILIARY CARE - THIRD PARTY,"1,877.19",Social Community Care Supplies & Service.Adult.Domiciliary Care
06/01/2016,CHILDREN'S SERVICES,Alpha UK Properties Ltd,RENTS PAYABLE,"1,800.00","Social Community Care Supplies & Service.Adult.Temporary Accommodation, Long Stay"
06/01/2016,CHILDREN'S SERVICES,Compass Fostering London & Eastern Ltd,IN HOUSE FOSTER CARE PLACEMENTS - PRIVATE CONTRACTORS PAYMENT,"1,671.20",Social Community Care Supplies & Service.Children.Fostering
06/01/2016,HOUSING MANAGEMENT SERVICES,MMP Consultancy Ltd,STAFF RECRUITMENT COSTS,"1,668.40",Human Resources.Recruitment & Assessment.NA
06/01/2016,MAJOR CAPITAL PROGRAMMES,Auditel Rental & Service Ltd,ICT MAINTENANCE AND SUPPORT,"1,650.00",Information Communication Technology.Services.NA
06/01/2016,FINANCE,TfL Surface Transport,VEHICLE REPAIRS AND MAINTENANCE,"1,648.50",Public Transport.Maintenance.NA
06/01/2016,HOUSING MANAGEMENT SERVICES,MMP Consultancy Ltd,STAFF RECRUITMENT COSTS,"1,622.10",Human Resources.Recruitment & Assessment.NA
06/01/2016,HOUSING MANAGEMENT SERVICES,MMP Consultancy Ltd,STAFF RECRUITMENT COSTS,"1,616.80",Human Resources.Recruitment & Assessment.NA
06/01/2016,HOUSING MANAGEMENT SERVICES,MMP Consultancy Ltd,STAFF RECRUITMENT COSTS,"1,565.20",Human Resources.Recruitment & Assessment.NA
06/01/2016,HOUSING MANAGEMENT SERVICES,MMP Consultancy Ltd,STAFF RECRUITMENT COSTS,"1,548.00",Human Resources.Recruitment & Assessment.NA
06/01/2016,HOUSING MANAGEMENT SERVICES,MMP Consultancy Ltd,STAFF RECRUITMENT COSTS,"1,540.00",Human Resources.Recruitment & Assessment.NA
06/01/2016,"STRATEGY & COMMISSIONING - CHILDREN, DISABILITIES & PUBLIC HEALTH",Epsom & St Helier University Hospitals NHS Trust,PAYMENT TO HEALTH AUTHORITIES,"1,538.23",Healthcare.Public Health.NA
06/01/2016,HOUSING MANAGEMENT SERVICES,MMP Consultancy Ltd,STAFF RECRUITMENT COSTS,"1,530.80",Human Resources.Recruitment & Assessment.NA
06/01/2016,HOUSING MANAGEMENT SERVICES,MMP Consultancy Ltd,STAFF RECRUITMENT COSTS,"1,513.60",Human Resources.Recruitment & Assessment.NA
06/01/2016,CORPORATE AFFAIRS,PricewaterhouseCoopers LLP,AUDIT FEES,"1,500.00",Financial Services.Audit.NA
06/01/2016,HOUSING MANAGEMENT SERVICES,MMP Consultancy Ltd,STAFF RECRUITMENT COSTS,"1,496.40",Human Resources.Recruitment & Assessment.NA
06/01/2016,HOUSING MANAGEMENT SERVICES,MMP Consultancy Ltd,STAFF RECRUITMENT COSTS,"1,496.40",Human Resources.Recruitment & Assessment.NA
06/01/2016,HOUSING MANAGEMENT SERVICES,MMP Consultancy Ltd,STAFF RECRUITMENT COSTS,"1,462.80",Human Resources.Recruitment & Assessment.NA
06/01/2016,ADULT SOCIAL CARE,Oasis Care & Training Agency,DOMICILIARY CARE - THIRD PARTY,"1,320.50",Social Community Care Supplies & Service.Adult.Domiciliary Care
06/01/2016,HOUSING MANAGEMENT SERVICES,MMP Consultancy Ltd,STAFF RECRUITMENT COSTS,"1,312.50",Human Resources.Recruitment & Assessment.NA
06/01/2016,HOUSING MANAGEMENT SERVICES,MMP Consultancy Ltd,STAFF RECRUITMENT COSTS,"1,312.50",Human Resources.Recruitment & Assessment.NA
06/01/2016,HOUSING MANAGEMENT SERVICES,MMP Consultancy Ltd,STAFF RECRUITMENT COSTS,"1,312.50",Human Resources.Recruitment & Assessment.NA
06/01/2016,HOUSING MANAGEMENT SERVICES,MMP Consultancy Ltd,STAFF RECRUITMENT COSTS,"1,312.50",Human Resources.Recruitment & Assessment.NA
06/01/2016,HOUSING MANAGEMENT SERVICES,MMP Consultancy Ltd,STAFF RECRUITMENT COSTS,"1,290.00",Human Resources.Recruitment & Assessment.NA
06/01/2016,HOUSING MANAGEMENT SERVICES,MMP Consultancy Ltd,STAFF RECRUITMENT COSTS,"1,241.00",Human Resources.Recruitment & Assessment.NA
06/01/2016,HOUSING MANAGEMENT SERVICES,MMP Consultancy Ltd,STAFF RECRUITMENT COSTS,"1,222.50",Human Resources.Recruitment & Assessment.NA
06/01/2016,HOUSING MANAGEMENT SERVICES,MMP Consultancy Ltd,STAFF RECRUITMENT COSTS,"1,218.80",Human Resources.Recruitment & Assessment.NA
06/01/2016,HOUSING MANAGEMENT SERVICES,MMP Consultancy Ltd,STAFF RECRUITMENT COSTS,"1,218.65",Human Resources.Recruitment & Assessment.NA
06/01/2016,HOUSING MANAGEMENT SERVICES,MMP Consultancy Ltd,STAFF RECRUITMENT COSTS,"1,218.65",Human Resources.Recruitment & Assessment.NA
06/01/2016,ADULT SOCIAL CARE,Oasis Care & Training Agency,DOMICILIARY CARE - THIRD PARTY,"1,184.69",Social Community Care Supplies & Service.Adult.Domiciliary Care
06/01/2016,HOUSING MANAGEMENT SERVICES,MMP Consultancy Ltd,STAFF RECRUITMENT COSTS,"1,119.25",Human Resources.Recruitment & Assessment.NA
06/01/2016,ADULT SOCIAL CARE,Oasis Care & Training Agency,DOMICILIARY CARE - THIRD PARTY,"1,055.60",Social Community Care Supplies & Service.Adult.Domiciliary Care
06/01/2016,HUMAN RESOURCES AND ORGANISATIONAL DEVELOPMENT,Child Poverty Action Group,PRIVATE CONTRACTORS PAYMENT - OTHER,"1,050.00",Social Community Care Supplies & Service.Children.NA
06/01/2016,HOUSING MANAGEMENT SERVICES,MMP Consultancy Ltd,STAFF RECRUITMENT COSTS,"1,050.00",Human Resources.Recruitment & Assessment.NA
06/01/2016,HOUSING MANAGEMENT SERVICES,MMP Consultancy Ltd,STAFF RECRUITMENT COSTS,978.00,Human Resources.Recruitment & Assessment.NA
06/01/2016,HOUSING MANAGEMENT SERVICES,MMP Consultancy Ltd,STAFF RECRUITMENT COSTS,974.90,Human Resources.Recruitment & Assessment.NA
06/01/2016,HOUSING MANAGEMENT SERVICES,MMP Consultancy Ltd,STAFF RECRUITMENT COSTS,850.50,Human Resources.Recruitment & Assessment.NA
06/01/2016,HOUSING MANAGEMENT SERVICES,MMP Consultancy Ltd,STAFF RECRUITMENT COSTS,840.00,Human Resources.Recruitment & Assessment.NA
06/01/2016,HOUSING MANAGEMENT SERVICES,MMP Consultancy Ltd,STAFF RECRUITMENT COSTS,829.50,Human Resources.Recruitment & Assessment.NA
06/01/2016,ADULT SOCIAL CARE,Oasis Care & Training Agency,DOMICILIARY CARE - THIRD PARTY,827.56,Social Community Care Supplies & Service.Adult.Domiciliary Care
06/01/2016,HOUSING MANAGEMENT SERVICES,MMP Consultancy Ltd,STAFF RECRUITMENT COSTS,819.00,Human Resources.Recruitment & Assessment.NA
06/01/2016,HOUSING MANAGEMENT SERVICES,MMP Consultancy Ltd,STAFF RECRUITMENT COSTS,819.00,Human Resources.Recruitment & Assessment.NA
06/01/2016,FINANCE,CIPFA Business Ltd,MEMBERSHIP AND SUBSCRIPTIONS,768.50,Financial Services.Subscriptions.NA
06/01/2016,HOUSING MANAGEMENT SERVICES,MMP Consultancy Ltd,STAFF RECRUITMENT COSTS,745.50,Human Resources.Recruitment & Assessment.NA
06/01/2016,ADULT SOCIAL CARE,Oasis Care & Training Agency,DOMICILIARY CARE - THIRD PARTY,742.15,Social Community Care Supplies & Service.Adult.Domiciliary Care
06/01/2016,ADULT SOCIAL CARE,Oasis Care & Training Agency,DOMICILIARY CARE - THIRD PARTY,741.22,Social Community Care Supplies & Service.Adult.Domiciliary Care
06/01/2016,ADULT SOCIAL CARE,Oasis Care & Training Agency,DOMICILIARY CARE - THIRD PARTY,736.59,Social Community Care Supplies & Service.Adult.Domiciliary Care
06/01/2016,ADULT SOCIAL CARE,Oasis Care & Training Agency,DOMICILIARY CARE - THIRD PARTY,718.45,Social Community Care Supplies & Service.Adult.Domiciliary Care
06/01/2016,ADULT SOCIAL CARE,Oasis Care & Training Agency,DOMICILIARY CARE - THIRD PARTY,701.40,Social Community Care Supplies & Service.Adult.Domiciliary Care
06/01/2016,ADULT SOCIAL CARE,Oasis Care & Training Agency,DOMICILIARY CARE - THIRD PARTY,667.51,Social Community Care Supplies & Service.Adult.Domiciliary Care
06/01/2016,HOUSING MANAGEMENT SERVICES,MMP Consultancy Ltd,STAFF RECRUITMENT COSTS,640.50,Human Resources.Recruitment & Assessment.NA
06/01/2016,ADULT SOCIAL CARE,Generate,DAYCARE - PRIVATE CONTRACTORS PAYMENT,640.00,Human Resources.Temporary & Agency Staff.Social & Community Care
06/01/2016,"STRATEGY & COMMISSIONING - CHILDREN, DISABILITIES & PUBLIC HEALTH",Epsom & St Helier University Hospitals NHS Trust,PAYMENT TO HEALTH AUTHORITIES,623.94,Healthcare.Public Health.NA
06/01/2016,HOUSING MANAGEMENT SERVICES,MMP Consultancy Ltd,STAFF RECRUITMENT COSTS,619.50,Human Resources.Recruitment & Assessment.NA
06/01/2016,ADULT SOCIAL CARE,Oasis Care & Training Agency,DOMICILIARY CARE - THIRD PARTY,593.03,Social Community Care Supplies & Service.Adult.Domiciliary Care
06/01/2016,ADULT SOCIAL CARE,Oasis Care & Training Agency,DOMICILIARY CARE - THIRD PARTY,590.90,Social Community Care Supplies & Service.Adult.Domiciliary Care
06/01/2016,"STRATEGY & COMMISSIONING - CHILDREN, DISABILITIES & PUBLIC HEALTH",Epsom & St Helier University Hospitals NHS Trust,PAYMENT TO HEALTH AUTHORITIES,566.96,Healthcare.Public Health.NA
06/01/2016,CHILDREN'S SERVICES,Hytyme Ltd,BED & BREAKFAST - PRIVATE CONTRACTORS PAYMENT,546.00,"Social Community Care Supplies & Service.Adult.Temporary Accommodation, Short Stay"
06/01/2016,"STRATEGY & COMMISSIONING - CHILDREN, DISABILITIES & PUBLIC HEALTH",Epsom & St Helier University Hospitals NHS Trust,PAYMENT TO HEALTH AUTHORITIES,505.20,Healthcare.Public Health.NA
07/01/2016,STRATEGY & COMMISSIONING - HOUSING & COMMUNITIES (HRA),Regenter Myatts Field North Ltd,"MAINTENANCE - EQUIPMENT, FURNITURE AND MATERIALS","837,573.42","Works - Construction, Repair & Maint.Buildings.Construction"
07/01/2016,STRATEGY & COMMISSIONING - HOUSING & COMMUNITIES (HRA),Regenter Myatts Field North Ltd,"MAINTENANCE - EQUIPMENT, FURNITURE AND MATERIALS","766,901.97","Works - Construction, Repair & Maint.Buildings.Construction"
07/01/2016,CAPITAL CC,Extraspace Solutions (Uk)ltd,"PURCHASE - EQUIPMENT, FURNITURE AND MATERIALS","61,300.00",Education.Supplies.NA
07/01/2016,CHILDREN'S SERVICES,Tadley Horizon School,RESIDENTIAL PLACEMENTS - PRIVATE CONTRACTORS PAYMENT,"60,912.23",Education.School Services.NA
07/01/2016,EDUCATION & LEARNING,Saint Edward's School,PROFESSIONAL SERVICES - GENERAL,"24,543.00",Education.School Services.NA
07/01/2016,STRATEGY & COMMISSIONING - NEIGHBOURHOODS,Lambeth Law Centre,PRIVATE CONTRACTORS PAYMENT - OTHER,"24,328.50",Social Community Care Supplies & Service.Adult.Advice & Counselling Services
07/01/2016,EDUCATION & LEARNING,Cressey Oasis Education Ltd,PROFESSIONAL SERVICES - GENERAL,"16,924.45",Education.School Services.NA
07/01/2016,EDUCATION & LEARNING,Cressey Oasis Education Ltd,PROFESSIONAL SERVICES - GENERAL,"16,695.13",Education.School Services.NA
07/01/2016,EDUCATION & LEARNING,Cressey Oasis Education Ltd,PROFESSIONAL SERVICES - GENERAL,"13,063.72",Education.School Services.NA
07/01/2016,EDUCATION & LEARNING,Cressey Oasis Education Ltd,PROFESSIONAL SERVICES - GENERAL,"13,063.72",Education.School Services.NA
07/01/2016,CAPITAL CC,Gavin Jones Ltd,OPEN SPACES WORKS,"12,558.50","Works - Construction, Repair & Maint.Open Spaces.Repair & Maintenance"
07/01/2016,MAJOR CAPITAL PROGRAMMES,Lambert Smith Hampton Group Ltd,CONSULTANCY FEES,"8,029.00",Consultancy.Technical & Feasibility.NA
07/01/2016,EDUCATION & LEARNING,Farney Close School Ltd,PROFESSIONAL SERVICES - GENERAL,"6,992.22",Education.Educational Placements.NA
07/01/2016,"STRATEGY & COMMISSIONING - CHILDREN, DISABILITIES & PUBLIC HEALTH",The High Street Gift Voucher Ltd,PAYMENT TO HEALTH AUTHORITIES,"5,488.00",Healthcare.Public Health.NA
07/01/2016,"REGENERATION, PLANNING & NEIGHBOURHOODS",Unique Office Solutions Ltd,"PURCHASE - EQUIPMENT, FURNITURE AND MATERIALS","4,485.00",Furniture & Soft Furnishings.Office Furniture.NA
07/01/2016,HOUSING MANAGEMENT SERVICES,British Telecommunications plc,LAND LINE TELEPHONE COSTS,"3,498.85",Information Communication Technology.Telecommunications.NA
07/01/2016,ADULT SOCIAL CARE,BT Global Services,LAND LINE TELEPHONE COSTS,"2,531.85",Information Communication Technology.Telecommunications.Fixed
07/01/2016,ADULT SOCIAL CARE,Capital Homecare (UK) Ltd,DOMICILIARY CARE - THIRD PARTY,"2,156.00",Social Community Care Supplies & Service.Adult.Domiciliary Care
07/01/2016,ADULT SOCIAL CARE,Capital Homecare (UK) Ltd,DOMICILIARY CARE - THIRD PARTY,"1,994.30",Social Community Care Supplies & Service.Adult.Domiciliary Care
07/01/2016,ADULT SOCIAL CARE,Capital Homecare (UK) Ltd,DOMICILIARY CARE - THIRD PARTY,"1,786.40",Social Community Care Supplies & Service.Adult.Domiciliary Care
07/01/2016,HOUSING MANAGEMENT SERVICES,RICS Books,"PURCHASE - EQUIPMENT, FURNITURE AND MATERIALS","1,720.00",Education.School Books.NA
07/01/2016,BUSINESS & CUSTOMER SERVICES,Thames Water Utilities Ltd_d,WATER AND SEWERAGE,"1,643.74",Utilities.Water.NA
07/01/2016,"REGENERATION, PLANNING & NEIGHBOURHOODS",Streatham Youth & Community Trust_d,PRIVATE CONTRACTORS PAYMENT - OTHER,"1,640.00",Social Community Care Supplies & Service.Children.Childcare Services
07/01/2016,"STRATEGY & COMMISSIONING - CHILDREN, DISABILITIES & PUBLIC HEALTH",Beckett House Practice,PAYMENT TO HEALTH AUTHORITIES,"1,353.23",Healthcare.Public Health.NA
07/01/2016,ADULT SOCIAL CARE,Capital Homecare (UK) Ltd,DOMICILIARY CARE - THIRD PARTY,"1,285.90",Social Community Care Supplies & Service.Adult.Domiciliary Care
07/01/2016,"REGENERATION, PLANNING & NEIGHBOURHOODS",Parkeon Ltd,"PURCHASE - EQUIPMENT, FURNITURE AND MATERIALS","1,260.60",Street & Traffic Management.Parking.Equipment
07/01/2016,ADULT SOCIAL CARE,Enterprise Care Support Ltd,DOMICILIARY CARE - THIRD PARTY,"1,250.62",Social Community Care Supplies & Service.Adult.Residential Care
07/01/2016,"REGENERATION, PLANNING & NEIGHBOURHOODS",Parkeon Ltd,"PURCHASE - EQUIPMENT, FURNITURE AND MATERIALS","1,241.50",Street & Traffic Management.Parking.Equipment
07/01/2016,ADULT SOCIAL CARE,Xtracare Agency Ltd,DOMICILIARY CARE - THIRD PARTY,"1,104.00",Social Community Care Supplies & Service.Adult.Domiciliary Care
07/01/2016,ADULT SOCIAL CARE,Xtracare Agency Ltd,DOMICILIARY CARE - THIRD PARTY,"1,088.00",Social Community Care Supplies & Service.Adult.Domiciliary Care
07/01/2016,ADULT SOCIAL CARE,Capital Homecare (UK) Ltd,DOMICILIARY CARE - THIRD PARTY,"1,037.28",Social Community Care Supplies & Service.Adult.Domiciliary Care
07/01/2016,ADULT SOCIAL CARE,Oasis Care & Training Agency,DOMICILIARY CARE - THIRD PARTY,"1,020.32",Social Community Care Supplies & Service.Adult.Domiciliary Care
07/01/2016,ADULT SOCIAL CARE,Westminster Homecare Limited,DOMICILIARY CARE - THIRD PARTY,"1,018.88",Social Community Care Supplies & Service.Adult.Domiciliary Care
07/01/2016,ADULT SOCIAL CARE,Capital Homecare (UK) Ltd,DOMICILIARY CARE - THIRD PARTY,"1,016.90",Social Community Care Supplies & Service.Adult.Domiciliary Care
07/01/2016,"REGENERATION, PLANNING & NEIGHBOURHOODS",Parkeon Ltd,"PURCHASE - EQUIPMENT, FURNITURE AND MATERIALS","1,006.00",Street & Traffic Management.Parking.Equipment
07/01/2016,ADULT SOCIAL CARE,Youth Graces (UK) Ltd,DOMICILIARY CARE - THIRD PARTY,966.00,Social Community Care Supplies & Service.Adult.Domiciliary Care
07/01/2016,ADULT SOCIAL CARE,Capital Homecare (UK) Ltd,DOMICILIARY CARE - THIRD PARTY,875.64,Social Community Care Supplies & Service.Adult.Domiciliary Care
07/01/2016,ADULT SOCIAL CARE,Capital Homecare (UK) Ltd,DOMICILIARY CARE - THIRD PARTY,875.64,Social Community Care Supplies & Service.Adult.Domiciliary Care
07/01/2016,ADULT SOCIAL CARE,Capital Homecare (UK) Ltd,DOMICILIARY CARE - THIRD PARTY,875.64,Social Community Care Supplies & Service.Adult.Domiciliary Care
07/01/2016,ADULT SOCIAL CARE,Enterprise Care Support Ltd,DOMICILIARY CARE - THIRD PARTY,870.00,Social Community Care Supplies & Service.Adult.Residential Care
07/01/2016,ADULT SOCIAL CARE,Oasis Care & Training Agency,DOMICILIARY CARE - THIRD PARTY,829.06,Social Community Care Supplies & Service.Adult.Domiciliary Care
07/01/2016,CHILDREN'S SERVICES,Geneva Health,DOMICILIARY CARE - THIRD PARTY,810.50,Healthcare.Services.NA
07/01/2016,ADULT SOCIAL CARE,Capital Homecare (UK) Ltd,DOMICILIARY CARE - THIRD PARTY,793.22,Social Community Care Supplies & Service.Adult.Domiciliary Care
07/01/2016,CHILDREN'S SERVICES,Geneva Health,DOMICILIARY CARE - THIRD PARTY,773.00,Healthcare.Services.NA
07/01/2016,CHILDREN'S SERVICES,Geneva Health,DOMICILIARY CARE - THIRD PARTY,773.00,Healthcare.Services.NA
07/01/2016,CHILDREN'S SERVICES,Geneva Health,DOMICILIARY CARE - THIRD PARTY,773.00,Healthcare.Services.NA
07/01/2016,HUMAN RESOURCES AND ORGANISATIONAL DEVELOPMENT (HRA),GovNet Communications,"ADVERTISING, PUBLICITY AND MARKETING",770.00,Facilities & Management Services.Public Relations & Image.NA
07/01/2016,ADULT SOCIAL CARE,Westminster Homecare Limited,DOMICILIARY CARE - THIRD PARTY,768.14,Social Community Care Supplies & Service.Adult.Domiciliary Care
07/01/2016,ADULT SOCIAL CARE,Capital Homecare (UK) Ltd,DOMICILIARY CARE - THIRD PARTY,746.84,Social Community Care Supplies & Service.Adult.Domiciliary Care
07/01/2016,ADULT SOCIAL CARE,Capital Homecare (UK) Ltd,DOMICILIARY CARE - THIRD PARTY,746.84,Social Community Care Supplies & Service.Adult.Domiciliary Care
07/01/2016,ADULT SOCIAL CARE,Capital Homecare (UK) Ltd,DOMICILIARY CARE - THIRD PARTY,746.84,Social Community Care Supplies & Service.Adult.Domiciliary Care
07/01/2016,ADULT SOCIAL CARE,Capital Homecare (UK) Ltd,DOMICILIARY CARE - THIRD PARTY,746.84,Social Community Care Supplies & Service.Adult.Domiciliary Care
07/01/2016,ADULT SOCIAL CARE,Enterprise Care Support Ltd,DOMICILIARY CARE - THIRD PARTY,746.74,Social Community Care Supplies & Service.Adult.Residential Care
07/01/2016,ADULT SOCIAL CARE,Capital Homecare (UK) Ltd,DOMICILIARY CARE - THIRD PARTY,718.46,Social Community Care Supplies & Service.Adult.Domiciliary Care
07/01/2016,ADULT SOCIAL CARE,Oasis Care & Training Agency,DOMICILIARY CARE - THIRD PARTY,697.82,Social Community Care Supplies & Service.Adult.Domiciliary Care
07/01/2016,CHILDREN'S SERVICES,Geneva Health,DOMICILIARY CARE - THIRD PARTY,696.00,Healthcare.Services.NA
07/01/2016,ADULT SOCIAL CARE,Oasis Care & Training Agency,DOMICILIARY CARE - THIRD PARTY,664.88,Social Community Care Supplies & Service.Adult.Domiciliary Care
07/01/2016,ADULT SOCIAL CARE,Oasis Care & Training Agency,DOMICILIARY CARE - THIRD PARTY,654.12,Social Community Care Supplies & Service.Adult.Domiciliary Care
07/01/2016,ADULT SOCIAL CARE,Youth Graces (UK) Ltd,DOMICILIARY CARE - THIRD PARTY,644.00,Social Community Care Supplies & Service.Adult.Domiciliary Care
07/01/2016,ADULT SOCIAL CARE,Youth Graces (UK) Ltd,DOMICILIARY CARE - THIRD PARTY,644.00,Social Community Care Supplies & Service.Adult.Domiciliary Care
07/01/2016,ADULT SOCIAL CARE,Emerald Care Services (UK) Ltd,DOMICILIARY CARE - THIRD PARTY,627.20,Social Community Care Supplies & Service.Adult.Domiciliary Care
07/01/2016,ADULT SOCIAL CARE,Emerald Care Services (UK) Ltd,DOMICILIARY CARE - THIRD PARTY,627.20,Social Community Care Supplies & Service.Adult.Domiciliary Care
07/01/2016,ADULT SOCIAL CARE,Emerald Care Services (UK) Ltd,DOMICILIARY CARE - THIRD PARTY,627.20,Social Community Care Supplies & Service.Adult.Domiciliary Care
07/01/2016,ADULT SOCIAL CARE,Westminster Homecare Limited,DOMICILIARY CARE - THIRD PARTY,612.92,Social Community Care Supplies & Service.Adult.Domiciliary Care
07/01/2016,CHILDREN'S SERVICES,Geneva Health,DOMICILIARY CARE - THIRD PARTY,597.00,Healthcare.Services.NA
07/01/2016,BUSINESS & CUSTOMER SERVICES,Contract Natural Gas Ltd,GAS,591.64,Utilities.Gas.NA
07/01/2016,ADULT SOCIAL CARE,Capital Homecare (UK) Ltd,DOMICILIARY CARE - THIRD PARTY,590.82,Social Community Care Supplies & Service.Adult.Domiciliary Care
07/01/2016,ADULT SOCIAL CARE,Oasis Care & Training Agency,DOMICILIARY CARE - THIRD PARTY,590.47,Social Community Care Supplies & Service.Adult.Domiciliary Care
07/01/2016,"REGENERATION, PLANNING & NEIGHBOURHOODS",Unique Office Solutions Ltd,"PURCHASE - EQUIPMENT, FURNITURE AND MATERIALS",586.53,Furniture & Soft Furnishings.Office Furniture.NA
07/01/2016,CHILDREN'S SERVICES,Geneva Health,DOMICILIARY CARE - THIRD PARTY,574.00,Healthcare.Services.NA
07/01/2016,"REGENERATION, PLANNING & NEIGHBOURHOODS",Red Lion Chambers,LEGAL FEES,566.67,Legal Services.General Support.NA
07/01/2016,ADULT SOCIAL CARE,Capital Homecare (UK) Ltd,DOMICILIARY CARE - THIRD PARTY,560.13,Social Community Care Supplies & Service.Adult.Domiciliary Care
07/01/2016,CHILDREN'S SERVICES,Geneva Health,DOMICILIARY CARE - THIRD PARTY,555.50,Healthcare.Services.NA
07/01/2016,"REGENERATION, PLANNING & NEIGHBOURHOODS",Paul Francis,ARTS AND LEISURE COSTS,540.00,Arts & Leisure Services.Organised Activities.NA
07/01/2016,ADULT SOCIAL CARE,Emerald Care Services (UK) Ltd,DOMICILIARY CARE - THIRD PARTY,532.00,Social Community Care Supplies & Service.Adult.Domiciliary Care
07/01/2016,ADULT SOCIAL CARE,Emerald Care Services (UK) Ltd,DOMICILIARY CARE - THIRD PARTY,532.00,Social Community Care Supplies & Service.Adult.Domiciliary Care
07/01/2016,CHILDREN'S SERVICES,Geneva Health,DOMICILIARY CARE - THIRD PARTY,518.50,Healthcare.Services.NA
07/01/2016,CHILDREN'S SERVICES,Geneva Health,DOMICILIARY CARE - THIRD PARTY,503.00,Healthcare.Services.NA
07/01/2016,CHILDREN'S SERVICES,Geneva Health,DOMICILIARY CARE - THIRD PARTY,503.00,Healthcare.Services.NA
07/01/2016,STRATEGY & COMMISSIONING - HOUSING & COMMUNITIES (HRA),Regenter Myatts Field North Ltd,"MAINTENANCE - EQUIPMENT, FURNITURE AND MATERIALS","(1,335,965.21)","Works - Construction, Repair & Maint.Buildings.Construction"
08/01/2016,CAPITAL CC,Neilcott Construction Ltd,BUILDING ALTERATIONS AND MATERIALS,"61,970.08","Works - Construction, Repair & Maint.Buildings.Construction"
08/01/2016,CHILDREN'S SERVICES,Prime Time Recruitment Ltd,PRIVATE CONTRACTORS PAYMENT - OTHER,"52,109.53",Social Community Care Supplies & Service.Children.NA
08/01/2016,"REGENERATION, PLANNING & NEIGHBOURHOODS",Liberty Printers Ltd,PRINTING,"28,112.39",Facilities & Management Services.Printing.NA
08/01/2016,CAPITAL CC,Trees for Cities,GROUNDS MAINTENANCE,"17,000.00",Horticultural.Tree Trimming.NA
08/01/2016,"REGENERATION, PLANNING & NEIGHBOURHOODS",Furnace Managed Services Ltd,BEREAVEMENT SERVICES EQUIPMENT,"12,093.00",Cemetery & Crematorium.Equipment.NA
08/01/2016,"REGENERATION, PLANNING & NEIGHBOURHOODS",Furnace Managed Services Ltd,BEREAVEMENT SERVICES EQUIPMENT,"12,093.00",Cemetery & Crematorium.Equipment.NA
08/01/2016,EDUCATION & LEARNING,Parayhouse School,PROFESSIONAL SERVICES - GENERAL,"9,180.00",Education.School Services.NA
08/01/2016,ADULT SOCIAL CARE,Radha Consulting Ltd,PRIVATE CONTRACTORS PAYMENT - OTHER,"4,160.00",Social Community Care Supplies & Service.Adult.Mental Health Services
08/01/2016,ADULT SOCIAL CARE,Tunstall Group Ltd,PRIVATE CONTRACTORS PAYMENT - OTHER,"3,877.50",Social Community Care Supplies & Service.Adult.Residential Care
08/01/2016,"REGENERATION, PLANNING & NEIGHBOURHOODS",St Giles Trust,PRIVATE CONTRACTORS PAYMENT - OTHER,"3,750.00",Social Community Care Supplies & Service.Adult.Advice & Counselling Services
08/01/2016,ADULT SOCIAL CARE,Radha Consulting Ltd,PRIVATE CONTRACTORS PAYMENT - OTHER,"3,637.40",Social Community Care Supplies & Service.Adult.Mental Health Services
08/01/2016,FINANCE,Hays Specialist Recruitment,STAFF RECRUITMENT COSTS,"3,212.00",Human Resources.Recruitment & Assessment.NA
08/01/2016,"REGENERATION, PLANNING & NEIGHBOURHOODS",Furnace Managed Services Ltd,BEREAVEMENT SERVICES EQUIPMENT,"3,193.78",Cemetery & Crematorium.Equipment.NA
08/01/2016,CHILDREN'S SERVICES,National Fostering Agency,IN HOUSE FOSTER CARE PLACEMENTS - PRIVATE CONTRACTORS PAYMENT,"2,991.48",Social Community Care Supplies & Service.Children.Fostering
08/01/2016,"REGENERATION, PLANNING & NEIGHBOURHOODS",Southwark Newspaper Ltd,"ADVERTISING, PUBLICITY AND MARKETING","2,280.00",Facilities & Management Services.Advertising.Statutory
08/01/2016,FINANCE,Automotive Leasing Ltd,VEHICLE LEASES,"2,102.98",Vehicle Management.Leasing.NA
08/01/2016,HOUSING MANAGEMENT SERVICES,The High Street Gift Voucher Ltd,FACILITIES MANAGEMENT,"1,970.00",Facilities & Management Services.Retail.NA
08/01/2016,ADULT SOCIAL CARE,Brigstock House,RESPITE CARE - PRIVATE CONTRACTORS PAYMENT,"1,930.00",Social Community Care Supplies & Service.Children.NA
08/01/2016,ADULT SOCIAL CARE,Capital Homecare (UK) Ltd,DOMICILIARY CARE - THIRD PARTY,"1,786.40",Social Community Care Supplies & Service.Adult.Domiciliary Care
08/01/2016,"REGENERATION, PLANNING & NEIGHBOURHOODS",Regeneris Consulting Ltd,CONSULTANCY FEES,"1,561.00",Consultancy.Technical & Feasibility.NA
08/01/2016,ADULT SOCIAL CARE,Sunrise Home Care Services Ltd,DOMICILIARY CARE - THIRD PARTY,"1,374.50",Social Community Care Supplies & Service.Adult.Day Care
08/01/2016,ADULT SOCIAL CARE,CT Plus (hackney),DIRECT TRANSPORT,"1,260.63",Public Transport.Passenger Transport.NA
08/01/2016,POLICY & COMMUNICATIONS,"Fiorentino, Mr. Lee_d","ADVERTISING, PUBLICITY AND MARKETING","1,200.00",Facilities & Management Services.Advertising.NA
08/01/2016,MAJOR CAPITAL PROGRAMMES,Unique Office Solutions Ltd,"PURCHASE - EQUIPMENT, FURNITURE AND MATERIALS","1,050.00",Furniture & Soft Furnishings.Office Furniture.NA
08/01/2016,EDUCATION & LEARNING,Sw Energy Ltd,GAS,987.18,Utilities.Gas.NA
08/01/2016,CAPITAL CC,MLM Consulting Engineers Ltd,PROFESSIONAL SERVICES - GENERAL,925.93,Consultancy.Property.NA
08/01/2016,EDUCATION & LEARNING,Bolney Meadow Community Centre CIC,PREMISES HIRE - FACILITIES,895.00,Facilities & Management Services.Room Hire.NA
08/01/2016,POLICY & COMMUNICATIONS,Whatever Design Ltd,DESIGN AND PHOTOGRAPHIC COSTS,880.00,Facilities & Management Services.Design & Photography.NA
08/01/2016,FINANCE,Automotive Leasing Ltd,VEHICLE LEASES,802.77,Vehicle Management.Leasing.NA
08/01/2016,"REGENERATION, PLANNING & NEIGHBOURHOODS",CACI Ltd,ICT MAINTENANCE AND SUPPORT,800.00,Information Communication Technology.Services.Maintenance & Support
08/01/2016,ADULT SOCIAL CARE,London Hire Ltd,VEHICLE HIRE,795.00,Vehicle Management.Hire.NA
08/01/2016,BUSINESS TRANSFORMATION,Canon (UK) Ltd,PHOTOCOPYING,760.00,Facilities & Management Services.Reprographics.NA
08/01/2016,ADULT SOCIAL CARE,Radha Consulting Ltd,PRIVATE CONTRACTORS PAYMENT - OTHER,692.00,Social Community Care Supplies & Service.Adult.Mental Health Services
08/01/2016,"REGENERATION, PLANNING & NEIGHBOURHOODS",RSP Rail Travel Account,DIRECT TRANSPORT,633.50,Public Transport.Passenger Transport.NA
08/01/2016,FINANCE,Automotive Leasing Ltd,VEHICLE LEASES,580.00,Vehicle Management.Leasing.NA
08/01/2016,CORPORATE AFFAIRS,"Arub, Mrs. Limi_d",LEGAL FEES,554.68,Legal Services.General Support.NA
08/01/2016,ADULT SOCIAL CARE,"Gittens, Miss Patricia_d",LEGAL FEES,540.00,Legal Services.General Support.NA
08/01/2016,FINANCE,Automotive Leasing Ltd,VEHICLE LEASES,526.90,Vehicle Management.Leasing.NA
08/01/2016,ADULT SOCIAL CARE,Sunrise Home Care Services Ltd,DOMICILIARY CARE - THIRD PARTY,525.32,Social Community Care Supplies & Service.Adult.Day Care
08/01/2016,FINANCE,Automotive Leasing Ltd,VEHICLE LEASES,513.90,Vehicle Management.Leasing.NA
08/01/2016,BUSINESS TRANSFORMATION,Canon (UK) Ltd,PHOTOCOPYING,(760.00),Facilities & Management Services.Reprographics.NA
11/01/2016,HUMAN RESOURCES AND ORGANISATIONAL DEVELOPMENT,Matrix SCM Ltd,AGENCY STAFF,"263,275.14",Human Resources.Temporary & Agency Staff.NA
11/01/2016,"REGENERATION, PLANNING & NEIGHBOURHOODS",Lambeth Lighting Services,"PURCHASE - EQUIPMENT, FURNITURE AND MATERIALS","223,051.74",Highway Equipment & Materials.Street Lighting.NA
11/01/2016,CAPITAL CC,Muse Developments Ltd,"MAINTENANCE - EQUIPMENT, FURNITURE AND MATERIALS","114,906.00","Works - Construction, Repair & Maint.Architect.NA"
11/01/2016,BUSINESS TRANSFORMATION,Specialist Computer Centers Plc,ICT MAINTENANCE AND SUPPORT,"67,514.36",Information Communication Technology.Services.NA
11/01/2016,CHILDREN'S SERVICES,The Hesley Group Ltd,RESIDENTIAL PLACEMENTS - PRIVATE CONTRACTORS PAYMENT,"63,806.74",Social Community Care Supplies & Service.Children.Residential Care
11/01/2016,EDUCATION & LEARNING,Healthcare & Transport Services,CLIENT TRANSPORT,"13,992.18",Public Transport.Taxi Services.NA
11/01/2016,"REGENERATION, PLANNING & NEIGHBOURHOODS",Thames Water Utilities Ltd_d,WATER AND SEWERAGE,"8,239.96",Utilities.Water.NA
11/01/2016,ADULT SOCIAL CARE,Manon House,RESIDENTIAL PLACEMENTS - PRIVATE CONTRACTORS PAYMENT,"5,757.15","Social Community Care Supplies & Service.Adult.Temporary Accommodation, Long Stay"
11/01/2016,"STRATEGY & COMMISSIONING - CHILDREN, DISABILITIES & PUBLIC HEALTH",Streatham Youth & Community Trust_d,PRIVATE CONTRACTORS PAYMENT - OTHER,"5,246.00",Social Community Care Supplies & Service.Children.Childcare Services
11/01/2016,"REGENERATION, PLANNING & NEIGHBOURHOODS",Royal Borough of Greenwich,BEREAVEMENT SERVICES EQUIPMENT,"5,200.00",Cemetery & Crematorium.Burial & Cremation.NA
11/01/2016,CHILDREN'S SERVICES,Evolve Housing & Support,RENTS PAYABLE,"4,630.89","Social Community Care Supplies & Service.Adult.Temporary Accommodation, Short Stay"
11/01/2016,EDUCATION & LEARNING,AMI Consultancy and Training Ltd,PAYMENT TO HEALTH AUTHORITIES,"4,500.00",Healthcare.Services.NA
11/01/2016,CHILDREN'S SERVICES,Wansdyke Security Ltd,STORAGE AND ARCHIVING,"3,344.86",Facilities & Management Services.Document Archiving & Storage.NA
11/01/2016,"REGENERATION, PLANNING & NEIGHBOURHOODS",Viridor Waste Management Ltd,REFUSE COLLECTION,"3,159.97",Environmental Services.Waste Management.Waste Collection
11/01/2016,CHILDREN'S SERVICES,Evolve Housing & Support,RENTS PAYABLE,"3,075.29","Social Community Care Supplies & Service.Adult.Temporary Accommodation, Short Stay"
11/01/2016,CHILDREN'S SERVICES,Evolve Housing & Support,RENTS PAYABLE,"3,010.54","Social Community Care Supplies & Service.Adult.Temporary Accommodation, Short Stay"
11/01/2016,CHILDREN'S SERVICES,Evolve Housing & Support,RENTS PAYABLE,"2,622.09","Social Community Care Supplies & Service.Adult.Temporary Accommodation, Short Stay"
11/01/2016,POLICY & COMMUNICATIONS,Joe Coney,CONSULTANCY FEES,"2,500.00",Consultancy.Business.NA
11/01/2016,CHILDREN'S SERVICES,Evolve Housing & Support,RENTS PAYABLE,"2,460.23","Social Community Care Supplies & Service.Adult.Temporary Accommodation, Short Stay"
11/01/2016,"REGENERATION, PLANNING & NEIGHBOURHOODS",King's College London,CONSULTANCY FEES,"1,900.00","Works - Construction, Repair & Maint.Consultancy.NA"
11/01/2016,ADULT SOCIAL CARE,Youth Graces (UK) Ltd,DOMICILIARY CARE - THIRD PARTY,"1,711.50",Social Community Care Supplies & Service.Adult.Domiciliary Care
11/01/2016,ADULT SOCIAL CARE,Youth Graces (UK) Ltd,DOMICILIARY CARE - THIRD PARTY,"1,704.50",Social Community Care Supplies & Service.Adult.Domiciliary Care
11/01/2016,ADULT SOCIAL CARE,Youth Graces (UK) Ltd,DOMICILIARY CARE - THIRD PARTY,"1,624.00",Social Community Care Supplies & Service.Adult.Domiciliary Care
11/01/2016,ADULT SOCIAL CARE,Youth Graces (UK) Ltd,DOMICILIARY CARE - THIRD PARTY,"1,624.00",Social Community Care Supplies & Service.Adult.Domiciliary Care
11/01/2016,ADULT SOCIAL CARE,Youth Graces (UK) Ltd,DOMICILIARY CARE - THIRD PARTY,"1,417.50",Social Community Care Supplies & Service.Adult.Domiciliary Care
11/01/2016,ADULT SOCIAL CARE,Stockwellcare Support Services Ltd,DOMICILIARY CARE - THIRD PARTY,"1,379.28",Healthcare.Public Health.NA
11/01/2016,ADULT SOCIAL CARE,Apetito Ltd,CATERING AND VENDING SUPPLIES,"1,357.32",Catering.Food & Beverages.NA
11/01/2016,CHILDREN'S SERVICES,Evolve Housing & Support,RENTS PAYABLE,"1,327.23","Social Community Care Supplies & Service.Adult.Temporary Accommodation, Short Stay"
11/01/2016,ADULT SOCIAL CARE,Harmony Home Aid Services Ltd,DOMICILIARY CARE - THIRD PARTY,"1,149.12",Social Community Care Supplies & Service.Adult.Residential Care
11/01/2016,POLICY & COMMUNICATIONS,Joe Coney,CONSULTANCY FEES,"1,000.00",Consultancy.Business.NA
11/01/2016,ADULT SOCIAL CARE,Youth Graces (UK) Ltd,DOMICILIARY CARE - THIRD PARTY,983.50,Social Community Care Supplies & Service.Adult.Domiciliary Care
11/01/2016,"STRATEGY & COMMISSIONING - CHILDREN, DISABILITIES & PUBLIC HEALTH",Thames Water Utilities Ltd_d,WATER AND SEWERAGE,954.30,Utilities.Water.NA
11/01/2016,ADULT SOCIAL CARE,Stockwellcare Support Services Ltd,DOMICILIARY CARE - THIRD PARTY,948.36,Healthcare.Public Health.NA
11/01/2016,ADULT SOCIAL CARE,Oasis Care & Training Agency,DOMICILIARY CARE - THIRD PARTY,912.52,Social Community Care Supplies & Service.Adult.Domiciliary Care
11/01/2016,ADULT SOCIAL CARE,Oasis Care & Training Agency,DOMICILIARY CARE - THIRD PARTY,897.44,Social Community Care Supplies & Service.Adult.Domiciliary Care
11/01/2016,ADULT SOCIAL CARE,Harmony Home Aid Services Ltd,DOMICILIARY CARE - THIRD PARTY,766.08,Social Community Care Supplies & Service.Adult.Residential Care
11/01/2016,ADULT SOCIAL CARE,Youth Graces (UK) Ltd,DOMICILIARY CARE - THIRD PARTY,742.00,Social Community Care Supplies & Service.Adult.Domiciliary Care
11/01/2016,ADULT SOCIAL CARE,Youth Graces (UK) Ltd,DOMICILIARY CARE - THIRD PARTY,742.00,Social Community Care Supplies & Service.Adult.Domiciliary Care
11/01/2016,EDUCATION & LEARNING,Dolphin Computer Access Ltd,SPECIALIST EQUIPMENT FOR SERVICE PROVISION,668.66,Social Community Care Supplies & Service.Supplies.Equipment
11/01/2016,"REGENERATION, PLANNING & NEIGHBOURHOODS",Thames Water Utilities Ltd_d,WATER AND SEWERAGE,644.55,Utilities.Water.NA
11/01/2016,ADULT SOCIAL CARE,Youth Graces (UK) Ltd,DOMICILIARY CARE - THIRD PARTY,644.00,Social Community Care Supplies & Service.Adult.Domiciliary Care
11/01/2016,ADULT SOCIAL CARE,Youth Graces (UK) Ltd,DOMICILIARY CARE - THIRD PARTY,633.50,Social Community Care Supplies & Service.Adult.Domiciliary Care
11/01/2016,ADULT SOCIAL CARE,Stockwellcare Support Services Ltd,DOMICILIARY CARE - THIRD PARTY,617.24,Healthcare.Public Health.NA
11/01/2016,ADULT SOCIAL CARE,Oasis Care & Training Agency,DOMICILIARY CARE - THIRD PARTY,580.43,Social Community Care Supplies & Service.Adult.Domiciliary Care
11/01/2016,BUSINESS TRANSFORMATION,Vodafone Ltd,LAND LINE TELEPHONE COSTS,562.77,Information Communication Technology.Telecommunications.NA
11/01/2016,BUSINESS TRANSFORMATION,Vodafone Ltd,LAND LINE TELEPHONE COSTS,562.77,Information Communication Technology.Telecommunications.NA
11/01/2016,ADULT SOCIAL CARE,A* Transport Ltd,CLIENT TRANSPORT,550.00,Public Transport.Passenger Transport.NA
11/01/2016,"STRATEGY & COMMISSIONING - CHILDREN, DISABILITIES & PUBLIC HEALTH",Enter Here LLP,CONSULTANCY FEES,540.00,Consultancy.Management.Efficiency
11/01/2016,ADULT SOCIAL CARE,Stockwellcare Support Services Ltd,DOMICILIARY CARE - THIRD PARTY,518.44,Healthcare.Public Health.NA
11/01/2016,ADULT SOCIAL CARE,Stockwellcare Support Services Ltd,DOMICILIARY CARE - THIRD PARTY,516.34,Healthcare.Public Health.NA
11/01/2016,ADULT SOCIAL CARE,Oasis Care & Training Agency,DOMICILIARY CARE - THIRD PARTY,503.18,Social Community Care Supplies & Service.Adult.Domiciliary Care
11/01/2016,BUSINESS TRANSFORMATION,Vodafone Ltd,LAND LINE TELEPHONE COSTS,(562.77),Information Communication Technology.Telecommunications.NA
12/01/2016,"REGENERATION, PLANNING & NEIGHBOURHOODS",Cycle Confident Ltd,ARTS AND LEISURE COSTS,"118,189.98",Arts & Leisure Services.Sport & Fitness.NA
12/01/2016,"STRATEGY & COMMISSIONING - CHILDREN, DISABILITIES & PUBLIC HEALTH",Women In Prison,ASYLUM SEEKERS - PRIVATE CONTRACTORS PAYMENT,"86,878.00",Social Community Care Supplies & Service.Adult.Asylum Seekers Services
12/01/2016,CAPITAL CC,T Brown Group Ltd_d,BUILDING ALTERATIONS AND MATERIALS,"51,757.21",Building Construction Materials.Heating & Air Conditioning.NA
12/01/2016,BUSINESS & CUSTOMER SERVICES,Community Health Partnerships Ltd,RENTS PAYABLE,"34,065.54",Financial Services.Rents.NA
12/01/2016,BUSINESS & CUSTOMER SERVICES,Community Health Partnerships Ltd,RENTS PAYABLE,"31,708.07",Financial Services.Rents.NA
12/01/2016,BUSINESS & CUSTOMER SERVICES,Community Health Partnerships Ltd,RENTS PAYABLE,"31,708.07",Financial Services.Rents.NA
12/01/2016,BUSINESS & CUSTOMER SERVICES,Community Health Partnerships Ltd,RENTS PAYABLE,"31,708.07",Financial Services.Rents.NA
12/01/2016,BUSINESS & CUSTOMER SERVICES,Community Health Partnerships Ltd,RENTS PAYABLE,"31,708.07",Financial Services.Rents.NA
12/01/2016,"STRATEGY & COMMISSIONING - CHILDREN, DISABILITIES & PUBLIC HEALTH",A+ Education Ltd,PROFESSIONAL SERVICES - GENERAL,"29,564.00",Education.School Services.NA
12/01/2016,CAPITAL CC,Morrison Facilities Services Ltd_d,FACILITIES MANAGEMENT,"26,817.92","Works - Construction, Repair & Maint.Buildings.Repair & Maintenance"
12/01/2016,STRATEGY & COMMISSIONING - HOUSING & COMMUNITIES,Streatham Common Community Operations Ltd_d,FACILITIES MANAGEMENT,"25,000.00",Facilities & Management Services.Property Management.NA
12/01/2016,EDUCATION & LEARNING,Octavia House Schools Ltd,PROFESSIONAL SERVICES - GENERAL,"15,500.00",Education.School Services.NA
12/01/2016,EDUCATION & LEARNING,Octavia House Schools Ltd,PROFESSIONAL SERVICES - GENERAL,"15,500.00",Education.School Services.NA
12/01/2016,NO RECOURSE TO PUBLIC FUNDS,Home Office,PRIVATE CONTRACTORS PAYMENT - OTHER,"14,613.30",Social Community Care Supplies & Service.Adult.Advice & Counselling Services
12/01/2016,EDUCATION & LEARNING,Octavia House Schools Ltd,PROFESSIONAL SERVICES - GENERAL,"13,000.00",Education.School Services.NA
12/01/2016,EDUCATION & LEARNING,Octavia House Schools Ltd,PROFESSIONAL SERVICES - GENERAL,"13,000.00",Education.School Services.NA
12/01/2016,EDUCATION & LEARNING,Octavia House Schools Ltd,PROFESSIONAL SERVICES - GENERAL,"13,000.00",Education.School Services.NA
12/01/2016,EDUCATION & LEARNING,Octavia House Schools Ltd,PROFESSIONAL SERVICES - GENERAL,"13,000.00",Education.School Services.NA
12/01/2016,EDUCATION & LEARNING,Octavia House Schools Ltd,PROFESSIONAL SERVICES - GENERAL,"13,000.00",Education.School Services.NA
12/01/2016,EDUCATION & LEARNING,Octavia House Schools Ltd,PROFESSIONAL SERVICES - GENERAL,"13,000.00",Education.School Services.NA
12/01/2016,EDUCATION & LEARNING,Octavia House Schools Ltd,PROFESSIONAL SERVICES - GENERAL,"13,000.00",Education.School Services.NA
12/01/2016,EDUCATION & LEARNING,Octavia House Schools Ltd,PROFESSIONAL SERVICES - GENERAL,"13,000.00",Education.School Services.NA
12/01/2016,EDUCATION & LEARNING,Octavia House Schools Ltd,PROFESSIONAL SERVICES - GENERAL,"13,000.00",Education.School Services.NA
12/01/2016,EDUCATION & LEARNING,Octavia House Schools Ltd,PROFESSIONAL SERVICES - GENERAL,"13,000.00",Education.School Services.NA
12/01/2016,EDUCATION & LEARNING,Octavia House Schools Ltd,PROFESSIONAL SERVICES - GENERAL,"13,000.00",Education.School Services.NA
12/01/2016,EDUCATION & LEARNING,Octavia House Schools Ltd,PROFESSIONAL SERVICES - GENERAL,"13,000.00",Education.School Services.NA
12/01/2016,EDUCATION & LEARNING,Octavia House Schools Ltd,PROFESSIONAL SERVICES - GENERAL,"13,000.00",Education.School Services.NA
12/01/2016,EDUCATION & LEARNING,Octavia House Schools Ltd,PROFESSIONAL SERVICES - GENERAL,"13,000.00",Education.School Services.NA
12/01/2016,EDUCATION & LEARNING,Octavia House Schools Ltd,PROFESSIONAL SERVICES - GENERAL,"13,000.00",Education.School Services.NA
12/01/2016,EDUCATION & LEARNING,Octavia House Schools Ltd,PROFESSIONAL SERVICES - GENERAL,"13,000.00",Education.School Services.NA
12/01/2016,EDUCATION & LEARNING,Octavia House Schools Ltd,PROFESSIONAL SERVICES - GENERAL,"13,000.00",Education.School Services.NA
12/01/2016,EDUCATION & LEARNING,Octavia House Schools Ltd,PROFESSIONAL SERVICES - GENERAL,"13,000.00",Education.School Services.NA
12/01/2016,EDUCATION & LEARNING,Octavia House Schools Ltd,PROFESSIONAL SERVICES - GENERAL,"13,000.00",Education.School Services.NA
12/01/2016,EDUCATION & LEARNING,Octavia House Schools Ltd,PROFESSIONAL SERVICES - GENERAL,"13,000.00",Education.School Services.NA
12/01/2016,EDUCATION & LEARNING,Octavia House Schools Ltd,PROFESSIONAL SERVICES - GENERAL,"13,000.00",Education.School Services.NA
12/01/2016,EDUCATION & LEARNING,Octavia House Schools Ltd,PROFESSIONAL SERVICES - GENERAL,"13,000.00",Education.School Services.NA
12/01/2016,EDUCATION & LEARNING,Octavia House Schools Ltd,PROFESSIONAL SERVICES - GENERAL,"13,000.00",Education.School Services.NA
12/01/2016,EDUCATION & LEARNING,Octavia House Schools Ltd,PROFESSIONAL SERVICES - GENERAL,"13,000.00",Education.School Services.NA
12/01/2016,EDUCATION & LEARNING,Octavia House Schools Ltd,PROFESSIONAL SERVICES - GENERAL,"13,000.00",Education.School Services.NA
12/01/2016,EDUCATION & LEARNING,Octavia House Schools Ltd,PROFESSIONAL SERVICES - GENERAL,"13,000.00",Education.School Services.NA
12/01/2016,HOUSING MANAGEMENT SERVICES,Hansen Palomares Solicitors,LEGAL FEES,"12,000.00",Legal Services.Advocacy.NA
12/01/2016,CHILDREN'S SERVICES,Laura Briggs,LEGAL FEES,"10,400.00",Legal Services.Legal Opinion.NA
12/01/2016,EDUCATION & LEARNING,Childhood First Ltd,PRIVATE CONTRACTORS PAYMENT - OTHER,"10,079.43",Social Community Care Supplies & Service.Children.Residential Care
12/01/2016,BUSINESS & CUSTOMER SERVICES,Community Health Partnerships Ltd,RENTS PAYABLE,"7,927.02",Financial Services.Rents.NA
12/01/2016,BUSINESS & CUSTOMER SERVICES,Community Health Partnerships Ltd,RENTS PAYABLE,"7,927.02",Financial Services.Rents.NA
12/01/2016,BUSINESS & CUSTOMER SERVICES,Community Health Partnerships Ltd,RENTS PAYABLE,"7,927.02",Financial Services.Rents.NA
12/01/2016,EDUCATION & LEARNING,Moon Hall Schools Educational Trust,PROFESSIONAL SERVICES - GENERAL,"7,550.00",Education.Educational Placements.NA
12/01/2016,BUSINESS & CUSTOMER SERVICES,Community Health Partnerships Ltd,RENTS PAYABLE,"6,719.22",Financial Services.Rents.NA
12/01/2016,STRATEGY & COMMISSIONING - HOUSING & COMMUNITIES (HRA),Eversheds LLP,LEGAL FEES,"6,703.20",Legal Services.General Support.NA
12/01/2016,CHILDREN'S SERVICES,Fisher Meredith Solicitors,LEGAL FEES,"6,000.00",Legal Services.Advocacy.NA
12/01/2016,HOUSING MANAGEMENT SERVICES,Charles Allotey & Co,LEGAL FEES,"5,750.00",Legal Services.Advocacy.NA
12/01/2016,HOUSING MANAGEMENT SERVICES,Anthony Gold Solicitors,LEGAL FEES,"5,500.00",Legal Services.Advocacy.NA
12/01/2016,"REGENERATION, PLANNING & NEIGHBOURHOODS",Pinsent Masons LLP,LEGAL FEES,"5,275.20",Legal Services.General Support.NA
12/01/2016,EDUCATION & LEARNING,Blossom Lower School & Upper House,PROFESSIONAL SERVICES - GENERAL,"5,250.00",Education.School Services.NA
12/01/2016,STRATEGY & COMMISSIONING - HOUSING & COMMUNITIES (HRA),G L Hockfield & Co Solicitors,LEGAL FEES,"5,124.40",Legal Services.Advocacy.NA
12/01/2016,"REGENERATION, PLANNING & NEIGHBOURHOODS",Christ Church Primary SW9,CONSULTANCY FEES,"5,000.00",Consultancy.Procurement.NA
12/01/2016,HOUSING MANAGEMENT SERVICES,Wainwright and Cummins Solicitors,LEGAL FEES,"4,582.97",Legal Services.Advocacy.NA
12/01/2016,ADULT SOCIAL CARE,BT Global Services,LAND LINE TELEPHONE COSTS,"4,573.19",Information Communication Technology.Telecommunications.Fixed
12/01/2016,"STRATEGY & COMMISSIONING - CHILDREN, DISABILITIES & PUBLIC HEALTH",Oval Events Ltd,PAYMENT TO HEALTH AUTHORITIES,"4,432.50",Healthcare.Public Health.NA
12/01/2016,BUSINESS & CUSTOMER SERVICES,Pinsent Masons LLP,LEGAL FEES,"3,600.00",Legal Services.General Support.NA
12/01/2016,HOUSING MANAGEMENT SERVICES,Cubism Law,LEGAL FEES,"3,264.00",Legal Services.Advocacy.NA
12/01/2016,CAPITAL CC,Anne Thorne Architects LLP,"MAINTENANCE - EQUIPMENT, FURNITURE AND MATERIALS","3,023.00","Works - Construction, Repair & Maint.Architect.NA"
12/01/2016,CHILDREN'S SERVICES,Supported Fostering Services,FOSTERING AGENCY PLACEMENTS - PRIVATE CONTRACTORS PAYMENT,"2,951.73",Social Community Care Supplies & Service.Children.Fostering
12/01/2016,EDUCATION & LEARNING,Wilson Consulting 1997 Ltd,CONSULTANCY FEES,"2,887.50",Consultancy.Technical & Feasibility.NA
12/01/2016,CHILDREN'S SERVICES,Julia Hughes Ltd,LEGAL FEES,"2,831.40",Human Resources.Recruitment & Assessment.NA
12/01/2016,CHILDREN'S SERVICES,Domestic Violence Intervention Project,SECTION 17 - PRIVATE CONTRACTORS PAYMENT,"2,745.00",Social Community Care Supplies & Service.Adult.Advice & Counselling Services
12/01/2016,"REGENERATION, PLANNING & NEIGHBOURHOODS",Christ Church Primary SW9,CONSULTANCY FEES,"2,712.00",Consultancy.Procurement.NA
12/01/2016,"REGENERATION, PLANNING & NEIGHBOURHOODS",City Height E-Act Academy,PROFESSIONAL SERVICES - GENERAL,"2,712.00",Education.School Services.NA
12/01/2016,STRATEGY & COMMISSIONING - HOUSING & COMMUNITIES,De Cara Consulting Ltd,CONSULTANCY FEES,"2,537.50",Consultancy.Management.NA
12/01/2016,ADULT SOCIAL CARE,Holistic Community Care Ltd,DOMICILIARY CARE - THIRD PARTY,"2,461.01",Social Community Care Supplies & Service.Adult.Domiciliary Care
12/01/2016,ADULT SOCIAL CARE,Tendercare 4 You Ltd,DOMICILIARY CARE - THIRD PARTY,"2,336.00",Social Community Care Supplies & Service.Adult.Domiciliary Care
12/01/2016,CHILDREN'S SERVICES,HMCTS,LEGAL FEES,"2,210.00",Legal Services.General Support.NA
12/01/2016,CHILDREN'S SERVICES,HMCTS,LEGAL FEES,"2,055.00",Legal Services.General Support.NA
12/01/2016,CHILDREN'S SERVICES,HMCTS,LEGAL FEES,"2,055.00",Legal Services.General Support.NA
12/01/2016,CHILDREN'S SERVICES,HMCTS,LEGAL FEES,"2,055.00",Legal Services.General Support.NA
12/01/2016,CHILDREN'S SERVICES,HMCTS,LEGAL FEES,"2,055.00",Legal Services.General Support.NA
12/01/2016,CHILDREN'S SERVICES,HMCTS,LEGAL FEES,"2,055.00",Legal Services.General Support.NA
12/01/2016,BUSINESS TRANSFORMATION,Vodafone Ltd,LAND LINE TELEPHONE COSTS,"1,983.09",Information Communication Technology.Telecommunications.NA
12/01/2016,STRATEGY & COMMISSIONING - HOUSING & COMMUNITIES,De Cara Consulting Ltd,CONSULTANCY FEES,"1,812.50",Consultancy.Management.NA
12/01/2016,"STRATEGY & COMMISSIONING - CHILDREN, DISABILITIES & PUBLIC HEALTH",PR Academy Ltd,STAFF DEVELOPMENT AND TRAINING,"1,795.00",Human Resources.Training & Conferences.Training
12/01/2016,EDUCATION & LEARNING,Access Mobility Transport Ltd,DIRECT TRANSPORT,"1,680.00",Public Transport.Passenger Transport.NA
12/01/2016,EDUCATION & LEARNING,Access Mobility Transport Ltd,DIRECT TRANSPORT,"1,680.00",Public Transport.Passenger Transport.NA
12/01/2016,CHILDREN'S SERVICES,Sisk Social Work Consulting,LEGAL FEES,"1,544.25",Legal Services.Advocacy.NA
12/01/2016,HOUSING NEEDS,Hamed Zovidavi,LEGAL FEES,"1,500.00",Legal Services.Legal Opinion.NA
12/01/2016,HUMAN RESOURCES AND ORGANISATIONAL DEVELOPMENT,JP Consultancy & Interim Services Ltd,STAFF RECRUITMENT COSTS,"1,250.00",Human Resources.Recruitment & Assessment.NA
12/01/2016,CHILDREN'S SERVICES,Dr Michael Coren,LEGAL FEES,"1,200.00",Legal Services.Advocacy.NA
12/01/2016,ADULT SOCIAL CARE,Rhys Hadden,LEGAL FEES,"1,013.00",Legal Services.Legal Opinion.NA
12/01/2016,"STRATEGY & COMMISSIONING - CHILDREN, DISABILITIES & PUBLIC HEALTH",PR Academy Ltd,STAFF DEVELOPMENT AND TRAINING,960.00,Human Resources.Training & Conferences.Training
12/01/2016,ADULT SOCIAL CARE,Tony Harrop-Griffiths,LEGAL FEES,945.00,Legal Services.Legal Opinion.NA
12/01/2016,HOUSING MANAGEMENT SERVICES,Desmond Kilcoyne,LEGAL FEES,925.00,Legal Services.Legal Opinion.NA
12/01/2016,"REGENERATION, PLANNING & NEIGHBOURHOODS",Adam Payter,LEGAL FEES,900.00,Legal Services.Legal Opinion.NA
12/01/2016,ADULT SOCIAL CARE,Holistic Community Care Ltd,DOMICILIARY CARE - THIRD PARTY,836.14,Social Community Care Supplies & Service.Adult.Domiciliary Care
12/01/2016,"REGENERATION, PLANNING & NEIGHBOURHOODS",Climate Integrated Solutions Ltd,CONSULTANCY FEES,792.85,Consultancy.Technical & Feasibility.NA
12/01/2016,HOUSING MANAGEMENT SERVICES,Desmond Kilcoyne,LEGAL FEES,750.00,Legal Services.Legal Opinion.NA
12/01/2016,CHILDREN'S SERVICES,Julia Hughes Ltd,LEGAL FEES,722.30,Human Resources.Recruitment & Assessment.NA
12/01/2016,ADULT SOCIAL CARE,Tony Harrop-Griffiths,LEGAL FEES,720.00,Legal Services.Legal Opinion.NA
12/01/2016,ADULT SOCIAL CARE,Holistic Community Care Ltd,DOMICILIARY CARE - THIRD PARTY,706.84,Social Community Care Supplies & Service.Adult.Domiciliary Care
12/01/2016,CHILDREN'S SERVICES,"Jones, Ms. Jennifer_d","PURCHASE - EQUIPMENT, FURNITURE AND MATERIALS",700.03,Domestic Goods.Commercial.NA
12/01/2016,ADULT SOCIAL CARE,Christine Cooper,LEGAL FEES,650.00,Legal Services.Legal Opinion.NA
12/01/2016,CORPORATE AFFAIRS,TM Search Choice Ltd,LEGAL FEES,625.45,Legal Services.General Support.NA
12/01/2016,HOUSING MANAGEMENT SERVICES,HMCTS,LEGAL FEES,610.00,Legal Services.General Support.NA
12/01/2016,ADULT SOCIAL CARE,Tendercare 4 You Ltd,DOMICILIARY CARE - THIRD PARTY,576.00,Social Community Care Supplies & Service.Adult.Domiciliary Care
12/01/2016,HOUSING MANAGEMENT SERVICES,HMCTS,LEGAL FEES,545.00,Legal Services.General Support.NA
12/01/2016,HOUSING MANAGEMENT SERVICES,HMCTS,LEGAL FEES,545.00,Legal Services.General Support.NA
12/01/2016,HOUSING MANAGEMENT SERVICES,Matthew Feldman,LEGAL FEES,500.00,Legal Services.Advocacy.NA
12/01/2016,"REGENERATION, PLANNING & NEIGHBOURHOODS",James Chegwidden,LEGAL FEES,500.00,Legal Services.Legal Opinion.NA
14/01/2016,"STRATEGY & COMMISSIONING - CHILDREN, DISABILITIES & PUBLIC HEALTH",Guys & St Thomas NHS Foundation Trust,PAYMENT TO HEALTH AUTHORITIES,"4,168,435.00",Healthcare.Public Health.NA
14/01/2016,CAPITAL CC,Mears Ltd,FACILITIES MANAGEMENT,"1,191,458.08","Works - Construction, Repair & Maint.Buildings.Repair & Maintenance"
14/01/2016,CAPITAL CC,Mears Ltd,FACILITIES MANAGEMENT,"218,959.71","Works - Construction, Repair & Maint.Buildings.Repair & Maintenance"
14/01/2016,"STRATEGY & COMMISSIONING - CHILDREN, DISABILITIES & PUBLIC HEALTH",Southside Partnership,PRIVATE CONTRACTORS PAYMENT - OTHER,"170,242.52",Social Community Care Supplies & Service.Adult.Mental Health Services
14/01/2016,BUSINESS & CUSTOMER SERVICES,Interserve Consulting_d,CONSULTANCY FEES,"100,876.76","Works - Construction, Repair & Maint.Consultancy.NA"
14/01/2016,"STRATEGY & COMMISSIONING - CHILDREN, DISABILITIES & PUBLIC HEALTH",One Housing Group,FLOATING SUPPORT SERVICES - PRIVATE CONTRACTORS PAYMENT,"99,240.14",Social Community Care Supplies & Service.Adult.Sheltered Accommodation
14/01/2016,CAPITAL CC,Sandwood Design & Build Ltd,"MAINTENANCE - EQUIPMENT, FURNITURE AND MATERIALS","87,300.00","Works - Construction, Repair & Maint.Buildings.Construction"
14/01/2016,"SENIOR MANAGEMENT - CHILDREN, ADULTS AND HEALTH",NHS Lambeth Clinical Commissioning Group,PAYMENT TO HEALTH AUTHORITIES,"80,656.03",Healthcare.Public Health.NA
14/01/2016,"STRATEGY & COMMISSIONING - CHILDREN, DISABILITIES & PUBLIC HEALTH",South London & Maudsley (nhs) Trust,PRIVATE CONTRACTORS PAYMENT - OTHER,"54,000.00",Social Community Care Supplies & Service.Adult.Alcohol & Drug Rehabilitation
14/01/2016,"STRATEGY & COMMISSIONING - CHILDREN, DISABILITIES & PUBLIC HEALTH",Thames Reach,PRIVATE CONTRACTORS PAYMENT - OTHER,"49,384.28",Social Community Care Supplies & Service.Adult.Homeless Support
14/01/2016,"STRATEGY & COMMISSIONING - CHILDREN, DISABILITIES & PUBLIC HEALTH",Centrepoint Soho Ltd,PRIVATE CONTRACTORS PAYMENT - OTHER,"44,439.84",Social Community Care Supplies & Service.Adult.Homeless Support
14/01/2016,BUSINESS & CUSTOMER SERVICES,Rendall & Rittner Ltd,FACILITIES MANAGEMENT,"42,862.67",Facilities & Management Services.Property Management.NA
14/01/2016,ADULT SOCIAL CARE,Goldknight Trading Ltd,RESPITE CARE - PRIVATE CONTRACTORS PAYMENT,"38,831.97",Social Community Care Supplies & Service.Adult.Mental Health Services
14/01/2016,"STRATEGY & COMMISSIONING - CHILDREN, DISABILITIES & PUBLIC HEALTH",Refuge,FLOATING SUPPORT SERVICES - PRIVATE CONTRACTORS PAYMENT,"37,795.80",Social Community Care Supplies & Service.Adult.Residential Care
14/01/2016,BUSINESS TRANSFORMATION,Landesk UK Ltd,ICT MAINTENANCE AND SUPPORT,"36,375.32",Information Communication Technology.Services.Maintenance & Support
14/01/2016,"STRATEGY & COMMISSIONING - CHILDREN, DISABILITIES & PUBLIC HEALTH",Thames Reach,PRIVATE CONTRACTORS PAYMENT - OTHER,"35,726.92",Social Community Care Supplies & Service.Adult.Homeless Support
14/01/2016,"STRATEGY & COMMISSIONING - CHILDREN, DISABILITIES & PUBLIC HEALTH",Look Ahead Housing & Care Ltd,PRIVATE CONTRACTORS PAYMENT - OTHER,"35,155.08",Social Community Care Supplies & Service.Adult.Advice & Counselling Services
14/01/2016,"STRATEGY & COMMISSIONING - CHILDREN, DISABILITIES & PUBLIC HEALTH",Family Mosaic,PRIVATE CONTRACTORS PAYMENT - OTHER,"33,479.96",Social Community Care Supplies & Service.Adult.Mental Health Services
14/01/2016,"STRATEGY & COMMISSIONING - CHILDREN, DISABILITIES & PUBLIC HEALTH",Riverside ECHG,PRIVATE CONTRACTORS PAYMENT - OTHER,"31,114.24",Social Community Care Supplies & Service.Adult.NA
14/01/2016,"STRATEGY & COMMISSIONING - CHILDREN, DISABILITIES & PUBLIC HEALTH",Look Ahead Housing & Care Ltd,PRIVATE CONTRACTORS PAYMENT - OTHER,"30,376.76",Social Community Care Supplies & Service.Adult.Advice & Counselling Services
14/01/2016,"STRATEGY & COMMISSIONING - CHILDREN, DISABILITIES & PUBLIC HEALTH",Southside Partnership,PRIVATE CONTRACTORS PAYMENT - OTHER,"30,146.97",Social Community Care Supplies & Service.Adult.Mental Health Services
14/01/2016,"STRATEGY & COMMISSIONING - CHILDREN, DISABILITIES & PUBLIC HEALTH",North & East London CSU NHS,PAYMENT TO HEALTH AUTHORITIES,"30,000.00",Healthcare.Public Health.NA
14/01/2016,HOUSING MANAGEMENT SERVICES,The Oyster Partnership Ltd,AGENCY STAFF,"25,625.00",Human Resources.Temporary & Agency Staff.Professional
14/01/2016,STRATEGY & COMMISSIONING - NEIGHBOURHOODS,Brixton Advice Centre,PRIVATE CONTRACTORS PAYMENT - OTHER,"24,807.25",Social Community Care Supplies & Service.Adult.Advice & Counselling Services
14/01/2016,ADULT SOCIAL CARE,Apetito Ltd,MEALS ON WHEELS - PRIVATE CONTRACTORS PAYMENT,"24,777.63",Catering.Food & Beverages.NA
14/01/2016,"STRATEGY & COMMISSIONING - CHILDREN, DISABILITIES & PUBLIC HEALTH",Ekaya Housing Association Ltd,PRIVATE CONTRACTORS PAYMENT - OTHER,"23,738.40","Social Community Care Supplies & Service.Adult.Temporary Accommodation, Short Stay"
14/01/2016,"STRATEGY & COMMISSIONING - CHILDREN, DISABILITIES & PUBLIC HEALTH",Southside Partnership,FLOATING SUPPORT SERVICES - PRIVATE CONTRACTORS PAYMENT,"23,265.22",Social Community Care Supplies & Service.Adult.Mental Health Services
14/01/2016,"STRATEGY & COMMISSIONING - CHILDREN, DISABILITIES & PUBLIC HEALTH",Evolve Housing & Support,PRIVATE CONTRACTORS PAYMENT - OTHER,"22,625.16","Social Community Care Supplies & Service.Adult.Temporary Accommodation, Short Stay"
14/01/2016,"STRATEGY & COMMISSIONING - CHILDREN, DISABILITIES & PUBLIC HEALTH",Lambeth Mencap_d,FLOATING SUPPORT SERVICES - PRIVATE CONTRACTORS PAYMENT,"21,201.76",Social Community Care Supplies & Service.Adult.Domiciliary Care
14/01/2016,"STRATEGY & COMMISSIONING - CHILDREN, DISABILITIES & PUBLIC HEALTH",Saint Mungo Association,PRIVATE CONTRACTORS PAYMENT - OTHER,"21,186.88","Social Community Care Supplies & Service.Adult.Temporary Accommodation, Hostels"
14/01/2016,"STRATEGY & COMMISSIONING - CHILDREN, DISABILITIES & PUBLIC HEALTH",Thames Reach,PRIVATE CONTRACTORS PAYMENT - OTHER,"19,352.20",Social Community Care Supplies & Service.Adult.Homeless Support
14/01/2016,HOUSING MANAGEMENT SERVICES,The Oyster Partnership Ltd,AGENCY STAFF,"18,189.75",Human Resources.Temporary & Agency Staff.Professional
14/01/2016,EDUCATION & LEARNING,Cressey Oasis Education Ltd,PROFESSIONAL SERVICES - GENERAL,"16,924.79",Education.School Services.NA
14/01/2016,CAPITAL CC,Kier Construction Ltd,"MAINTENANCE - EQUIPMENT, FURNITURE AND MATERIALS","16,878.08","Works - Construction, Repair & Maint.Buildings.Construction"
14/01/2016,"STRATEGY & COMMISSIONING - CHILDREN, DISABILITIES & PUBLIC HEALTH",NACRO,PRIVATE CONTRACTORS PAYMENT - OTHER,"16,462.48",Social Community Care Supplies & Service.Adult.NA
14/01/2016,"STRATEGY & COMMISSIONING - CHILDREN, DISABILITIES & PUBLIC HEALTH",Saint Mungo Association,PRIVATE CONTRACTORS PAYMENT - OTHER,"16,380.00","Social Community Care Supplies & Service.Adult.Temporary Accommodation, Hostels"
14/01/2016,HOUSING MANAGEMENT SERVICES,The Oyster Partnership Ltd,AGENCY STAFF,"16,117.50",Human Resources.Temporary & Agency Staff.Professional
14/01/2016,BUSINESS & CUSTOMER SERVICES,Agilisys Contact Services Ltd,DEBT COLLECTION AND RECOVERY COSTS,"16,059.75",Financial Services.Debt Collection & Recovery.NA
14/01/2016,"STRATEGY & COMMISSIONING - CHILDREN, DISABILITIES & PUBLIC HEALTH",Thames Reach,PRIVATE CONTRACTORS PAYMENT - OTHER,"15,939.40",Social Community Care Supplies & Service.Adult.Homeless Support
14/01/2016,NO RECOURSE TO PUBLIC FUNDS,Metropolitan Housing Trust Ltd_d,RENTS PAYABLE,"15,163.20","Social Community Care Supplies & Service.Adult.Temporary Accommodation, Long Stay"
14/01/2016,CAPITAL CC,VPS (UK) Ltd,PRIVATE CONTRACTORS PAYMENT - OTHER,"14,200.61",Housing Management.Stock Management.NA
14/01/2016,"STRATEGY & COMMISSIONING - CHILDREN, DISABILITIES & PUBLIC HEALTH",Solace Women's Aid,PRIVATE CONTRACTORS PAYMENT - OTHER,"14,127.36",Social Community Care Supplies & Service.Adult.Advice & Counselling Services
14/01/2016,"STRATEGY & COMMISSIONING - CHILDREN, DISABILITIES & PUBLIC HEALTH",Age UK Lambeth,FLOATING SUPPORT SERVICES - PRIVATE CONTRACTORS PAYMENT,"13,992.80",Social Community Care Supplies & Service.Children.Youth Offending Services
14/01/2016,HOUSING MANAGEMENT SERVICES,The Oyster Partnership Ltd,AGENCY STAFF,"13,044.60",Human Resources.Temporary & Agency Staff.Professional
14/01/2016,ADULT SOCIAL CARE,Sanctuary Care Ltd,DOMICILIARY CARE - THIRD PARTY,"13,014.48",Social Community Care Supplies & Service.Adult.Residential Care
14/01/2016,"STRATEGY & COMMISSIONING - CHILDREN, DISABILITIES & PUBLIC HEALTH",Thames Reach,STREET POPULATION SERVICES - PRIVATE CONTRACTORS PAYMENT,"13,009.40",Social Community Care Supplies & Service.Adult.Homeless Support
14/01/2016,"STRATEGY & COMMISSIONING - CHILDREN, DISABILITIES & PUBLIC HEALTH",Southside Partnership,PRIVATE CONTRACTORS PAYMENT - OTHER,"12,417.63",Social Community Care Supplies & Service.Adult.Mental Health Services
14/01/2016,"STRATEGY & COMMISSIONING - CHILDREN, DISABILITIES & PUBLIC HEALTH",Thames Reach,STREET POPULATION SERVICES - PRIVATE CONTRACTORS PAYMENT,"12,257.80",Social Community Care Supplies & Service.Adult.Homeless Support
14/01/2016,EDUCATION & LEARNING,King's College London Mathematics School,PROFESSIONAL SERVICES - GENERAL,"12,244.04",Education.Educational Placements.NA
14/01/2016,ADULT SOCIAL CARE,Sanctuary Care Ltd,DOMICILIARY CARE - THIRD PARTY,"11,902.02",Social Community Care Supplies & Service.Adult.Residential Care
14/01/2016,STRATEGY & COMMISSIONING - HOUSING & COMMUNITIES (HRA),Property Tectonics Ltd,ICT SOFTWARE,"11,892.00",Information Communication Technology.Software.NA
14/01/2016,"STRATEGY & COMMISSIONING - CHILDREN, DISABILITIES & PUBLIC HEALTH",Look Ahead Housing & Care Ltd,PRIVATE CONTRACTORS PAYMENT - OTHER,"11,792.24",Social Community Care Supplies & Service.Adult.Advice & Counselling Services
14/01/2016,"STRATEGY & COMMISSIONING - CHILDREN, DISABILITIES & PUBLIC HEALTH",Family Mosaic,PRIVATE CONTRACTORS PAYMENT - OTHER,"11,280.56",Social Community Care Supplies & Service.Adult.Mental Health Services
14/01/2016,"STRATEGY & COMMISSIONING - CHILDREN, DISABILITIES & PUBLIC HEALTH",Evolve Housing & Support,PRIVATE CONTRACTORS PAYMENT - OTHER,"10,487.80","Social Community Care Supplies & Service.Adult.Temporary Accommodation, Short Stay"
14/01/2016,"STRATEGY & COMMISSIONING - CHILDREN, DISABILITIES & PUBLIC HEALTH",Saint Mungo Association,STREET POPULATION SERVICES - PRIVATE CONTRACTORS PAYMENT,"9,292.48","Social Community Care Supplies & Service.Adult.Temporary Accommodation, Hostels"
14/01/2016,"STRATEGY & COMMISSIONING - CHILDREN, DISABILITIES & PUBLIC HEALTH",Thames Reach,STREET POPULATION SERVICES - PRIVATE CONTRACTORS PAYMENT,"8,456.92",Social Community Care Supplies & Service.Adult.Homeless Support
14/01/2016,"STRATEGY & COMMISSIONING - CHILDREN, DISABILITIES & PUBLIC HEALTH",Foundation66,PRIVATE CONTRACTORS PAYMENT - OTHER,"8,131.28",Healthcare.Public Health.NA
14/01/2016,ADULT SOCIAL CARE,Norcrest (2000) Home Ltd,RESPITE CARE - PRIVATE CONTRACTORS PAYMENT,"8,105.12",Social Community Care Supplies & Service.Adult.Day Care
14/01/2016,POLICY & COMMUNICATIONS,Paul Simpson,CONSULTANCY FEES,"6,880.00",Consultancy.Business.NA
14/01/2016,BUSINESS & CUSTOMER SERVICES,"Smith, Mrs. Maureen_d",LEGAL FEES,"6,873.00",Legal Services.General Support.NA
14/01/2016,"STRATEGY & COMMISSIONING - CHILDREN, DISABILITIES & PUBLIC HEALTH",Refuge,PRIVATE CONTRACTORS PAYMENT - OTHER,"6,803.28",Social Community Care Supplies & Service.Adult.Residential Care
14/01/2016,"STRATEGY & COMMISSIONING - CHILDREN, DISABILITIES & PUBLIC HEALTH",Thames Reach,STREET POPULATION SERVICES - PRIVATE CONTRACTORS PAYMENT,"6,450.72",Social Community Care Supplies & Service.Adult.Homeless Support
14/01/2016,ADULT SOCIAL CARE,Red Alert Ltd,PRIVATE CONTRACTORS PAYMENT - OTHER,"6,443.46",Social Community Care Supplies & Service.Adult.Residential Care
14/01/2016,"STRATEGY & COMMISSIONING - CHILDREN, DISABILITIES & PUBLIC HEALTH",Southside Partnership,PRIVATE CONTRACTORS PAYMENT - OTHER,"6,191.32",Social Community Care Supplies & Service.Adult.Mental Health Services
14/01/2016,"REGENERATION, PLANNING & NEIGHBOURHOODS",Metric Group Ltd,"PURCHASE - EQUIPMENT, FURNITURE AND MATERIALS","6,079.92",Street & Traffic Management.Parking.Equipment
14/01/2016,NO RECOURSE TO PUBLIC FUNDS,Evolve Housing & Support,RENTS PAYABLE,"5,953.41","Social Community Care Supplies & Service.Adult.Temporary Accommodation, Short Stay"
14/01/2016,CAPITAL CC,Saltash Enterprises Ltd,GRANTS AND CONTRIBUTIONS,"5,826.25",Financial Services.Grants.NA
14/01/2016,"STRATEGY & COMMISSIONING - CHILDREN, DISABILITIES & PUBLIC HEALTH",NACRO,PRIVATE CONTRACTORS PAYMENT - OTHER,"5,784.12",Social Community Care Supplies & Service.Adult.NA
14/01/2016,ADULT SOCIAL CARE,Sanctuary Care Ltd,DOMICILIARY CARE - THIRD PARTY,"5,552.82",Social Community Care Supplies & Service.Adult.Residential Care
14/01/2016,HOUSING MANAGEMENT SERVICES,Ty Arian Ltd,LEGAL FEES,"5,500.00",Legal Services.Advocacy.NA
14/01/2016,ADULT SOCIAL CARE,Apetito Ltd,MEALS ON WHEELS - PRIVATE CONTRACTORS PAYMENT,"5,278.05",Catering.Food & Beverages.NA
14/01/2016,CAPITAL CC,Euro Contracts (London) Ltd,GRANTS AND CONTRIBUTIONS,"5,075.00",Financial Services.Grants.NA
14/01/2016,MAJOR CAPITAL PROGRAMMES (HRA),Design Council,CONSULTANCY FEES,"4,900.00",Consultancy.Technical & Feasibility.NA
14/01/2016,"STRATEGY & COMMISSIONING - CHILDREN, DISABILITIES & PUBLIC HEALTH",Kairos Community Trust,PRIVATE CONTRACTORS PAYMENT - OTHER,"4,879.28",Social Community Care Supplies & Service.Adult.Alcohol & Drug Rehabilitation
14/01/2016,"STRATEGY & COMMISSIONING - CHILDREN, DISABILITIES & PUBLIC HEALTH",Saint Mungo Association,PRIVATE CONTRACTORS PAYMENT - OTHER,"4,739.16","Social Community Care Supplies & Service.Adult.Temporary Accommodation, Hostels"
14/01/2016,CAPITAL CC,Saltash Enterprises Ltd,GRANTS AND CONTRIBUTIONS,"4,664.75",Financial Services.Grants.NA
14/01/2016,CAPITAL CC,Saltash Enterprises Ltd,GRANTS AND CONTRIBUTIONS,"4,582.94",Financial Services.Grants.NA
14/01/2016,"STRATEGY & COMMISSIONING - CHILDREN, DISABILITIES & PUBLIC HEALTH",Evolve Housing & Support,PRIVATE CONTRACTORS PAYMENT - OTHER,"4,415.16","Social Community Care Supplies & Service.Adult.Temporary Accommodation, Short Stay"
14/01/2016,CAPITAL CC,Euro Contracts (London) Ltd,GRANTS AND CONTRIBUTIONS,"4,297.50",Financial Services.Grants.NA
14/01/2016,CAPITAL CC,Euro Contracts (London) Ltd,GRANTS AND CONTRIBUTIONS,"4,185.50",Financial Services.Grants.NA
14/01/2016,CAPITAL CC,DACS Care & Repair,GRANTS AND CONTRIBUTIONS,"4,185.50",Financial Services.Grants.NA
14/01/2016,EDUCATION & LEARNING,Eaton House The Manor,PROFESSIONAL SERVICES - GENERAL,"4,150.52",Education.Educational Placements.NA
14/01/2016,"REGENERATION, PLANNING & NEIGHBOURHOODS",Royal Borough of Greenwich,BEREAVEMENT SERVICES EQUIPMENT,"4,130.00",Cemetery & Crematorium.Burial & Cremation.NA
14/01/2016,CHILDREN'S SERVICES,Compass Fostering London & Eastern Ltd,FOSTERING AGENCY PLACEMENTS - PRIVATE CONTRACTORS PAYMENT,"4,050.00",Social Community Care Supplies & Service.Children.Fostering
14/01/2016,ADULT SOCIAL CARE,National Autistic Society,DAYCARE - PRIVATE CONTRACTORS PAYMENT,"3,943.12",Social Community Care Supplies & Service.Adult.Day Care
14/01/2016,CAPITAL CC,Saltash Enterprises Ltd,GRANTS AND CONTRIBUTIONS,"3,924.00",Financial Services.Grants.NA
14/01/2016,CAPITAL CC,Saltash Enterprises Ltd,GRANTS AND CONTRIBUTIONS,"3,902.75",Financial Services.Grants.NA
14/01/2016,CAPITAL CC,Saltash Enterprises Ltd,GRANTS AND CONTRIBUTIONS,"3,850.50",Financial Services.Grants.NA
14/01/2016,CAPITAL CC,Saltash Enterprises Ltd,GRANTS AND CONTRIBUTIONS,"3,850.50",Financial Services.Grants.NA
14/01/2016,CAPITAL CC,DACS Care & Repair,GRANTS AND CONTRIBUTIONS,"3,850.50",Financial Services.Grants.NA
14/01/2016,CORPORATE AFFAIRS,Lycodia Ltd,LEGAL FEES,"3,625.00",Legal Services.General Support.NA
14/01/2016,ADULT SOCIAL CARE,National Autistic Society,DAYCARE - PRIVATE CONTRACTORS PAYMENT,"3,600.24",Social Community Care Supplies & Service.Adult.Day Care
14/01/2016,ADULT SOCIAL CARE,National Autistic Society,DAYCARE - PRIVATE CONTRACTORS PAYMENT,"3,600.24",Social Community Care Supplies & Service.Adult.Day Care
14/01/2016,"STRATEGY & COMMISSIONING - CHILDREN, DISABILITIES & PUBLIC HEALTH",The Rathbone Centre,FLOATING SUPPORT SERVICES - PRIVATE CONTRACTORS PAYMENT,"3,567.16",Social Community Care Supplies & Service.Adult.Domiciliary Care
14/01/2016,STRATEGY & COMMISSIONING - HOUSING & COMMUNITIES (HRA),Martin Arnold Ltd,CONSULTANCY FEES,"3,505.00",Consultancy.Technical & Feasibility.NA
14/01/2016,ADULT SOCIAL CARE,Derbyshire County Council,DAYCARE - PRIVATE CONTRACTORS PAYMENT,"3,422.40",Social Community Care Supplies & Service.Adult.Day Care
14/01/2016,ADULT SOCIAL CARE,Norcrest (2000) Home Ltd,RESPITE CARE - PRIVATE CONTRACTORS PAYMENT,"3,306.36",Social Community Care Supplies & Service.Adult.Day Care
14/01/2016,HOUSING MANAGEMENT SERVICES,Mel Research Ltd,CONSULTANCY FEES,"3,256.00",Consultancy.Technical & Feasibility.NA
14/01/2016,"STRATEGY & COMMISSIONING - CHILDREN, DISABILITIES & PUBLIC HEALTH",Family Mosaic,FLOATING SUPPORT SERVICES - PRIVATE CONTRACTORS PAYMENT,"3,198.00",Social Community Care Supplies & Service.Adult.Mental Health Services
14/01/2016,"STRATEGY & COMMISSIONING - CHILDREN, DISABILITIES & PUBLIC HEALTH",Vietnamese Mental Health Services,PRIVATE CONTRACTORS PAYMENT - OTHER,"3,068.48",Social Community Care Supplies & Service.Adult.Black & Minority Ethnic Services
14/01/2016,"STRATEGY & COMMISSIONING - CHILDREN, DISABILITIES & PUBLIC HEALTH",Thames Reach,PRIVATE CONTRACTORS PAYMENT - OTHER,"3,014.20",Social Community Care Supplies & Service.Adult.Homeless Support
14/01/2016,"STRATEGY & COMMISSIONING - CHILDREN, DISABILITIES & PUBLIC HEALTH",Thames Reach,PRIVATE CONTRACTORS PAYMENT - OTHER,"3,014.20",Social Community Care Supplies & Service.Adult.Homeless Support
14/01/2016,ADULT SOCIAL CARE,National Autistic Society,DAYCARE - PRIVATE CONTRACTORS PAYMENT,"2,794.34",Social Community Care Supplies & Service.Adult.Day Care
14/01/2016,ADULT SOCIAL CARE,National Autistic Society,DAYCARE - PRIVATE CONTRACTORS PAYMENT,"2,794.34",Social Community Care Supplies & Service.Adult.Day Care
14/01/2016,ADULT SOCIAL CARE,National Autistic Society,DAYCARE - PRIVATE CONTRACTORS PAYMENT,"2,794.34",Social Community Care Supplies & Service.Adult.Day Care
14/01/2016,ADULT SOCIAL CARE,National Autistic Society,DAYCARE - PRIVATE CONTRACTORS PAYMENT,"2,704.20",Social Community Care Supplies & Service.Adult.Day Care
14/01/2016,CAPITAL CC,VPS (UK) Ltd,PRIVATE CONTRACTORS PAYMENT - OTHER,"2,643.75",Housing Management.Stock Management.NA
14/01/2016,"REGENERATION, PLANNING & NEIGHBOURHOODS",Farthest Gate Ltd,ICT SOFTWARE,"2,629.78",Information Communication Technology.Software.NA
14/01/2016,HOUSING MANAGEMENT SERVICES,The Oyster Partnership Ltd,AGENCY STAFF,"2,600.00",Human Resources.Temporary & Agency Staff.Professional
14/01/2016,HOUSING MANAGEMENT SERVICES,The Oyster Partnership Ltd,AGENCY STAFF,"2,600.00",Human Resources.Temporary & Agency Staff.Professional
14/01/2016,HOUSING MANAGEMENT SERVICES,The Oyster Partnership Ltd,AGENCY STAFF,"2,600.00",Human Resources.Temporary & Agency Staff.Professional
14/01/2016,HOUSING MANAGEMENT SERVICES,The Oyster Partnership Ltd,AGENCY STAFF,"2,600.00",Human Resources.Temporary & Agency Staff.Professional
14/01/2016,HOUSING MANAGEMENT SERVICES,The Oyster Partnership Ltd,AGENCY STAFF,"2,600.00",Human Resources.Temporary & Agency Staff.Professional
14/01/2016,"STRATEGY & COMMISSIONING - CHILDREN, DISABILITIES & PUBLIC HEALTH",Southside Partnership,PRIVATE CONTRACTORS PAYMENT - OTHER,"2,571.76",Social Community Care Supplies & Service.Adult.Mental Health Services
14/01/2016,"STRATEGY & COMMISSIONING - CHILDREN, DISABILITIES & PUBLIC HEALTH",Hope Worldwide,PRIVATE CONTRACTORS PAYMENT - OTHER,"2,513.80",Social Community Care Supplies & Service.Adult.Alcohol & Drug Rehabilitation
14/01/2016,ADULT SOCIAL CARE,Derbyshire County Council,DAYCARE - PRIVATE CONTRACTORS PAYMENT,"2,495.50",Social Community Care Supplies & Service.Adult.Day Care
14/01/2016,CAPITAL CC,Pellings LLP,BUILDING ALTERATIONS AND MATERIALS,"2,436.60","Works - Construction, Repair & Maint.Consultancy.NA"
14/01/2016,STRATEGY & COMMISSIONING - HOUSING & COMMUNITIES (HRA),Martin Arnold Ltd,CONSULTANCY FEES,"2,380.00",Consultancy.Technical & Feasibility.NA
14/01/2016,CAPITAL CC,Pellings LLP,BUILDING ALTERATIONS AND MATERIALS,"2,265.34","Works - Construction, Repair & Maint.Consultancy.NA"
14/01/2016,STRATEGY & COMMISSIONING - HOUSING & COMMUNITIES (HRA),Martin Arnold Ltd,CONSULTANCY FEES,"2,265.00",Consultancy.Technical & Feasibility.NA
14/01/2016,"STRATEGY & COMMISSIONING - CHILDREN, DISABILITIES & PUBLIC HEALTH",Sanctuary Care Ltd,PRIVATE CONTRACTORS PAYMENT - OTHER,"2,223.84",Social Community Care Supplies & Service.Adult.Residential Care
14/01/2016,"STRATEGY & COMMISSIONING - CHILDREN, DISABILITIES & PUBLIC HEALTH",Southside Partnership,PRIVATE CONTRACTORS PAYMENT - OTHER,"2,218.36",Social Community Care Supplies & Service.Adult.Mental Health Services
14/01/2016,ADULT SOCIAL CARE,The Rathbone Centre,DOMICILIARY CARE - THIRD PARTY,"2,122.32",Social Community Care Supplies & Service.Adult.Domiciliary Care
14/01/2016,STRATEGY & COMMISSIONING - HOUSING & COMMUNITIES (HRA),Martin Arnold Ltd,CONSULTANCY FEES,"2,035.00",Consultancy.Technical & Feasibility.NA
14/01/2016,ADULT SOCIAL CARE,Tendercare 4 You Ltd,DOMICILIARY CARE - THIRD PARTY,"2,016.00",Social Community Care Supplies & Service.Adult.Domiciliary Care
14/01/2016,STRATEGY & COMMISSIONING - HOUSING & COMMUNITIES (HRA),Martin Arnold Ltd,CONSULTANCY FEES,"1,960.00",Consultancy.Technical & Feasibility.NA
14/01/2016,"STRATEGY & COMMISSIONING - CHILDREN, DISABILITIES & PUBLIC HEALTH",Saint Mungo Association,PRIVATE CONTRACTORS PAYMENT - OTHER,"1,951.44","Social Community Care Supplies & Service.Adult.Temporary Accommodation, Hostels"
14/01/2016,NO RECOURSE TO PUBLIC FUNDS,R@W Logistics Ltd,RENTS PAYABLE,"1,950.00","Social Community Care Supplies & Service.Adult.Temporary Accommodation, Long Stay"
14/01/2016,HOUSING MANAGEMENT SERVICES,The Oyster Partnership Ltd,AGENCY STAFF,"1,900.00",Human Resources.Temporary & Agency Staff.Professional
14/01/2016,HOUSING MANAGEMENT SERVICES,The Oyster Partnership Ltd,AGENCY STAFF,"1,900.00",Human Resources.Temporary & Agency Staff.Professional
14/01/2016,HOUSING MANAGEMENT SERVICES,The Oyster Partnership Ltd,AGENCY STAFF,"1,900.00",Human Resources.Temporary & Agency Staff.Professional
14/01/2016,HOUSING MANAGEMENT SERVICES,The Oyster Partnership Ltd,AGENCY STAFF,"1,900.00",Human Resources.Temporary & Agency Staff.Professional
14/01/2016,HOUSING MANAGEMENT SERVICES,The Oyster Partnership Ltd,AGENCY STAFF,"1,900.00",Human Resources.Temporary & Agency Staff.Professional
14/01/2016,HOUSING MANAGEMENT SERVICES,The Oyster Partnership Ltd,AGENCY STAFF,"1,900.00",Human Resources.Temporary & Agency Staff.Professional
14/01/2016,HOUSING MANAGEMENT SERVICES,The Oyster Partnership Ltd,AGENCY STAFF,"1,900.00",Human Resources.Temporary & Agency Staff.Professional
14/01/2016,STRATEGY & COMMISSIONING - HOUSING & COMMUNITIES (HRA),Martin Arnold Ltd,CONSULTANCY FEES,"1,845.00",Consultancy.Technical & Feasibility.NA
14/01/2016,STRATEGY & COMMISSIONING - HOUSING & COMMUNITIES (HRA),Martin Arnold Ltd,CONSULTANCY FEES,"1,802.50",Consultancy.Technical & Feasibility.NA
14/01/2016,NO RECOURSE TO PUBLIC FUNDS,R@W Logistics Ltd,RENTS PAYABLE,"1,750.00","Social Community Care Supplies & Service.Adult.Temporary Accommodation, Long Stay"
14/01/2016,ADULT SOCIAL CARE,Carewatch (Lambeth),DOMICILIARY CARE - THIRD PARTY,"1,720.03",Social Community Care Supplies & Service.Adult.Domiciliary Care
14/01/2016,NO RECOURSE TO PUBLIC FUNDS,Alpha UK Properties Ltd,RENTS PAYABLE,"1,700.00","Social Community Care Supplies & Service.Adult.Temporary Accommodation, Long Stay"
14/01/2016,NO RECOURSE TO PUBLIC FUNDS,R@W Logistics Ltd,RENTS PAYABLE,"1,690.00","Social Community Care Supplies & Service.Adult.Temporary Accommodation, Long Stay"
14/01/2016,STRATEGY & COMMISSIONING - HOUSING & COMMUNITIES (HRA),Martin Arnold Ltd,CONSULTANCY FEES,"1,665.00",Consultancy.Technical & Feasibility.NA
14/01/2016,MAJOR CAPITAL PROGRAMMES,Specialist Computer Centers Plc,ICT HARDWARE,"1,645.50",Information Communication Technology.Hardware.NA
14/01/2016,NO RECOURSE TO PUBLIC FUNDS,R@W Logistics Ltd,RENTS PAYABLE,"1,640.00","Social Community Care Supplies & Service.Adult.Temporary Accommodation, Long Stay"
14/01/2016,NO RECOURSE TO PUBLIC FUNDS,Citibank N A,CLIENT ALLOWANCES - SOCIAL SERVICES,"1,602.12",Social Community Care Supplies & Service.Adult.Domiciliary Care
14/01/2016,NO RECOURSE TO PUBLIC FUNDS,R@W Logistics Ltd,RENTS PAYABLE,"1,550.00","Social Community Care Supplies & Service.Adult.Temporary Accommodation, Long Stay"
14/01/2016,NO RECOURSE TO PUBLIC FUNDS,Alpha UK Properties Ltd,RENTS PAYABLE,"1,550.00","Social Community Care Supplies & Service.Adult.Temporary Accommodation, Long Stay"
14/01/2016,"STRATEGY & COMMISSIONING - CHILDREN, DISABILITIES & PUBLIC HEALTH",170 Community Project,FLOATING SUPPORT SERVICES - PRIVATE CONTRACTORS PAYMENT,"1,534.24",Social Community Care Supplies & Service.Adult.Advice & Counselling Services
14/01/2016,NO RECOURSE TO PUBLIC FUNDS,Hytyme Ltd,BED & BREAKFAST - PRIVATE CONTRACTORS PAYMENT,"1,519.00","Social Community Care Supplies & Service.Adult.Temporary Accommodation, Short Stay"
14/01/2016,NO RECOURSE TO PUBLIC FUNDS,Hytyme Ltd,BED & BREAKFAST - PRIVATE CONTRACTORS PAYMENT,"1,519.00","Social Community Care Supplies & Service.Adult.Temporary Accommodation, Short Stay"
14/01/2016,HOUSING MANAGEMENT SERVICES,Apollo Rec,AGENCY STAFF,"1,512.00",Human Resources.Temporary & Agency Staff.NA
14/01/2016,HOUSING MANAGEMENT SERVICES,Apollo Rec,AGENCY STAFF,"1,512.00",Human Resources.Temporary & Agency Staff.NA
14/01/2016,HOUSING MANAGEMENT SERVICES,Apollo Rec,AGENCY STAFF,"1,512.00",Human Resources.Temporary & Agency Staff.NA
14/01/2016,HOUSING MANAGEMENT SERVICES,Apollo Rec,AGENCY STAFF,"1,512.00",Human Resources.Temporary & Agency Staff.NA
14/01/2016,HOUSING MANAGEMENT SERVICES,Apollo Rec,AGENCY STAFF,"1,512.00",Human Resources.Temporary & Agency Staff.NA
14/01/2016,HOUSING MANAGEMENT SERVICES,Apollo Rec,AGENCY STAFF,"1,512.00",Human Resources.Temporary & Agency Staff.NA
14/01/2016,HOUSING MANAGEMENT SERVICES,Apollo Rec,AGENCY STAFF,"1,512.00",Human Resources.Temporary & Agency Staff.NA
14/01/2016,"STRATEGY & COMMISSIONING - CHILDREN, DISABILITIES & PUBLIC HEALTH",Southside Partnership,FLOATING SUPPORT SERVICES - PRIVATE CONTRACTORS PAYMENT,"1,506.84",Social Community Care Supplies & Service.Adult.Mental Health Services
14/01/2016,NO RECOURSE TO PUBLIC FUNDS,R@W Logistics Ltd,RENTS PAYABLE,"1,506.00","Social Community Care Supplies & Service.Adult.Temporary Accommodation, Long Stay"
14/01/2016,"REGENERATION, PLANNING & NEIGHBOURHOODS",Cycle Confident Ltd,ARTS AND LEISURE COSTS,"1,500.00",Arts & Leisure Services.Sport & Fitness.NA
14/01/2016,HOUSING MANAGEMENT SERVICES,The Oyster Partnership Ltd,AGENCY STAFF,"1,500.00",Human Resources.Temporary & Agency Staff.Professional
14/01/2016,HOUSING MANAGEMENT SERVICES,The Oyster Partnership Ltd,AGENCY STAFF,"1,500.00",Human Resources.Temporary & Agency Staff.Professional
14/01/2016,HOUSING MANAGEMENT SERVICES,The Oyster Partnership Ltd,AGENCY STAFF,"1,500.00",Human Resources.Temporary & Agency Staff.Professional
14/01/2016,HOUSING MANAGEMENT SERVICES,The Oyster Partnership Ltd,AGENCY STAFF,"1,500.00",Human Resources.Temporary & Agency Staff.Professional
14/01/2016,HOUSING MANAGEMENT SERVICES,The Oyster Partnership Ltd,AGENCY STAFF,"1,500.00",Human Resources.Temporary & Agency Staff.Professional
14/01/2016,HOUSING MANAGEMENT SERVICES,The Oyster Partnership Ltd,AGENCY STAFF,"1,500.00",Human Resources.Temporary & Agency Staff.Professional
14/01/2016,HOUSING MANAGEMENT SERVICES,The Oyster Partnership Ltd,AGENCY STAFF,"1,500.00",Human Resources.Temporary & Agency Staff.Professional
14/01/2016,HOUSING MANAGEMENT SERVICES,The Oyster Partnership Ltd,AGENCY STAFF,"1,500.00",Human Resources.Temporary & Agency Staff.Professional
14/01/2016,HOUSING MANAGEMENT SERVICES,The Oyster Partnership Ltd,AGENCY STAFF,"1,500.00",Human Resources.Temporary & Agency Staff.Professional
14/01/2016,HOUSING MANAGEMENT SERVICES,The Oyster Partnership Ltd,AGENCY STAFF,"1,500.00",Human Resources.Temporary & Agency Staff.Professional
14/01/2016,HOUSING MANAGEMENT SERVICES,The Oyster Partnership Ltd,AGENCY STAFF,"1,500.00",Human Resources.Temporary & Agency Staff.Professional
14/01/2016,NO RECOURSE TO PUBLIC FUNDS,R@W Logistics Ltd,RENTS PAYABLE,"1,500.00","Social Community Care Supplies & Service.Adult.Temporary Accommodation, Long Stay"
14/01/2016,NO RECOURSE TO PUBLIC FUNDS,Alpha UK Properties Ltd,RENTS PAYABLE,"1,500.00","Social Community Care Supplies & Service.Adult.Temporary Accommodation, Long Stay"
14/01/2016,CHILDREN'S SERVICES,Hands Free Computing Ltd,ICT HARDWARE,"1,470.00",Information Communication Technology.Hardware.NA
14/01/2016,NO RECOURSE TO PUBLIC FUNDS,Alpha UK Properties Ltd,RENTS PAYABLE,"1,462.00","Social Community Care Supplies & Service.Adult.Temporary Accommodation, Long Stay"
14/01/2016,NO RECOURSE TO PUBLIC FUNDS,R@W Logistics Ltd,RENTS PAYABLE,"1,450.00","Social Community Care Supplies & Service.Adult.Temporary Accommodation, Long Stay"
14/01/2016,NO RECOURSE TO PUBLIC FUNDS,R@W Logistics Ltd,RENTS PAYABLE,"1,430.00","Social Community Care Supplies & Service.Adult.Temporary Accommodation, Long Stay"
14/01/2016,HOUSING MANAGEMENT SERVICES,Bryan & Armstrong Ltd,STAFF RECRUITMENT COSTS,"1,425.00",Human Resources.Recruitment & Assessment.NA
14/01/2016,NO RECOURSE TO PUBLIC FUNDS,R@W Logistics Ltd,RENTS PAYABLE,"1,425.00","Social Community Care Supplies & Service.Adult.Temporary Accommodation, Long Stay"
14/01/2016,ADULT SOCIAL CARE,Lambeth Chinese Community Association,DOMICILIARY CARE - THIRD PARTY,"1,422.96",Social Community Care Supplies & Service.Adult.Black & Minority Ethnic Services
14/01/2016,NO RECOURSE TO PUBLIC FUNDS,R@W Logistics Ltd,RENTS PAYABLE,"1,415.00","Social Community Care Supplies & Service.Adult.Temporary Accommodation, Long Stay"
14/01/2016,NO RECOURSE TO PUBLIC FUNDS,Alpha UK Properties Ltd,RENTS PAYABLE,"1,400.00","Social Community Care Supplies & Service.Adult.Temporary Accommodation, Long Stay"
14/01/2016,NO RECOURSE TO PUBLIC FUNDS,Alpha UK Properties Ltd,RENTS PAYABLE,"1,400.00","Social Community Care Supplies & Service.Adult.Temporary Accommodation, Long Stay"
14/01/2016,NO RECOURSE TO PUBLIC FUNDS,Alpha UK Properties Ltd,RENTS PAYABLE,"1,400.00","Social Community Care Supplies & Service.Adult.Temporary Accommodation, Long Stay"
14/01/2016,NO RECOURSE TO PUBLIC FUNDS,Alpha UK Properties Ltd,RENTS PAYABLE,"1,400.00","Social Community Care Supplies & Service.Adult.Temporary Accommodation, Long Stay"
14/01/2016,NO RECOURSE TO PUBLIC FUNDS,R@W Logistics Ltd,RENTS PAYABLE,"1,390.00","Social Community Care Supplies & Service.Adult.Temporary Accommodation, Long Stay"
14/01/2016,BUSINESS TRANSFORMATION,Specialist Computer Centers Plc,ICT HARDWARE,"1,382.40",Information Communication Technology.Hardware.NA
14/01/2016,ADULT SOCIAL CARE,National Autistic Society,DAYCARE - PRIVATE CONTRACTORS PAYMENT,"1,380.21",Social Community Care Supplies & Service.Adult.Day Care
14/01/2016,ADULT SOCIAL CARE,National Autistic Society,DAYCARE - PRIVATE CONTRACTORS PAYMENT,"1,380.21",Social Community Care Supplies & Service.Adult.Day Care
14/01/2016,ADULT SOCIAL CARE,National Autistic Society,DAYCARE - PRIVATE CONTRACTORS PAYMENT,"1,380.21",Social Community Care Supplies & Service.Adult.Day Care
14/01/2016,NO RECOURSE TO PUBLIC FUNDS,R@W Logistics Ltd,RENTS PAYABLE,"1,380.00","Social Community Care Supplies & Service.Adult.Temporary Accommodation, Long Stay"
14/01/2016,ADULT SOCIAL CARE,Holistic Community Care Ltd,DOMICILIARY CARE - THIRD PARTY,"1,379.20",Social Community Care Supplies & Service.Adult.Domiciliary Care
14/01/2016,ADULT SOCIAL CARE,Holistic Community Care Ltd,DOMICILIARY CARE - THIRD PARTY,"1,379.20",Social Community Care Supplies & Service.Adult.Domiciliary Care
14/01/2016,NO RECOURSE TO PUBLIC FUNDS,Citibank N A,CLIENT ALLOWANCES - SOCIAL SERVICES,"1,371.57",Social Community Care Supplies & Service.Adult.Domiciliary Care
14/01/2016,NO RECOURSE TO PUBLIC FUNDS,R@W Logistics Ltd,RENTS PAYABLE,"1,360.00","Social Community Care Supplies & Service.Adult.Temporary Accommodation, Long Stay"
14/01/2016,ADULT SOCIAL CARE,Apetito Ltd,MEALS ON WHEELS - PRIVATE CONTRACTORS PAYMENT,"1,353.41",Catering.Food & Beverages.NA
14/01/2016,NO RECOURSE TO PUBLIC FUNDS,Alpha UK Properties Ltd,RENTS PAYABLE,"1,350.00","Social Community Care Supplies & Service.Adult.Temporary Accommodation, Long Stay"
14/01/2016,ADULT SOCIAL CARE,National Autistic Society,DAYCARE - PRIVATE CONTRACTORS PAYMENT,"1,335.69",Social Community Care Supplies & Service.Adult.Day Care
14/01/2016,NO RECOURSE TO PUBLIC FUNDS,R@W Logistics Ltd,RENTS PAYABLE,"1,310.00","Social Community Care Supplies & Service.Adult.Temporary Accommodation, Long Stay"
14/01/2016,CAPITAL CC,HLM Architects,"MAINTENANCE - EQUIPMENT, FURNITURE AND MATERIALS","1,300.00","Works - Construction, Repair & Maint.Architect.NA"
14/01/2016,NO RECOURSE TO PUBLIC FUNDS,R@W Logistics Ltd,RENTS PAYABLE,"1,300.00","Social Community Care Supplies & Service.Adult.Temporary Accommodation, Long Stay"
14/01/2016,NO RECOURSE TO PUBLIC FUNDS,R@W Logistics Ltd,RENTS PAYABLE,"1,300.00","Social Community Care Supplies & Service.Adult.Temporary Accommodation, Long Stay"
14/01/2016,NO RECOURSE TO PUBLIC FUNDS,R@W Logistics Ltd,RENTS PAYABLE,"1,300.00","Social Community Care Supplies & Service.Adult.Temporary Accommodation, Long Stay"
14/01/2016,NO RECOURSE TO PUBLIC FUNDS,R@W Logistics Ltd,RENTS PAYABLE,"1,300.00","Social Community Care Supplies & Service.Adult.Temporary Accommodation, Long Stay"
14/01/2016,NO RECOURSE TO PUBLIC FUNDS,Alpha UK Properties Ltd,RENTS PAYABLE,"1,300.00","Social Community Care Supplies & Service.Adult.Temporary Accommodation, Long Stay"
14/01/2016,NO RECOURSE TO PUBLIC FUNDS,Alpha UK Properties Ltd,RENTS PAYABLE,"1,300.00","Social Community Care Supplies & Service.Adult.Temporary Accommodation, Long Stay"
14/01/2016,ADULT SOCIAL CARE,Medequip Assistive Technology Ltd,SPECIALIST EQUIPMENT FOR SERVICE PROVISION,"1,290.54",Social Community Care Supplies & Service.Supplies.Equipment
14/01/2016,NO RECOURSE TO PUBLIC FUNDS,R@W Logistics Ltd,RENTS PAYABLE,"1,290.00","Social Community Care Supplies & Service.Adult.Temporary Accommodation, Long Stay"
14/01/2016,NO RECOURSE TO PUBLIC FUNDS,R@W Logistics Ltd,RENTS PAYABLE,"1,270.00","Social Community Care Supplies & Service.Adult.Temporary Accommodation, Long Stay"
14/01/2016,NO RECOURSE TO PUBLIC FUNDS,R@W Logistics Ltd,RENTS PAYABLE,"1,270.00","Social Community Care Supplies & Service.Adult.Temporary Accommodation, Long Stay"
14/01/2016,POLICY & COMMUNICATIONS,LG Communications,STAFF DEVELOPMENT AND TRAINING,"1,269.00",Human Resources.Training & Conferences.Training
14/01/2016,HOUSING MANAGEMENT SERVICES,The Oyster Partnership Ltd,AGENCY STAFF,"1,260.00",Human Resources.Temporary & Agency Staff.Professional
14/01/2016,ADULT SOCIAL CARE,Red Alert Ltd,PRIVATE CONTRACTORS PAYMENT - OTHER,"1,250.00",Social Community Care Supplies & Service.Adult.Residential Care
14/01/2016,NO RECOURSE TO PUBLIC FUNDS,R@W Logistics Ltd,RENTS PAYABLE,"1,250.00","Social Community Care Supplies & Service.Adult.Temporary Accommodation, Long Stay"
14/01/2016,NO RECOURSE TO PUBLIC FUNDS,R@W Logistics Ltd,RENTS PAYABLE,"1,250.00","Social Community Care Supplies & Service.Adult.Temporary Accommodation, Long Stay"
14/01/2016,NO RECOURSE TO PUBLIC FUNDS,R@W Logistics Ltd,RENTS PAYABLE,"1,250.00","Social Community Care Supplies & Service.Adult.Temporary Accommodation, Long Stay"
14/01/2016,NO RECOURSE TO PUBLIC FUNDS,R@W Logistics Ltd,RENTS PAYABLE,"1,250.00","Social Community Care Supplies & Service.Adult.Temporary Accommodation, Long Stay"
14/01/2016,NO RECOURSE TO PUBLIC FUNDS,R@W Logistics Ltd,RENTS PAYABLE,"1,250.00","Social Community Care Supplies & Service.Adult.Temporary Accommodation, Long Stay"
14/01/2016,NO RECOURSE TO PUBLIC FUNDS,R@W Logistics Ltd,RENTS PAYABLE,"1,250.00","Social Community Care Supplies & Service.Adult.Temporary Accommodation, Long Stay"
14/01/2016,CHILDREN'S SERVICES,"Jones, Ms. Jennifer_d","PURCHASE - EQUIPMENT, FURNITURE AND MATERIALS","1,245.18",Domestic Goods.Commercial.NA
14/01/2016,NO RECOURSE TO PUBLIC FUNDS,R@W Logistics Ltd,RENTS PAYABLE,"1,240.00","Social Community Care Supplies & Service.Adult.Temporary Accommodation, Long Stay"
14/01/2016,NO RECOURSE TO PUBLIC FUNDS,R@W Logistics Ltd,RENTS PAYABLE,"1,240.00","Social Community Care Supplies & Service.Adult.Temporary Accommodation, Long Stay"
14/01/2016,HOUSING MANAGEMENT SERVICES,The Oyster Partnership Ltd,AGENCY STAFF,"1,235.55",Human Resources.Temporary & Agency Staff.Professional
14/01/2016,HOUSING MANAGEMENT SERVICES,The Oyster Partnership Ltd,AGENCY STAFF,"1,235.55",Human Resources.Temporary & Agency Staff.Professional
14/01/2016,HOUSING MANAGEMENT SERVICES,The Oyster Partnership Ltd,AGENCY STAFF,"1,234.65",Human Resources.Temporary & Agency Staff.Professional
14/01/2016,HOUSING MANAGEMENT SERVICES,The Oyster Partnership Ltd,AGENCY STAFF,"1,230.60",Human Resources.Temporary & Agency Staff.Professional
14/01/2016,NO RECOURSE TO PUBLIC FUNDS,R@W Logistics Ltd,RENTS PAYABLE,"1,230.00","Social Community Care Supplies & Service.Adult.Temporary Accommodation, Long Stay"
14/01/2016,HOUSING MANAGEMENT SERVICES,The Oyster Partnership Ltd,AGENCY STAFF,"1,229.25",Human Resources.Temporary & Agency Staff.Professional
14/01/2016,HOUSING MANAGEMENT SERVICES,The Oyster Partnership Ltd,AGENCY STAFF,"1,228.80",Human Resources.Temporary & Agency Staff.Professional
14/01/2016,NO RECOURSE TO PUBLIC FUNDS,R@W Logistics Ltd,RENTS PAYABLE,"1,225.00","Social Community Care Supplies & Service.Adult.Temporary Accommodation, Long Stay"
14/01/2016,ADULT SOCIAL CARE,Lambeth Chinese Community Association,DOMICILIARY CARE - THIRD PARTY,"1,219.68",Social Community Care Supplies & Service.Adult.Black & Minority Ethnic Services
14/01/2016,ADULT SOCIAL CARE,Lambeth Chinese Community Association,DOMICILIARY CARE - THIRD PARTY,"1,219.18",Social Community Care Supplies & Service.Adult.Black & Minority Ethnic Services
14/01/2016,NO RECOURSE TO PUBLIC FUNDS,R@W Logistics Ltd,RENTS PAYABLE,"1,212.00","Social Community Care Supplies & Service.Adult.Temporary Accommodation, Long Stay"
14/01/2016,NO RECOURSE TO PUBLIC FUNDS,R@W Logistics Ltd,RENTS PAYABLE,"1,210.00","Social Community Care Supplies & Service.Adult.Temporary Accommodation, Long Stay"
14/01/2016,HOUSING MANAGEMENT SERVICES,Apollo Rec,AGENCY STAFF,"1,209.60",Human Resources.Temporary & Agency Staff.NA
14/01/2016,NO RECOURSE TO PUBLIC FUNDS,Hytyme Ltd,BED & BREAKFAST - PRIVATE CONTRACTORS PAYMENT,"1,209.00","Social Community Care Supplies & Service.Adult.Temporary Accommodation, Short Stay"
14/01/2016,NO RECOURSE TO PUBLIC FUNDS,Hytyme Ltd,BED & BREAKFAST - PRIVATE CONTRACTORS PAYMENT,"1,209.00","Social Community Care Supplies & Service.Adult.Temporary Accommodation, Short Stay"
14/01/2016,HOUSING MANAGEMENT SERVICES,The Oyster Partnership Ltd,AGENCY STAFF,"1,200.00",Human Resources.Temporary & Agency Staff.Professional
14/01/2016,NO RECOURSE TO PUBLIC FUNDS,R@W Logistics Ltd,RENTS PAYABLE,"1,200.00","Social Community Care Supplies & Service.Adult.Temporary Accommodation, Long Stay"
14/01/2016,NO RECOURSE TO PUBLIC FUNDS,R@W Logistics Ltd,RENTS PAYABLE,"1,200.00","Social Community Care Supplies & Service.Adult.Temporary Accommodation, Long Stay"
14/01/2016,NO RECOURSE TO PUBLIC FUNDS,R@W Logistics Ltd,RENTS PAYABLE,"1,200.00","Social Community Care Supplies & Service.Adult.Temporary Accommodation, Long Stay"
14/01/2016,NO RECOURSE TO PUBLIC FUNDS,Alpha UK Properties Ltd,RENTS PAYABLE,"1,200.00","Social Community Care Supplies & Service.Adult.Temporary Accommodation, Long Stay"
14/01/2016,NO RECOURSE TO PUBLIC FUNDS,R@W Logistics Ltd,RENTS PAYABLE,"1,198.31","Social Community Care Supplies & Service.Adult.Temporary Accommodation, Long Stay"
14/01/2016,NO RECOURSE TO PUBLIC FUNDS,R@W Logistics Ltd,RENTS PAYABLE,"1,190.00","Social Community Care Supplies & Service.Adult.Temporary Accommodation, Long Stay"
14/01/2016,NO RECOURSE TO PUBLIC FUNDS,R@W Logistics Ltd,RENTS PAYABLE,"1,181.69","Social Community Care Supplies & Service.Adult.Temporary Accommodation, Long Stay"
14/01/2016,NO RECOURSE TO PUBLIC FUNDS,R@W Logistics Ltd,RENTS PAYABLE,"1,170.00","Social Community Care Supplies & Service.Adult.Temporary Accommodation, Long Stay"
14/01/2016,NO RECOURSE TO PUBLIC FUNDS,Hytyme Ltd,BED & BREAKFAST - PRIVATE CONTRACTORS PAYMENT,"1,170.00","Social Community Care Supplies & Service.Adult.Temporary Accommodation, Short Stay"
14/01/2016,NO RECOURSE TO PUBLIC FUNDS,R@W Logistics Ltd,RENTS PAYABLE,"1,162.00","Social Community Care Supplies & Service.Adult.Temporary Accommodation, Long Stay"
14/01/2016,NO RECOURSE TO PUBLIC FUNDS,R@W Logistics Ltd,RENTS PAYABLE,"1,150.00","Social Community Care Supplies & Service.Adult.Temporary Accommodation, Long Stay"
14/01/2016,NO RECOURSE TO PUBLIC FUNDS,Citibank N A,CLIENT ALLOWANCES - SOCIAL SERVICES,"1,149.65",Social Community Care Supplies & Service.Adult.Domiciliary Care
14/01/2016,NO RECOURSE TO PUBLIC FUNDS,R@W Logistics Ltd,RENTS PAYABLE,"1,140.00","Social Community Care Supplies & Service.Adult.Temporary Accommodation, Long Stay"
14/01/2016,NO RECOURSE TO PUBLIC FUNDS,R@W Logistics Ltd,RENTS PAYABLE,"1,120.00","Social Community Care Supplies & Service.Adult.Temporary Accommodation, Long Stay"
14/01/2016,NO RECOURSE TO PUBLIC FUNDS,R@W Logistics Ltd,RENTS PAYABLE,"1,117.81","Social Community Care Supplies & Service.Adult.Temporary Accommodation, Long Stay"
14/01/2016,NO RECOURSE TO PUBLIC FUNDS,R@W Logistics Ltd,RENTS PAYABLE,"1,110.00","Social Community Care Supplies & Service.Adult.Temporary Accommodation, Long Stay"
14/01/2016,NO RECOURSE TO PUBLIC FUNDS,R@W Logistics Ltd,RENTS PAYABLE,"1,090.00","Social Community Care Supplies & Service.Adult.Temporary Accommodation, Long Stay"
14/01/2016,HOUSING MANAGEMENT SERVICES,The Oyster Partnership Ltd,AGENCY STAFF,"1,087.50",Human Resources.Temporary & Agency Staff.Professional
14/01/2016,BUSINESS & CUSTOMER SERVICES,Local Government Association,MEMBERSHIP AND SUBSCRIPTIONS,"1,087.00",Financial Services.Subscriptions.NA
14/01/2016,HOUSING MANAGEMENT SERVICES,The Oyster Partnership Ltd,AGENCY STAFF,"1,080.00",Human Resources.Temporary & Agency Staff.Professional
14/01/2016,NO RECOURSE TO PUBLIC FUNDS,R@W Logistics Ltd,RENTS PAYABLE,"1,080.00","Social Community Care Supplies & Service.Adult.Temporary Accommodation, Long Stay"
14/01/2016,HOUSING MANAGEMENT SERVICES,The Oyster Partnership Ltd,AGENCY STAFF,"1,069.50",Human Resources.Temporary & Agency Staff.Professional
14/01/2016,HOUSING MANAGEMENT SERVICES,The Oyster Partnership Ltd,AGENCY STAFF,"1,067.40",Human Resources.Temporary & Agency Staff.Professional
14/01/2016,NO RECOURSE TO PUBLIC FUNDS,Citibank N A,CLIENT ALLOWANCES - SOCIAL SERVICES,"1,064.42",Social Community Care Supplies & Service.Adult.Domiciliary Care
14/01/2016,HOUSING MANAGEMENT SERVICES,The Oyster Partnership Ltd,AGENCY STAFF,"1,050.00",Human Resources.Temporary & Agency Staff.Professional
14/01/2016,HOUSING MANAGEMENT SERVICES,The Oyster Partnership Ltd,AGENCY STAFF,"1,050.00",Human Resources.Temporary & Agency Staff.Professional
14/01/2016,HOUSING MANAGEMENT SERVICES,The Oyster Partnership Ltd,AGENCY STAFF,"1,050.00",Human Resources.Temporary & Agency Staff.Professional
14/01/2016,HOUSING MANAGEMENT SERVICES,The Oyster Partnership Ltd,AGENCY STAFF,"1,035.00",Human Resources.Temporary & Agency Staff.Professional
14/01/2016,NO RECOURSE TO PUBLIC FUNDS,R@W Logistics Ltd,RENTS PAYABLE,"1,030.00","Social Community Care Supplies & Service.Adult.Temporary Accommodation, Long Stay"
14/01/2016,NO RECOURSE TO PUBLIC FUNDS,R@W Logistics Ltd,RENTS PAYABLE,"1,020.00","Social Community Care Supplies & Service.Adult.Temporary Accommodation, Long Stay"
14/01/2016,"REGENERATION, PLANNING & NEIGHBOURHOODS",Clapham Manor Primary School,PROFESSIONAL SERVICES - GENERAL,"1,017.00",Education.School Services.NA
14/01/2016,ADULT SOCIAL CARE,Lambeth Chinese Community Association,DOMICILIARY CARE - THIRD PARTY,"1,008.94",Social Community Care Supplies & Service.Adult.Black & Minority Ethnic Services
14/01/2016,"SENIOR MANAGEMENT - CHILDREN, ADULTS AND HEALTH",Zinnia Consulting Ltd,STAFF DEVELOPMENT AND TRAINING,"1,000.00",Human Resources.Training & Conferences.Training
14/01/2016,NO RECOURSE TO PUBLIC FUNDS,R@W Logistics Ltd,RENTS PAYABLE,"1,000.00","Social Community Care Supplies & Service.Adult.Temporary Accommodation, Long Stay"
14/01/2016,NO RECOURSE TO PUBLIC FUNDS,R@W Logistics Ltd,RENTS PAYABLE,"1,000.00","Social Community Care Supplies & Service.Adult.Temporary Accommodation, Long Stay"
14/01/2016,NO RECOURSE TO PUBLIC FUNDS,R@W Logistics Ltd,RENTS PAYABLE,"1,000.00","Social Community Care Supplies & Service.Adult.Temporary Accommodation, Long Stay"
14/01/2016,POLICY & COMMUNICATIONS,Lexington Communications,CONSULTANCY FEES,"1,000.00",Information Communication Technology.Services.Consultancy
14/01/2016,POLICY & COMMUNICATIONS,Lexington Communications,CONSULTANCY FEES,"1,000.00",Information Communication Technology.Services.Consultancy
14/01/2016,ADULT SOCIAL CARE,Lambeth Chinese Community Association,DOMICILIARY CARE - THIRD PARTY,987.36,Social Community Care Supplies & Service.Adult.Black & Minority Ethnic Services
14/01/2016,NO RECOURSE TO PUBLIC FUNDS,R@W Logistics Ltd,RENTS PAYABLE,980.55,"Social Community Care Supplies & Service.Adult.Temporary Accommodation, Long Stay"
14/01/2016,NO RECOURSE TO PUBLIC FUNDS,R@W Logistics Ltd,RENTS PAYABLE,980.00,"Social Community Care Supplies & Service.Adult.Temporary Accommodation, Long Stay"
14/01/2016,NO RECOURSE TO PUBLIC FUNDS,R@W Logistics Ltd,RENTS PAYABLE,970.00,"Social Community Care Supplies & Service.Adult.Temporary Accommodation, Long Stay"
14/01/2016,NO RECOURSE TO PUBLIC FUNDS,R@W Logistics Ltd,RENTS PAYABLE,950.00,"Social Community Care Supplies & Service.Adult.Temporary Accommodation, Long Stay"
14/01/2016,NO RECOURSE TO PUBLIC FUNDS,R@W Logistics Ltd,RENTS PAYABLE,950.00,"Social Community Care Supplies & Service.Adult.Temporary Accommodation, Long Stay"
14/01/2016,NO RECOURSE TO PUBLIC FUNDS,R@W Logistics Ltd,RENTS PAYABLE,950.00,"Social Community Care Supplies & Service.Adult.Temporary Accommodation, Long Stay"
14/01/2016,FINANCE,Adair Auto Services Ltd,VEHICLE REPAIRS AND MAINTENANCE,945.00,Vehicle Management.Maintenance.NA
14/01/2016,"STRATEGY & COMMISSIONING - CHILDREN, DISABILITIES & PUBLIC HEALTH",Southside Partnership,PRIVATE CONTRACTORS PAYMENT - OTHER,923.52,Social Community Care Supplies & Service.Adult.Mental Health Services
14/01/2016,"STRATEGY & COMMISSIONING - CHILDREN, DISABILITIES & PUBLIC HEALTH",Amicus Horizon Ltd,PRIVATE CONTRACTORS PAYMENT - OTHER,918.92,"Social Community Care Supplies & Service.Adult.Temporary Accommodation, Short Stay"
14/01/2016,HOUSING MANAGEMENT SERVICES,The Oyster Partnership Ltd,AGENCY STAFF,900.00,Human Resources.Temporary & Agency Staff.Professional
14/01/2016,HOUSING MANAGEMENT SERVICES,The Oyster Partnership Ltd,AGENCY STAFF,900.00,Human Resources.Temporary & Agency Staff.Professional
14/01/2016,"REGENERATION, PLANNING & NEIGHBOURHOODS",UK Training Team Ltd,STAFF DEVELOPMENT AND TRAINING,900.00,Human Resources.Training & Conferences.Training
14/01/2016,ADULT SOCIAL CARE,Red Alert Ltd,PRIVATE CONTRACTORS PAYMENT - OTHER,864.05,Social Community Care Supplies & Service.Adult.Residential Care
14/01/2016,ADULT SOCIAL CARE,Holistic Community Care Ltd,DOMICILIARY CARE - THIRD PARTY,844.76,Social Community Care Supplies & Service.Adult.Domiciliary Care
14/01/2016,ADULT SOCIAL CARE,Holistic Community Care Ltd,DOMICILIARY CARE - THIRD PARTY,844.76,Social Community Care Supplies & Service.Adult.Domiciliary Care
14/01/2016,ADULT SOCIAL CARE,Lambeth Chinese Community Association,DOMICILIARY CARE - THIRD PARTY,821.68,Social Community Care Supplies & Service.Adult.Black & Minority Ethnic Services
14/01/2016,ADULT SOCIAL CARE,Lambeth Chinese Community Association,DOMICILIARY CARE - THIRD PARTY,813.12,Social Community Care Supplies & Service.Adult.Black & Minority Ethnic Services
14/01/2016,ADULT SOCIAL CARE,Lambeth Chinese Community Association,DOMICILIARY CARE - THIRD PARTY,811.21,Social Community Care Supplies & Service.Adult.Black & Minority Ethnic Services
14/01/2016,ADULT SOCIAL CARE,Red Alert Ltd,PRIVATE CONTRACTORS PAYMENT - OTHER,809.33,Social Community Care Supplies & Service.Adult.Residential Care
14/01/2016,ADULT SOCIAL CARE,Lambeth Chinese Community Association,DOMICILIARY CARE - THIRD PARTY,798.60,Social Community Care Supplies & Service.Adult.Black & Minority Ethnic Services
14/01/2016,"STRATEGY & COMMISSIONING - CHILDREN, DISABILITIES & PUBLIC HEALTH",Niemans Chemist Ltd,PAYMENT TO HEALTH AUTHORITIES,793.13,Healthcare.Public Health.NA
14/01/2016,ADULT SOCIAL CARE,Courier Cars (London) Ltd,CLIENT TRANSPORT,786.00,Public Transport.Taxi Services.NA
14/01/2016,STRATEGY & COMMISSIONING - HOUSING & COMMUNITIES (HRA),Martin Arnold Ltd,CONSULTANCY FEES,785.00,Consultancy.Technical & Feasibility.NA
14/01/2016,"REGENERATION, PLANNING & NEIGHBOURHOODS",Marsden Weighing Machine Group Ltd,"PURCHASE - EQUIPMENT, FURNITURE AND MATERIALS",751.00,Healthcare.Equipment.NA
14/01/2016,NO RECOURSE TO PUBLIC FUNDS,R@W Logistics Ltd,RENTS PAYABLE,750.00,"Social Community Care Supplies & Service.Adult.Temporary Accommodation, Long Stay"
14/01/2016,ADULT SOCIAL CARE,DACS Care & Repair,BUILDING ALTERATIONS AND MATERIALS,730.00,Building Construction Materials.Bathrooms.NA
14/01/2016,CHILDREN'S SERVICES,Compass Fostering London & Eastern Ltd,FOSTERING AGENCY PLACEMENTS - PRIVATE CONTRACTORS PAYMENT,722.85,Social Community Care Supplies & Service.Children.Fostering
14/01/2016,ADULT SOCIAL CARE,The Grace Eyre Foundation,SUPPORTED OTHER ACCOMMODATION - PRIVATE CONTRACTORS PAYMENT,717.64,Social Community Care Supplies & Service.Adult.Residential Care
14/01/2016,ADULT SOCIAL CARE,Lambeth Chinese Community Association,DOMICILIARY CARE - THIRD PARTY,711.48,Social Community Care Supplies & Service.Adult.Black & Minority Ethnic Services
14/01/2016,ADULT SOCIAL CARE,Lambeth Chinese Community Association,DOMICILIARY CARE - THIRD PARTY,675.70,Social Community Care Supplies & Service.Adult.Black & Minority Ethnic Services
14/01/2016,ADULT SOCIAL CARE,Lambeth Chinese Community Association,DOMICILIARY CARE - THIRD PARTY,666.25,Social Community Care Supplies & Service.Adult.Black & Minority Ethnic Services
14/01/2016,ADULT SOCIAL CARE,The Grace Eyre Foundation,SUPPORTED OTHER ACCOMMODATION - PRIVATE CONTRACTORS PAYMENT,661.43,Social Community Care Supplies & Service.Adult.Residential Care
14/01/2016,ADULT SOCIAL CARE,Lambeth Chinese Community Association,DOMICILIARY CARE - THIRD PARTY,653.40,Social Community Care Supplies & Service.Adult.Black & Minority Ethnic Services
14/01/2016,ADULT SOCIAL CARE,Lambeth Chinese Community Association,DOMICILIARY CARE - THIRD PARTY,641.00,Social Community Care Supplies & Service.Adult.Black & Minority Ethnic Services
14/01/2016,ADULT SOCIAL CARE,Lambeth Chinese Community Association,DOMICILIARY CARE - THIRD PARTY,638.96,Social Community Care Supplies & Service.Adult.Black & Minority Ethnic Services
14/01/2016,HOUSING MANAGEMENT SERVICES,The Oyster Partnership Ltd,AGENCY STAFF,630.00,Human Resources.Temporary & Agency Staff.Professional
14/01/2016,ADULT SOCIAL CARE,Solor Care Group Ltd,DAYCARE - PRIVATE CONTRACTORS PAYMENT,611.63,Social Community Care Supplies & Service.Adult.Residential Care
14/01/2016,"STRATEGY & COMMISSIONING - CHILDREN, DISABILITIES & PUBLIC HEALTH",Anchor Trust,PRIVATE CONTRACTORS PAYMENT - OTHER,610.32,Social Community Care Supplies & Service.Adult.Residential Care
14/01/2016,ADULT SOCIAL CARE,Lambeth Chinese Community Association,DOMICILIARY CARE - THIRD PARTY,609.84,Social Community Care Supplies & Service.Adult.Black & Minority Ethnic Services
14/01/2016,ADULT SOCIAL CARE,Lambeth Chinese Community Association,DOMICILIARY CARE - THIRD PARTY,603.01,Social Community Care Supplies & Service.Adult.Black & Minority Ethnic Services
14/01/2016,HUMAN RESOURCES AND ORGANISATIONAL DEVELOPMENT,National Skills Academy for Social Care,STAFF DEVELOPMENT AND TRAINING,600.00,Human Resources.Training & Conferences.Training
14/01/2016,ADULT SOCIAL CARE,Courier Cars (London) Ltd,CLIENT TRANSPORT,600.00,Public Transport.Taxi Services.NA
14/01/2016,HOUSING NEEDS,Abbey Car Hire (UK) Ltd,CLIENT TRANSPORT,596.00,Public Transport.Taxi Services.Non Staff
14/01/2016,ADULT SOCIAL CARE,Xtracare Agency Ltd,DOMICILIARY CARE - THIRD PARTY,576.00,Social Community Care Supplies & Service.Adult.Domiciliary Care
14/01/2016,ADULT SOCIAL CARE,DACS Care & Repair,BUILDING ALTERATIONS AND MATERIALS,570.00,Building Construction Materials.Bathrooms.NA
14/01/2016,ADULT SOCIAL CARE,Lambeth Chinese Community Association,DOMICILIARY CARE - THIRD PARTY,566.28,Social Community Care Supplies & Service.Adult.Black & Minority Ethnic Services
14/01/2016,ADULT SOCIAL CARE,DACS Care & Repair,BUILDING ALTERATIONS AND MATERIALS,566.00,Building Construction Materials.Bathrooms.NA
14/01/2016,ADULT SOCIAL CARE,Courier Cars (London) Ltd,CLIENT TRANSPORT,555.00,Public Transport.Taxi Services.NA
14/01/2016,"REGENERATION, PLANNING & NEIGHBOURHOODS",Farthest Gate Ltd,ICT SOFTWARE,525.96,Information Communication Technology.Software.NA
14/01/2016,"REGENERATION, PLANNING & NEIGHBOURHOODS",Farthest Gate Ltd,ICT SOFTWARE,525.96,Information Communication Technology.Software.NA
14/01/2016,ADULT SOCIAL CARE,A* Transport Ltd,CLIENT TRANSPORT,520.00,Public Transport.Passenger Transport.NA
14/01/2016,ADULT SOCIAL CARE,A* Transport Ltd,CLIENT TRANSPORT,520.00,Public Transport.Passenger Transport.NA
14/01/2016,FINANCE,Adair Auto Services Ltd,VEHICLE REPAIRS AND MAINTENANCE,519.25,Vehicle Management.Maintenance.NA
14/01/2016,ADULT SOCIAL CARE,Lambeth Chinese Community Association,DOMICILIARY CARE - THIRD PARTY,510.63,Social Community Care Supplies & Service.Adult.Black & Minority Ethnic Services
14/01/2016,ADULT SOCIAL CARE,Emerald Care Services (UK) Ltd,DOMICILIARY CARE - THIRD PARTY,501.60,Social Community Care Supplies & Service.Adult.Domiciliary Care
14/01/2016,ADULT SOCIAL CARE,Emerald Care Services (UK) Ltd,DOMICILIARY CARE - THIRD PARTY,501.60,Social Community Care Supplies & Service.Adult.Domiciliary Care
14/01/2016,ADULT SOCIAL CARE,Apetito Ltd,ADULT PAID MEALS INCOME,(705.00),Catering.Food & Beverages.NA
14/01/2016,ADULT SOCIAL CARE,Apetito Ltd,ADULT PAID MEALS INCOME,"(1,146.00)",Catering.Food & Beverages.NA
14/01/2016,NO RECOURSE TO PUBLIC FUNDS,Citibank N A,CLIENT ALLOWANCES - SOCIAL SERVICES,"(1,918.19)",Social Community Care Supplies & Service.Adult.Domiciliary Care
14/01/2016,ADULT SOCIAL CARE,Apetito Ltd,ADULT PAID MEALS INCOME,"(3,991.00)",Catering.Food & Beverages.NA
14/01/2016,ADULT SOCIAL CARE,Apetito Ltd,ADULT PAID MEALS INCOME,"(7,296.00)",Catering.Food & Beverages.NA
14/01/2016,"SENIOR MANAGEMENT - CHILDREN, ADULTS AND HEALTH",NHS Lambeth Clinical Commissioning Group,PAYMENT TO HEALTH AUTHORITIES,"(96,787.23)",Healthcare.Public Health.NA
15/01/2016,"REGENERATION, PLANNING & NEIGHBOURHOODS",F M Conway Ltd_d,"MAINTENANCE - EQUIPMENT, FURNITURE AND MATERIALS","74,498.70","Works - Construction, Repair & Maint.Roads.Repair & Maintenance"
15/01/2016,"STRATEGY & COMMISSIONING - CHILDREN, DISABILITIES & PUBLIC HEALTH",Imperial College Healthcare NHS Trust,PAYMENT TO HEALTH AUTHORITIES,"60,894.00",Healthcare.Public Health.NA
15/01/2016,"SENIOR MANAGEMENT - CHILDREN, ADULTS AND HEALTH",NHS Lambeth Clinical Commissioning Group,PAYMENT TO HEALTH AUTHORITIES,"50,677.68",Healthcare.Public Health.NA
15/01/2016,HOUSING MANAGEMENT SERVICES,The Great Outdoor Gym Company Ltd,"MAINTENANCE - EQUIPMENT, FURNITURE AND MATERIALS","39,324.00",Sports & Playground Equipment & Maint.Sports Equipment.NA
15/01/2016,HOUSING MANAGEMENT SERVICES,The Great Outdoor Gym Company Ltd,"MAINTENANCE - EQUIPMENT, FURNITURE AND MATERIALS","39,324.00",Sports & Playground Equipment & Maint.Sports Equipment.NA
15/01/2016,HOUSING MANAGEMENT SERVICES,The Great Outdoor Gym Company Ltd,"MAINTENANCE - EQUIPMENT, FURNITURE AND MATERIALS","19,662.00",Sports & Playground Equipment & Maint.Sports Equipment.NA
15/01/2016,EDUCATION & LEARNING,Cressey Oasis Education Ltd,PROFESSIONAL SERVICES - GENERAL,"17,576.00",Education.School Services.NA
15/01/2016,CHILDREN'S SERVICES,Wilderness Experiences,RESIDENTIAL PLACEMENTS - PRIVATE CONTRACTORS PAYMENT,"15,528.57",Social Community Care Supplies & Service.Children.Residential Care
15/01/2016,CHILDREN'S SERVICES,16 to 21 Project t/a Muswell Hill Children's Home,RESIDENTIAL PLACEMENTS - PRIVATE CONTRACTORS PAYMENT,"12,568.71",Social Community Care Supplies & Service.Children.Residential Care
15/01/2016,"STRATEGY & COMMISSIONING - CHILDREN, DISABILITIES & PUBLIC HEALTH",Carat,PAYMENT TO HEALTH AUTHORITIES,"12,425.31",Healthcare.Public Health.NA
15/01/2016,CHILDREN'S SERVICES,Kartikeya Solutions Ltd,RESIDENTIAL PLACEMENTS - PRIVATE CONTRACTORS PAYMENT,"11,005.00",Social Community Care Supplies & Service.Children.Residential Care
15/01/2016,CHILDREN'S SERVICES,Ownlife Ltd,RESIDENTIAL PLACEMENTS - PRIVATE CONTRACTORS PAYMENT,"9,858.00",Social Community Care Supplies & Service.Children.Residential Care
15/01/2016,CHILDREN'S SERVICES,Tracs Ltd,RESIDENTIAL PLACEMENTS - PRIVATE CONTRACTORS PAYMENT,"9,508.15",Social Community Care Supplies & Service.Disabled Children.Residential Care
15/01/2016,STRATEGY & COMMISSIONING - HOUSING & COMMUNITIES (HRA),CalfordSeaden LLP,CONSULTANCY FEES,"9,120.00",Consultancy.Property.NA
15/01/2016,EDUCATION & LEARNING,Blossom Lower School & Upper House,PROFESSIONAL SERVICES - GENERAL,"9,100.00",Education.School Services.NA
15/01/2016,"REGENERATION, PLANNING & NEIGHBOURHOODS",F M Conway Ltd_d,"MAINTENANCE - EQUIPMENT, FURNITURE AND MATERIALS","8,296.46","Works - Construction, Repair & Maint.Roads.Repair & Maintenance"
15/01/2016,EDUCATION & LEARNING,Phoenix Place,PROFESSIONAL SERVICES - GENERAL,"6,588.00",Education.Educational Placements.NA
15/01/2016,EDUCATION & LEARNING,Phoenix Place,PROFESSIONAL SERVICES - GENERAL,"6,588.00",Education.Educational Placements.NA
15/01/2016,ADULT SOCIAL CARE,Lim Independent living & community Care Services Ltd,DOMICILIARY CARE - THIRD PARTY,"6,057.50",Social Community Care Supplies & Service.Children.Childcare Services
15/01/2016,EDUCATION & LEARNING,Ros Scherler,CONSULTANCY FEES,"5,500.00",Consultancy.Business.NA
15/01/2016,EDUCATION & LEARNING,Linden Lodge School,PROFESSIONAL SERVICES - GENERAL,"5,225.00",Education.School Services.NA
15/01/2016,CHILDREN'S SERVICES,Hereson House Ltd,RENTS PAYABLE,"5,063.32",Social Community Care Supplies & Service.Children.Residential Care
15/01/2016,ADULT SOCIAL CARE,Southside Partnership,DOMICILIARY CARE - THIRD PARTY,"5,054.40",Social Community Care Supplies & Service.Adult.Mental Health Services
15/01/2016,CAPITAL CC,London Wildlife Trust,ARTS AND LEISURE COSTS,"4,875.00",Arts & Leisure Services.Organised Activities.NA
15/01/2016,HOUSING NEEDS,Hytyme Ltd,BED & BREAKFAST - PRIVATE CONTRACTORS PAYMENT,"4,865.00",Housing Management.Letting Agents.NA
15/01/2016,ADULT SOCIAL CARE,Southside Partnership,DOMICILIARY CARE - THIRD PARTY,"4,857.92",Social Community Care Supplies & Service.Adult.Mental Health Services
15/01/2016,EDUCATION & LEARNING,Streatham & Clapham High School,PROFESSIONAL SERVICES - GENERAL,"4,750.00",Education.School Services.NA
15/01/2016,"STRATEGY & COMMISSIONING - CHILDREN, DISABILITIES & PUBLIC HEALTH",The Exchange Surgery_d,PAYMENT TO HEALTH AUTHORITIES,"4,216.74",Healthcare.Public Health.NA
15/01/2016,CHILDREN'S SERVICES,Paediatric Nursing Link Ltd,DOMICILIARY CARE - THIRD PARTY,"3,190.67",Social Community Care Supplies & Service.Children.Childcare Services
15/01/2016,NO RECOURSE TO PUBLIC FUNDS,R@W Logistics Ltd,RENTS PAYABLE,"2,993.15","Social Community Care Supplies & Service.Adult.Temporary Accommodation, Long Stay"
15/01/2016,HOUSING MANAGEMENT SERVICES,Sir Frederick Snow & Partners Ltd,"MAINTENANCE - EQUIPMENT, FURNITURE AND MATERIALS","2,960.00","Works - Construction, Repair & Maint.Engineering.NA"
15/01/2016,HOUSING MANAGEMENT SERVICES,Access Garage Doors Ltd,BUILDING ALTERATIONS AND MATERIALS,"2,778.35",Building Construction Materials.Fencing.NA
15/01/2016,ADULT SOCIAL CARE,Bluebird Care Lambeth,DOMICILIARY CARE - THIRD PARTY,"2,688.00",Social Community Care Supplies & Service.Adult.Domiciliary Care
15/01/2016,BUSINESS & CUSTOMER SERVICES,Heywood Ltd,ICT SOFTWARE,"2,646.00",Information Communication Technology.Software.Customised & Bespoke
15/01/2016,HOUSING NEEDS,Denhan International,BED & BREAKFAST - PRIVATE CONTRACTORS PAYMENT,"2,635.00",Housing Management.Letting Agents.NA
15/01/2016,HOUSING NEEDS,Euro Hotels Ltd,BED & BREAKFAST - PRIVATE CONTRACTORS PAYMENT,"2,635.00",Housing Management.Letting Agents.NA
15/01/2016,HOUSING NEEDS,Happy Homes (One) Ltd,BED & BREAKFAST - PRIVATE CONTRACTORS PAYMENT,"2,635.00",Housing Management.Letting Agents.NA
15/01/2016,HOUSING NEEDS,D Singh Properties Ltd TA DS Properties,BED & BREAKFAST - PRIVATE CONTRACTORS PAYMENT,"2,604.00",Housing Management.Letting Agents.NA
15/01/2016,HOUSING NEEDS,Bizylet Property Management Ltd,BED & BREAKFAST - PRIVATE CONTRACTORS PAYMENT,"2,604.00",Housing Management.Letting Agents.NA
15/01/2016,HOUSING NEEDS,Bizylet Property Management Ltd,BED & BREAKFAST - PRIVATE CONTRACTORS PAYMENT,"2,604.00",Housing Management.Letting Agents.NA
15/01/2016,BUSINESS & CUSTOMER SERVICES,Emprise Services Plc,SECURITY SERVICES (EXCLUDING PREMISES),"2,523.00",Facilities & Management Services.Security.NA
15/01/2016,HOUSING NEEDS,Rent Connect,BED & BREAKFAST - PRIVATE CONTRACTORS PAYMENT,"2,480.00",Housing Management.Letting Agents.NA
15/01/2016,HOUSING NEEDS,Norbury Property Services (London) Ltd,BED & BREAKFAST - PRIVATE CONTRACTORS PAYMENT,"2,480.00",Housing Management.Letting Agents.NA
15/01/2016,HOUSING NEEDS,Denhan International,BED & BREAKFAST - PRIVATE CONTRACTORS PAYMENT,"2,480.00",Housing Management.Letting Agents.NA
15/01/2016,HOUSING NEEDS,Denhan International,BED & BREAKFAST - PRIVATE CONTRACTORS PAYMENT,"2,480.00",Housing Management.Letting Agents.NA
15/01/2016,HOUSING NEEDS,D Singh Properties Ltd TA DS Properties,BED & BREAKFAST - PRIVATE CONTRACTORS PAYMENT,"2,480.00",Housing Management.Letting Agents.NA
15/01/2016,HOUSING NEEDS,D Singh Properties Ltd TA DS Properties,BED & BREAKFAST - PRIVATE CONTRACTORS PAYMENT,"2,480.00",Housing Management.Letting Agents.NA
15/01/2016,HOUSING NEEDS,Risbol Ltd,BED & BREAKFAST - PRIVATE CONTRACTORS PAYMENT,"2,480.00",Housing Management.Stock Management.NA
15/01/2016,HOUSING NEEDS,Risbol Ltd,BED & BREAKFAST - PRIVATE CONTRACTORS PAYMENT,"2,480.00",Housing Management.Stock Management.NA
15/01/2016,HOUSING NEEDS,Norbury Property Services (London) Ltd,BED & BREAKFAST - PRIVATE CONTRACTORS PAYMENT,"2,400.00",Housing Management.Letting Agents.NA
15/01/2016,HOUSING NEEDS,Denhan International,BED & BREAKFAST - PRIVATE CONTRACTORS PAYMENT,"2,356.00",Housing Management.Letting Agents.NA
15/01/2016,HOUSING NEEDS,Willow Estate Agents,BED & BREAKFAST - PRIVATE CONTRACTORS PAYMENT,"2,356.00",Housing Management.Letting Agents.NA
15/01/2016,HOUSING NEEDS,Housing Action Management ltd,BED & BREAKFAST - PRIVATE CONTRACTORS PAYMENT,"2,356.00",Housing Management.Letting Agents.NA
15/01/2016,HOUSING NEEDS,Housing Action Management ltd,BED & BREAKFAST - PRIVATE CONTRACTORS PAYMENT,"2,356.00",Housing Management.Letting Agents.NA
15/01/2016,HOUSING NEEDS,Housing Action Management ltd,BED & BREAKFAST - PRIVATE CONTRACTORS PAYMENT,"2,356.00",Housing Management.Letting Agents.NA
15/01/2016,CHILDREN'S SERVICES,Lambeth Family Link,DOMICILIARY CARE - THIRD PARTY,"2,340.00",Social Community Care Supplies & Service.Children.Fostering
15/01/2016,HOUSING NEEDS,Galaxy Lettings Ltd,BED & BREAKFAST - PRIVATE CONTRACTORS PAYMENT,"2,325.00",Housing Management.Letting Agents.NA
15/01/2016,HOUSING NEEDS,Galaxy Lettings Ltd,BED & BREAKFAST - PRIVATE CONTRACTORS PAYMENT,"2,325.00",Housing Management.Letting Agents.NA
15/01/2016,HOUSING NEEDS,Galaxy Lettings Ltd,BED & BREAKFAST - PRIVATE CONTRACTORS PAYMENT,"2,325.00",Housing Management.Letting Agents.NA
15/01/2016,HOUSING NEEDS,Norbury Property Services (London) Ltd,BED & BREAKFAST - PRIVATE CONTRACTORS PAYMENT,"2,325.00",Housing Management.Letting Agents.NA
15/01/2016,HOUSING NEEDS,Denhan International,BED & BREAKFAST - PRIVATE CONTRACTORS PAYMENT,"2,325.00",Housing Management.Letting Agents.NA
15/01/2016,HOUSING NEEDS,Denhan International,BED & BREAKFAST - PRIVATE CONTRACTORS PAYMENT,"2,325.00",Housing Management.Letting Agents.NA
15/01/2016,HOUSING NEEDS,Denhan International,BED & BREAKFAST - PRIVATE CONTRACTORS PAYMENT,"2,325.00",Housing Management.Letting Agents.NA
15/01/2016,HOUSING NEEDS,Denhan International,BED & BREAKFAST - PRIVATE CONTRACTORS PAYMENT,"2,325.00",Housing Management.Letting Agents.NA
15/01/2016,HOUSING NEEDS,Denhan International,BED & BREAKFAST - PRIVATE CONTRACTORS PAYMENT,"2,325.00",Housing Management.Letting Agents.NA
15/01/2016,HOUSING NEEDS,Denhan International,BED & BREAKFAST - PRIVATE CONTRACTORS PAYMENT,"2,325.00",Housing Management.Letting Agents.NA
15/01/2016,HOUSING NEEDS,Denhan International,BED & BREAKFAST - PRIVATE CONTRACTORS PAYMENT,"2,325.00",Housing Management.Letting Agents.NA
15/01/2016,HOUSING NEEDS,Denhan International,BED & BREAKFAST - PRIVATE CONTRACTORS PAYMENT,"2,325.00",Housing Management.Letting Agents.NA
15/01/2016,HOUSING NEEDS,Denhan International,BED & BREAKFAST - PRIVATE CONTRACTORS PAYMENT,"2,325.00",Housing Management.Letting Agents.NA
15/01/2016,HOUSING NEEDS,Denhan International,BED & BREAKFAST - PRIVATE CONTRACTORS PAYMENT,"2,325.00",Housing Management.Letting Agents.NA
15/01/2016,HOUSING NEEDS,Denhan International,BED & BREAKFAST - PRIVATE CONTRACTORS PAYMENT,"2,325.00",Housing Management.Letting Agents.NA
15/01/2016,HOUSING NEEDS,Denhan International,BED & BREAKFAST - PRIVATE CONTRACTORS PAYMENT,"2,325.00",Housing Management.Letting Agents.NA
15/01/2016,HOUSING NEEDS,Denhan International,BED & BREAKFAST - PRIVATE CONTRACTORS PAYMENT,"2,325.00",Housing Management.Letting Agents.NA
15/01/2016,HOUSING NEEDS,Denhan International,BED & BREAKFAST - PRIVATE CONTRACTORS PAYMENT,"2,325.00",Housing Management.Letting Agents.NA
15/01/2016,HOUSING NEEDS,Denhan International,BED & BREAKFAST - PRIVATE CONTRACTORS PAYMENT,"2,325.00",Housing Management.Letting Agents.NA
15/01/2016,HOUSING NEEDS,Denhan International,BED & BREAKFAST - PRIVATE CONTRACTORS PAYMENT,"2,325.00",Housing Management.Letting Agents.NA
15/01/2016,HOUSING NEEDS,Denhan International,BED & BREAKFAST - PRIVATE CONTRACTORS PAYMENT,"2,325.00",Housing Management.Letting Agents.NA
15/01/2016,HOUSING NEEDS,Denhan International,BED & BREAKFAST - PRIVATE CONTRACTORS PAYMENT,"2,325.00",Housing Management.Letting Agents.NA
15/01/2016,HOUSING NEEDS,Denhan International,BED & BREAKFAST - PRIVATE CONTRACTORS PAYMENT,"2,325.00",Housing Management.Letting Agents.NA
15/01/2016,HOUSING NEEDS,Hytyme Ltd,BED & BREAKFAST - PRIVATE CONTRACTORS PAYMENT,"2,325.00",Housing Management.Letting Agents.NA
15/01/2016,HOUSING NEEDS,Hytyme Ltd,BED & BREAKFAST - PRIVATE CONTRACTORS PAYMENT,"2,325.00",Housing Management.Letting Agents.NA
15/01/2016,HOUSING NEEDS,Hytyme Ltd,BED & BREAKFAST - PRIVATE CONTRACTORS PAYMENT,"2,325.00",Housing Management.Letting Agents.NA
15/01/2016,HOUSING NEEDS,Hytyme Ltd,BED & BREAKFAST - PRIVATE CONTRACTORS PAYMENT,"2,325.00",Housing Management.Letting Agents.NA
15/01/2016,HOUSING NEEDS,Hytyme Ltd,BED & BREAKFAST - PRIVATE CONTRACTORS PAYMENT,"2,325.00",Housing Management.Letting Agents.NA
15/01/2016,HOUSING NEEDS,UK Room (London) Ltd,BED & BREAKFAST - PRIVATE CONTRACTORS PAYMENT,"2,325.00",Housing Management.Letting Agents.NA
15/01/2016,HOUSING NEEDS,D Singh Properties Ltd TA DS Properties,BED & BREAKFAST - PRIVATE CONTRACTORS PAYMENT,"2,325.00",Housing Management.Letting Agents.NA
15/01/2016,HOUSING NEEDS,D Singh Properties Ltd TA DS Properties,BED & BREAKFAST - PRIVATE CONTRACTORS PAYMENT,"2,325.00",Housing Management.Letting Agents.NA
15/01/2016,HOUSING NEEDS,D Singh Properties Ltd TA DS Properties,BED & BREAKFAST - PRIVATE CONTRACTORS PAYMENT,"2,325.00",Housing Management.Letting Agents.NA
15/01/2016,HOUSING NEEDS,D Singh Properties Ltd TA DS Properties,BED & BREAKFAST - PRIVATE CONTRACTORS PAYMENT,"2,325.00",Housing Management.Letting Agents.NA
15/01/2016,HOUSING NEEDS,Everhill Management Ltd,BED & BREAKFAST - PRIVATE CONTRACTORS PAYMENT,"2,325.00",Housing Management.Letting Agents.NA
15/01/2016,HOUSING NEEDS,Midos Estates Ltd,BED & BREAKFAST - PRIVATE CONTRACTORS PAYMENT,"2,325.00",Housing Management.Letting Agents.NA
15/01/2016,HOUSING NEEDS,Midos Estates Ltd,BED & BREAKFAST - PRIVATE CONTRACTORS PAYMENT,"2,325.00",Housing Management.Letting Agents.NA
15/01/2016,HOUSING NEEDS,Midos Estates Ltd,BED & BREAKFAST - PRIVATE CONTRACTORS PAYMENT,"2,325.00",Housing Management.Letting Agents.NA
15/01/2016,HOUSING NEEDS,Midos Estates Ltd,BED & BREAKFAST - PRIVATE CONTRACTORS PAYMENT,"2,325.00",Housing Management.Letting Agents.NA
15/01/2016,HOUSING NEEDS,Midos Estates Ltd,BED & BREAKFAST - PRIVATE CONTRACTORS PAYMENT,"2,325.00",Housing Management.Letting Agents.NA
15/01/2016,HOUSING NEEDS,Midos Estates Ltd,BED & BREAKFAST - PRIVATE CONTRACTORS PAYMENT,"2,325.00",Housing Management.Letting Agents.NA
15/01/2016,HOUSING NEEDS,Midos Estates Ltd,BED & BREAKFAST - PRIVATE CONTRACTORS PAYMENT,"2,325.00",Housing Management.Letting Agents.NA
15/01/2016,HOUSING NEEDS,Midos Estates Ltd,BED & BREAKFAST - PRIVATE CONTRACTORS PAYMENT,"2,325.00",Housing Management.Letting Agents.NA
15/01/2016,HOUSING NEEDS,Midos Estates Ltd,BED & BREAKFAST - PRIVATE CONTRACTORS PAYMENT,"2,325.00",Housing Management.Letting Agents.NA
15/01/2016,HOUSING NEEDS,Midos Estates Ltd,BED & BREAKFAST - PRIVATE CONTRACTORS PAYMENT,"2,325.00",Housing Management.Letting Agents.NA
15/01/2016,HOUSING NEEDS,Midos Estates Ltd,BED & BREAKFAST - PRIVATE CONTRACTORS PAYMENT,"2,325.00",Housing Management.Letting Agents.NA
15/01/2016,HOUSING NEEDS,Midos Estates Ltd,BED & BREAKFAST - PRIVATE CONTRACTORS PAYMENT,"2,325.00",Housing Management.Letting Agents.NA
15/01/2016,HOUSING NEEDS,Cromwood Ltd,BED & BREAKFAST - PRIVATE CONTRACTORS PAYMENT,"2,325.00",Housing Management.Letting Agents.NA
15/01/2016,HOUSING NEEDS,Euro Hotels Ltd,BED & BREAKFAST - PRIVATE CONTRACTORS PAYMENT,"2,325.00",Housing Management.Letting Agents.NA
15/01/2016,HOUSING NEEDS,Happy Homes (One) Ltd,BED & BREAKFAST - PRIVATE CONTRACTORS PAYMENT,"2,325.00",Housing Management.Letting Agents.NA
15/01/2016,HOUSING NEEDS,Risbol Ltd,BED & BREAKFAST - PRIVATE CONTRACTORS PAYMENT,"2,325.00",Housing Management.Stock Management.NA
15/01/2016,HOUSING NEEDS,Risbol Ltd,BED & BREAKFAST - PRIVATE CONTRACTORS PAYMENT,"2,325.00",Housing Management.Stock Management.NA
15/01/2016,HOUSING NEEDS,Risbol Ltd,BED & BREAKFAST - PRIVATE CONTRACTORS PAYMENT,"2,325.00",Housing Management.Stock Management.NA
15/01/2016,HOUSING NEEDS,Risbol Ltd,BED & BREAKFAST - PRIVATE CONTRACTORS PAYMENT,"2,325.00",Housing Management.Stock Management.NA
15/01/2016,HOUSING NEEDS,Risbol Ltd,BED & BREAKFAST - PRIVATE CONTRACTORS PAYMENT,"2,325.00",Housing Management.Stock Management.NA
15/01/2016,HOUSING NEEDS,Risbol Ltd,BED & BREAKFAST - PRIVATE CONTRACTORS PAYMENT,"2,325.00",Housing Management.Stock Management.NA
15/01/2016,HOUSING NEEDS,Risbol Ltd,BED & BREAKFAST - PRIVATE CONTRACTORS PAYMENT,"2,325.00",Housing Management.Stock Management.NA
15/01/2016,HOUSING NEEDS,Risbol Ltd,BED & BREAKFAST - PRIVATE CONTRACTORS PAYMENT,"2,325.00",Housing Management.Stock Management.NA
15/01/2016,HOUSING NEEDS,Risbol Ltd,BED & BREAKFAST - PRIVATE CONTRACTORS PAYMENT,"2,325.00",Housing Management.Stock Management.NA
15/01/2016,HOUSING NEEDS,Risbol Ltd,BED & BREAKFAST - PRIVATE CONTRACTORS PAYMENT,"2,325.00",Housing Management.Stock Management.NA
15/01/2016,HOUSING NEEDS,Risbol Ltd,BED & BREAKFAST - PRIVATE CONTRACTORS PAYMENT,"2,325.00",Housing Management.Stock Management.NA
15/01/2016,HOUSING NEEDS,Risbol Ltd,BED & BREAKFAST - PRIVATE CONTRACTORS PAYMENT,"2,325.00",Housing Management.Stock Management.NA
15/01/2016,HOUSING NEEDS,D Singh Properties Ltd TA DS Properties,BED & BREAKFAST - PRIVATE CONTRACTORS PAYMENT,"2,294.00",Housing Management.Letting Agents.NA
15/01/2016,HOUSING NEEDS,D Singh Properties Ltd TA DS Properties,BED & BREAKFAST - PRIVATE CONTRACTORS PAYMENT,"2,294.00",Housing Management.Letting Agents.NA
15/01/2016,HOUSING NEEDS,Risbol Ltd,BED & BREAKFAST - PRIVATE CONTRACTORS PAYMENT,"2,263.00",Housing Management.Stock Management.NA
15/01/2016,NO RECOURSE TO PUBLIC FUNDS,R@W Logistics Ltd,RENTS PAYABLE,"2,254.25","Social Community Care Supplies & Service.Adult.Temporary Accommodation, Long Stay"
15/01/2016,HOUSING MANAGEMENT SERVICES,EDF Energy Plc,ELECTRICITY,"2,253.00",Utilities.Electricity.NA
15/01/2016,HOUSING NEEDS,Scott Holdings Int Ltd,BED & BREAKFAST - PRIVATE CONTRACTORS PAYMENT,"2,232.00",Consultancy.Property.NA
15/01/2016,"STRATEGY & COMMISSIONING - CHILDREN, DISABILITIES & PUBLIC HEALTH",Carat,PAYMENT TO HEALTH AUTHORITIES,"2,219.16",Healthcare.Public Health.NA
15/01/2016,HOUSING NEEDS,Scott Holdings Int Ltd,BED & BREAKFAST - PRIVATE CONTRACTORS PAYMENT,"2,170.00",Consultancy.Property.NA
15/01/2016,HOUSING NEEDS,Rent Connect,BED & BREAKFAST - PRIVATE CONTRACTORS PAYMENT,"2,170.00",Housing Management.Letting Agents.NA
15/01/2016,HOUSING NEEDS,Rent Connect,BED & BREAKFAST - PRIVATE CONTRACTORS PAYMENT,"2,170.00",Housing Management.Letting Agents.NA
15/01/2016,HOUSING NEEDS,Norbury Property Services (London) Ltd,BED & BREAKFAST - PRIVATE CONTRACTORS PAYMENT,"2,170.00",Housing Management.Letting Agents.NA
15/01/2016,HOUSING NEEDS,Norbury Property Services (London) Ltd,BED & BREAKFAST - PRIVATE CONTRACTORS PAYMENT,"2,170.00",Housing Management.Letting Agents.NA
15/01/2016,HOUSING NEEDS,Denhan International,BED & BREAKFAST - PRIVATE CONTRACTORS PAYMENT,"2,170.00",Housing Management.Letting Agents.NA
15/01/2016,HOUSING NEEDS,UK Room (London) Ltd,BED & BREAKFAST - PRIVATE CONTRACTORS PAYMENT,"2,170.00",Housing Management.Letting Agents.NA
15/01/2016,HOUSING NEEDS,D Singh Properties Ltd TA DS Properties,BED & BREAKFAST - PRIVATE CONTRACTORS PAYMENT,"2,170.00",Housing Management.Letting Agents.NA
15/01/2016,HOUSING NEEDS,Bizylet Property Management Ltd,BED & BREAKFAST - PRIVATE CONTRACTORS PAYMENT,"2,170.00",Housing Management.Letting Agents.NA
15/01/2016,HOUSING NEEDS,Midos Estates Ltd,BED & BREAKFAST - PRIVATE CONTRACTORS PAYMENT,"2,170.00",Housing Management.Letting Agents.NA
15/01/2016,HOUSING NEEDS,Euro Hotels Ltd,BED & BREAKFAST - PRIVATE CONTRACTORS PAYMENT,"2,170.00",Housing Management.Letting Agents.NA
15/01/2016,HOUSING NEEDS,Risbol Ltd,BED & BREAKFAST - PRIVATE CONTRACTORS PAYMENT,"2,170.00",Housing Management.Stock Management.NA
15/01/2016,HOUSING NEEDS,Risbol Ltd,BED & BREAKFAST - PRIVATE CONTRACTORS PAYMENT,"2,170.00",Housing Management.Stock Management.NA
15/01/2016,HOUSING NEEDS,Risbol Ltd,BED & BREAKFAST - PRIVATE CONTRACTORS PAYMENT,"2,170.00",Housing Management.Stock Management.NA
15/01/2016,HOUSING NEEDS,Risbol Ltd,BED & BREAKFAST - PRIVATE CONTRACTORS PAYMENT,"2,170.00",Housing Management.Stock Management.NA
15/01/2016,HOUSING NEEDS,Risbol Ltd,BED & BREAKFAST - PRIVATE CONTRACTORS PAYMENT,"2,170.00",Housing Management.Stock Management.NA
15/01/2016,HOUSING NEEDS,Risbol Ltd,BED & BREAKFAST - PRIVATE CONTRACTORS PAYMENT,"2,170.00",Housing Management.Stock Management.NA
15/01/2016,HOUSING NEEDS,Risbol Ltd,BED & BREAKFAST - PRIVATE CONTRACTORS PAYMENT,"2,170.00",Housing Management.Stock Management.NA
15/01/2016,HOUSING NEEDS,Risbol Ltd,BED & BREAKFAST - PRIVATE CONTRACTORS PAYMENT,"2,170.00",Housing Management.Stock Management.NA
15/01/2016,HOUSING NEEDS,Risbol Ltd,BED & BREAKFAST - PRIVATE CONTRACTORS PAYMENT,"2,170.00",Housing Management.Stock Management.NA
15/01/2016,HOUSING NEEDS,Risbol Ltd,BED & BREAKFAST - PRIVATE CONTRACTORS PAYMENT,"2,170.00",Housing Management.Stock Management.NA
15/01/2016,HOUSING NEEDS,Risbol Ltd,BED & BREAKFAST - PRIVATE CONTRACTORS PAYMENT,"2,170.00",Housing Management.Stock Management.NA
15/01/2016,HOUSING NEEDS,Risbol Ltd,BED & BREAKFAST - PRIVATE CONTRACTORS PAYMENT,"2,170.00",Housing Management.Stock Management.NA
15/01/2016,HOUSING NEEDS,Risbol Ltd,BED & BREAKFAST - PRIVATE CONTRACTORS PAYMENT,"2,170.00",Housing Management.Stock Management.NA
15/01/2016,HOUSING NEEDS,Risbol Ltd,BED & BREAKFAST - PRIVATE CONTRACTORS PAYMENT,"2,170.00",Housing Management.Stock Management.NA
15/01/2016,HOUSING NEEDS,Risbol Ltd,BED & BREAKFAST - PRIVATE CONTRACTORS PAYMENT,"2,170.00",Housing Management.Stock Management.NA
15/01/2016,HOUSING NEEDS,Risbol Ltd,BED & BREAKFAST - PRIVATE CONTRACTORS PAYMENT,"2,170.00",Housing Management.Stock Management.NA
15/01/2016,HOUSING NEEDS,Risbol Ltd,BED & BREAKFAST - PRIVATE CONTRACTORS PAYMENT,"2,170.00",Housing Management.Stock Management.NA
15/01/2016,HOUSING NEEDS,Risbol Ltd,BED & BREAKFAST - PRIVATE CONTRACTORS PAYMENT,"2,170.00",Housing Management.Stock Management.NA
15/01/2016,HOUSING NEEDS,Risbol Ltd,BED & BREAKFAST - PRIVATE CONTRACTORS PAYMENT,"2,170.00",Housing Management.Stock Management.NA
15/01/2016,HOUSING NEEDS,Risbol Ltd,BED & BREAKFAST - PRIVATE CONTRACTORS PAYMENT,"2,170.00",Housing Management.Stock Management.NA
15/01/2016,HOUSING NEEDS,Risbol Ltd,BED & BREAKFAST - PRIVATE CONTRACTORS PAYMENT,"2,170.00",Housing Management.Stock Management.NA
15/01/2016,HOUSING NEEDS,Risbol Ltd,BED & BREAKFAST - PRIVATE CONTRACTORS PAYMENT,"2,170.00",Housing Management.Stock Management.NA
15/01/2016,HOUSING NEEDS,Risbol Ltd,BED & BREAKFAST - PRIVATE CONTRACTORS PAYMENT,"2,170.00",Housing Management.Stock Management.NA
15/01/2016,HOUSING NEEDS,Risbol Ltd,BED & BREAKFAST - PRIVATE CONTRACTORS PAYMENT,"2,170.00",Housing Management.Stock Management.NA
15/01/2016,CHILDREN'S SERVICES,Hytyme Ltd,BED & BREAKFAST - PRIVATE CONTRACTORS PAYMENT,"2,170.00","Social Community Care Supplies & Service.Adult.Temporary Accommodation, Short Stay"
15/01/2016,HOUSING NEEDS,UK Room (London) Ltd,BED & BREAKFAST - PRIVATE CONTRACTORS PAYMENT,"2,108.00",Housing Management.Letting Agents.NA
15/01/2016,HOUSING NEEDS,D Singh Properties Ltd TA DS Properties,BED & BREAKFAST - PRIVATE CONTRACTORS PAYMENT,"2,108.00",Housing Management.Letting Agents.NA
15/01/2016,HOUSING NEEDS,D Singh Properties Ltd TA DS Properties,BED & BREAKFAST - PRIVATE CONTRACTORS PAYMENT,"2,108.00",Housing Management.Letting Agents.NA
15/01/2016,HOUSING NEEDS,Norbury Property Services (London) Ltd,BED & BREAKFAST - PRIVATE CONTRACTORS PAYMENT,"2,100.00",Housing Management.Letting Agents.NA
15/01/2016,HOUSING NEEDS,D Singh Properties Ltd TA DS Properties,BED & BREAKFAST - PRIVATE CONTRACTORS PAYMENT,"2,077.00",Housing Management.Letting Agents.NA
15/01/2016,HOUSING NEEDS,Starting Care,BED & BREAKFAST - PRIVATE CONTRACTORS PAYMENT,"2,077.00",Housing Management.Letting Agents.NA
15/01/2016,HOUSING NEEDS,Starting Care,BED & BREAKFAST - PRIVATE CONTRACTORS PAYMENT,"2,077.00",Housing Management.Letting Agents.NA
15/01/2016,HOUSING NEEDS,Willow Estate Agents,BED & BREAKFAST - PRIVATE CONTRACTORS PAYMENT,"2,077.00",Housing Management.Letting Agents.NA
15/01/2016,HOUSING NEEDS,Midos Estates Ltd,BED & BREAKFAST - PRIVATE CONTRACTORS PAYMENT,"2,077.00",Housing Management.Letting Agents.NA
15/01/2016,HOUSING NEEDS,Midos Estates Ltd,BED & BREAKFAST - PRIVATE CONTRACTORS PAYMENT,"2,077.00",Housing Management.Letting Agents.NA
15/01/2016,HOUSING NEEDS,Midos Estates Ltd,BED & BREAKFAST - PRIVATE CONTRACTORS PAYMENT,"2,077.00",Housing Management.Letting Agents.NA
15/01/2016,HOUSING NEEDS,Midos Estates Ltd,BED & BREAKFAST - PRIVATE CONTRACTORS PAYMENT,"2,077.00",Housing Management.Letting Agents.NA
15/01/2016,HOUSING NEEDS,Forbes And Sawyer_d,BED & BREAKFAST - PRIVATE CONTRACTORS PAYMENT,"2,077.00",Housing Management.Letting Agents.NA
15/01/2016,HOUSING NEEDS,Forbes And Sawyer_d,BED & BREAKFAST - PRIVATE CONTRACTORS PAYMENT,"2,077.00",Housing Management.Letting Agents.NA
15/01/2016,HOUSING NEEDS,Denhan International,BED & BREAKFAST - PRIVATE CONTRACTORS PAYMENT,"2,046.00",Housing Management.Letting Agents.NA
15/01/2016,HOUSING NEEDS,Denhan International,BED & BREAKFAST - PRIVATE CONTRACTORS PAYMENT,"2,046.00",Housing Management.Letting Agents.NA
15/01/2016,HOUSING NEEDS,Denhan International,BED & BREAKFAST - PRIVATE CONTRACTORS PAYMENT,"2,046.00",Housing Management.Letting Agents.NA
15/01/2016,HOUSING NEEDS,Bizylet Property Management Ltd,BED & BREAKFAST - PRIVATE CONTRACTORS PAYMENT,"2,046.00",Housing Management.Letting Agents.NA
15/01/2016,HOUSING NEEDS,Risbol Ltd,BED & BREAKFAST - PRIVATE CONTRACTORS PAYMENT,"2,046.00",Housing Management.Stock Management.NA
15/01/2016,CHILDREN'S SERVICES,A* Transport Ltd,DIRECT TRANSPORT,"2,022.00",Public Transport.Passenger Transport.NA
15/01/2016,HOUSING NEEDS,Norbury Property Services (London) Ltd,BED & BREAKFAST - PRIVATE CONTRACTORS PAYMENT,"2,015.00",Housing Management.Letting Agents.NA
15/01/2016,HOUSING NEEDS,Norbury Property Services (London) Ltd,BED & BREAKFAST - PRIVATE CONTRACTORS PAYMENT,"2,015.00",Housing Management.Letting Agents.NA
15/01/2016,HOUSING NEEDS,Norbury Property Services (London) Ltd,BED & BREAKFAST - PRIVATE CONTRACTORS PAYMENT,"2,015.00",Housing Management.Letting Agents.NA
15/01/2016,HOUSING NEEDS,Denhan International,BED & BREAKFAST - PRIVATE CONTRACTORS PAYMENT,"2,015.00",Housing Management.Letting Agents.NA
15/01/2016,HOUSING NEEDS,AA Care Homes Ltd,BED & BREAKFAST - PRIVATE CONTRACTORS PAYMENT,"2,015.00",Housing Management.Letting Agents.NA
15/01/2016,HOUSING NEEDS,AA Care Homes Ltd,BED & BREAKFAST - PRIVATE CONTRACTORS PAYMENT,"2,015.00",Housing Management.Letting Agents.NA
15/01/2016,HOUSING NEEDS,UK Room (London) Ltd,BED & BREAKFAST - PRIVATE CONTRACTORS PAYMENT,"2,015.00",Housing Management.Letting Agents.NA
15/01/2016,HOUSING NEEDS,D Singh Properties Ltd TA DS Properties,BED & BREAKFAST - PRIVATE CONTRACTORS PAYMENT,"2,015.00",Housing Management.Letting Agents.NA
15/01/2016,HOUSING NEEDS,D Singh Properties Ltd TA DS Properties,BED & BREAKFAST - PRIVATE CONTRACTORS PAYMENT,"2,015.00",Housing Management.Letting Agents.NA
15/01/2016,HOUSING NEEDS,D Singh Properties Ltd TA DS Properties,BED & BREAKFAST - PRIVATE CONTRACTORS PAYMENT,"2,015.00",Housing Management.Letting Agents.NA
15/01/2016,HOUSING NEEDS,D Singh Properties Ltd TA DS Properties,BED & BREAKFAST - PRIVATE CONTRACTORS PAYMENT,"2,015.00",Housing Management.Letting Agents.NA
15/01/2016,HOUSING NEEDS,D Singh Properties Ltd TA DS Properties,BED & BREAKFAST - PRIVATE CONTRACTORS PAYMENT,"2,015.00",Housing Management.Letting Agents.NA
15/01/2016,HOUSING NEEDS,D Singh Properties Ltd TA DS Properties,BED & BREAKFAST - PRIVATE CONTRACTORS PAYMENT,"2,015.00",Housing Management.Letting Agents.NA
15/01/2016,HOUSING NEEDS,D Singh Properties Ltd TA DS Properties,BED & BREAKFAST - PRIVATE CONTRACTORS PAYMENT,"2,015.00",Housing Management.Letting Agents.NA
15/01/2016,HOUSING NEEDS,D Singh Properties Ltd TA DS Properties,BED & BREAKFAST - PRIVATE CONTRACTORS PAYMENT,"2,015.00",Housing Management.Letting Agents.NA
15/01/2016,HOUSING NEEDS,D Singh Properties Ltd TA DS Properties,BED & BREAKFAST - PRIVATE CONTRACTORS PAYMENT,"2,015.00",Housing Management.Letting Agents.NA
15/01/2016,HOUSING NEEDS,Starting Care,BED & BREAKFAST - PRIVATE CONTRACTORS PAYMENT,"2,015.00",Housing Management.Letting Agents.NA
15/01/2016,HOUSING NEEDS,Starting Care,BED & BREAKFAST - PRIVATE CONTRACTORS PAYMENT,"2,015.00",Housing Management.Letting Agents.NA
15/01/2016,HOUSING NEEDS,Starting Care,BED & BREAKFAST - PRIVATE CONTRACTORS PAYMENT,"2,015.00",Housing Management.Letting Agents.NA
15/01/2016,HOUSING NEEDS,Starting Care,BED & BREAKFAST - PRIVATE CONTRACTORS PAYMENT,"2,015.00",Housing Management.Letting Agents.NA
15/01/2016,HOUSING NEEDS,Bizylet Property Management Ltd,BED & BREAKFAST - PRIVATE CONTRACTORS PAYMENT,"2,015.00",Housing Management.Letting Agents.NA
15/01/2016,HOUSING NEEDS,Bizylet Property Management Ltd,BED & BREAKFAST - PRIVATE CONTRACTORS PAYMENT,"2,015.00",Housing Management.Letting Agents.NA
15/01/2016,HOUSING NEEDS,Bizylet Property Management Ltd,BED & BREAKFAST - PRIVATE CONTRACTORS PAYMENT,"2,015.00",Housing Management.Letting Agents.NA
15/01/2016,HOUSING NEEDS,Bizylet Property Management Ltd,BED & BREAKFAST - PRIVATE CONTRACTORS PAYMENT,"2,015.00",Housing Management.Letting Agents.NA
15/01/2016,HOUSING NEEDS,Willow Estate Agents,BED & BREAKFAST - PRIVATE CONTRACTORS PAYMENT,"2,015.00",Housing Management.Letting Agents.NA
15/01/2016,HOUSING NEEDS,Housing Action Management ltd,BED & BREAKFAST - PRIVATE CONTRACTORS PAYMENT,"2,015.00",Housing Management.Letting Agents.NA
15/01/2016,HOUSING NEEDS,Housing Action Management ltd,BED & BREAKFAST - PRIVATE CONTRACTORS PAYMENT,"2,015.00",Housing Management.Letting Agents.NA
15/01/2016,HOUSING NEEDS,Assetgrove Lettings Ltd,BED & BREAKFAST - PRIVATE CONTRACTORS PAYMENT,"2,015.00",Housing Management.Letting Agents.NA
15/01/2016,HOUSING NEEDS,Midos Estates Ltd,BED & BREAKFAST - PRIVATE CONTRACTORS PAYMENT,"2,015.00",Housing Management.Letting Agents.NA
15/01/2016,HOUSING NEEDS,Midos Estates Ltd,BED & BREAKFAST - PRIVATE CONTRACTORS PAYMENT,"2,015.00",Housing Management.Letting Agents.NA
15/01/2016,HOUSING NEEDS,Cromwood Ltd,BED & BREAKFAST - PRIVATE CONTRACTORS PAYMENT,"2,015.00",Housing Management.Letting Agents.NA
15/01/2016,HOUSING NEEDS,Cromwood Ltd,BED & BREAKFAST - PRIVATE CONTRACTORS PAYMENT,"2,015.00",Housing Management.Letting Agents.NA
15/01/2016,HOUSING NEEDS,Euro Hotels Ltd,BED & BREAKFAST - PRIVATE CONTRACTORS PAYMENT,"2,015.00",Housing Management.Letting Agents.NA
15/01/2016,HOUSING NEEDS,Euro Hotels Ltd,BED & BREAKFAST - PRIVATE CONTRACTORS PAYMENT,"2,015.00",Housing Management.Letting Agents.NA
15/01/2016,HOUSING NEEDS,Euro Hotels Ltd,BED & BREAKFAST - PRIVATE CONTRACTORS PAYMENT,"2,015.00",Housing Management.Letting Agents.NA
15/01/2016,HOUSING NEEDS,Euro Hotels Ltd,BED & BREAKFAST - PRIVATE CONTRACTORS PAYMENT,"2,015.00",Housing Management.Letting Agents.NA
15/01/2016,HOUSING NEEDS,Euro Hotels Ltd,BED & BREAKFAST - PRIVATE CONTRACTORS PAYMENT,"2,015.00",Housing Management.Letting Agents.NA
15/01/2016,HOUSING NEEDS,Forbes And Sawyer_d,BED & BREAKFAST - PRIVATE CONTRACTORS PAYMENT,"2,015.00",Housing Management.Letting Agents.NA
15/01/2016,HOUSING NEEDS,Forbes And Sawyer_d,BED & BREAKFAST - PRIVATE CONTRACTORS PAYMENT,"2,015.00",Housing Management.Letting Agents.NA
15/01/2016,HOUSING NEEDS,Oliver Landon Ltd,BED & BREAKFAST - PRIVATE CONTRACTORS PAYMENT,"2,015.00",Housing Management.Letting Agents.NA
15/01/2016,HOUSING NEEDS,Risbol Ltd,BED & BREAKFAST - PRIVATE CONTRACTORS PAYMENT,"2,015.00",Housing Management.Stock Management.NA
15/01/2016,HOUSING NEEDS,Risbol Ltd,BED & BREAKFAST - PRIVATE CONTRACTORS PAYMENT,"2,015.00",Housing Management.Stock Management.NA
15/01/2016,HOUSING NEEDS,Risbol Ltd,BED & BREAKFAST - PRIVATE CONTRACTORS PAYMENT,"2,015.00",Housing Management.Stock Management.NA
15/01/2016,HOUSING NEEDS,Risbol Ltd,BED & BREAKFAST - PRIVATE CONTRACTORS PAYMENT,"2,015.00",Housing Management.Stock Management.NA
15/01/2016,HOUSING NEEDS,Risbol Ltd,BED & BREAKFAST - PRIVATE CONTRACTORS PAYMENT,"2,015.00",Housing Management.Stock Management.NA
15/01/2016,HOUSING NEEDS,Risbol Ltd,BED & BREAKFAST - PRIVATE CONTRACTORS PAYMENT,"2,015.00",Housing Management.Stock Management.NA
15/01/2016,CHILDREN'S SERVICES,Focused Healthcare Ltd,DOMICILIARY CARE - THIRD PARTY,"1,995.28",Social Community Care Supplies & Service.Children.NA
15/01/2016,CHILDREN'S SERVICES,Focused Healthcare Ltd,DOMICILIARY CARE - THIRD PARTY,"1,995.28",Social Community Care Supplies & Service.Children.NA
15/01/2016,HOUSING NEEDS,Denhan International,BED & BREAKFAST - PRIVATE CONTRACTORS PAYMENT,"1,984.00",Housing Management.Letting Agents.NA
15/01/2016,HOUSING NEEDS,D Singh Properties Ltd TA DS Properties,BED & BREAKFAST - PRIVATE CONTRACTORS PAYMENT,"1,984.00",Housing Management.Letting Agents.NA
15/01/2016,HOUSING NEEDS,D Singh Properties Ltd TA DS Properties,BED & BREAKFAST - PRIVATE CONTRACTORS PAYMENT,"1,984.00",Housing Management.Letting Agents.NA
15/01/2016,HOUSING NEEDS,Midos Estates Ltd,BED & BREAKFAST - PRIVATE CONTRACTORS PAYMENT,"1,968.50",Housing Management.Letting Agents.NA
15/01/2016,CHILDREN'S SERVICES,Focused Healthcare Ltd,DOMICILIARY CARE - THIRD PARTY,"1,954.56",Social Community Care Supplies & Service.Children.NA
15/01/2016,CHILDREN'S SERVICES,Focused Healthcare Ltd,DOMICILIARY CARE - THIRD PARTY,"1,954.56",Social Community Care Supplies & Service.Children.NA
15/01/2016,HOUSING NEEDS,Oliver Landon Ltd,BED & BREAKFAST - PRIVATE CONTRACTORS PAYMENT,"1,953.00",Housing Management.Letting Agents.NA
15/01/2016,HOUSING NEEDS,Risbol Ltd,BED & BREAKFAST - PRIVATE CONTRACTORS PAYMENT,"1,953.00",Housing Management.Stock Management.NA
15/01/2016,HOUSING NEEDS,Galaxy Lettings Ltd,BED & BREAKFAST - PRIVATE CONTRACTORS PAYMENT,"1,922.00",Housing Management.Letting Agents.NA
15/01/2016,HOUSING NEEDS,Galaxy Lettings Ltd,BED & BREAKFAST - PRIVATE CONTRACTORS PAYMENT,"1,922.00",Housing Management.Letting Agents.NA
15/01/2016,HOUSING NEEDS,Norbury Property Services (London) Ltd,BED & BREAKFAST - PRIVATE CONTRACTORS PAYMENT,"1,922.00",Housing Management.Letting Agents.NA
15/01/2016,HOUSING NEEDS,Norbury Property Services (London) Ltd,BED & BREAKFAST - PRIVATE CONTRACTORS PAYMENT,"1,922.00",Housing Management.Letting Agents.NA
15/01/2016,HOUSING NEEDS,Norbury Property Services (London) Ltd,BED & BREAKFAST - PRIVATE CONTRACTORS PAYMENT,"1,922.00",Housing Management.Letting Agents.NA
15/01/2016,HOUSING NEEDS,Norbury Property Services (London) Ltd,BED & BREAKFAST - PRIVATE CONTRACTORS PAYMENT,"1,922.00",Housing Management.Letting Agents.NA
15/01/2016,HOUSING NEEDS,Norbury Property Services (London) Ltd,BED & BREAKFAST - PRIVATE CONTRACTORS PAYMENT,"1,922.00",Housing Management.Letting Agents.NA
15/01/2016,HOUSING NEEDS,Norbury Property Services (London) Ltd,BED & BREAKFAST - PRIVATE CONTRACTORS PAYMENT,"1,922.00",Housing Management.Letting Agents.NA
15/01/2016,HOUSING NEEDS,Norbury Property Services (London) Ltd,BED & BREAKFAST - PRIVATE CONTRACTORS PAYMENT,"1,922.00",Housing Management.Letting Agents.NA
15/01/2016,HOUSING NEEDS,Norbury Property Services (London) Ltd,BED & BREAKFAST - PRIVATE CONTRACTORS PAYMENT,"1,922.00",Housing Management.Letting Agents.NA
15/01/2016,HOUSING NEEDS,D Singh Properties Ltd TA DS Properties,BED & BREAKFAST - PRIVATE CONTRACTORS PAYMENT,"1,922.00",Housing Management.Letting Agents.NA
15/01/2016,HOUSING NEEDS,D Singh Properties Ltd TA DS Properties,BED & BREAKFAST - PRIVATE CONTRACTORS PAYMENT,"1,922.00",Housing Management.Letting Agents.NA
15/01/2016,HOUSING NEEDS,Midos Estates Ltd,BED & BREAKFAST - PRIVATE CONTRACTORS PAYMENT,"1,922.00",Housing Management.Letting Agents.NA
15/01/2016,HOUSING NEEDS,Midos Estates Ltd,BED & BREAKFAST - PRIVATE CONTRACTORS PAYMENT,"1,899.50",Housing Management.Letting Agents.NA
15/01/2016,HOUSING NEEDS,Housing Action Management ltd,BED & BREAKFAST - PRIVATE CONTRACTORS PAYMENT,"1,891.00",Housing Management.Letting Agents.NA
15/01/2016,HOUSING NEEDS,Midos Estates Ltd,BED & BREAKFAST - PRIVATE CONTRACTORS PAYMENT,"1,891.00",Housing Management.Letting Agents.NA
15/01/2016,HOUSING NEEDS,Rent Connect,BED & BREAKFAST - PRIVATE CONTRACTORS PAYMENT,"1,860.00",Housing Management.Letting Agents.NA
15/01/2016,HOUSING NEEDS,Rent Connect,BED & BREAKFAST - PRIVATE CONTRACTORS PAYMENT,"1,860.00",Housing Management.Letting Agents.NA
15/01/2016,HOUSING NEEDS,Rent Connect,BED & BREAKFAST - PRIVATE CONTRACTORS PAYMENT,"1,860.00",Housing Management.Letting Agents.NA
15/01/2016,HOUSING NEEDS,Rent Connect,BED & BREAKFAST - PRIVATE CONTRACTORS PAYMENT,"1,860.00",Housing Management.Letting Agents.NA
15/01/2016,HOUSING NEEDS,Norbury Property Services (London) Ltd,BED & BREAKFAST - PRIVATE CONTRACTORS PAYMENT,"1,860.00",Housing Management.Letting Agents.NA
15/01/2016,HOUSING NEEDS,Norbury Property Services (London) Ltd,BED & BREAKFAST - PRIVATE CONTRACTORS PAYMENT,"1,860.00",Housing Management.Letting Agents.NA
15/01/2016,HOUSING NEEDS,Norbury Property Services (London) Ltd,BED & BREAKFAST - PRIVATE CONTRACTORS PAYMENT,"1,860.00",Housing Management.Letting Agents.NA
15/01/2016,HOUSING NEEDS,AA Care Homes Ltd,BED & BREAKFAST - PRIVATE CONTRACTORS PAYMENT,"1,860.00",Housing Management.Letting Agents.NA
15/01/2016,HOUSING NEEDS,AA Care Homes Ltd,BED & BREAKFAST - PRIVATE CONTRACTORS PAYMENT,"1,860.00",Housing Management.Letting Agents.NA
15/01/2016,HOUSING NEEDS,AA Care Homes Ltd,BED & BREAKFAST - PRIVATE CONTRACTORS PAYMENT,"1,860.00",Housing Management.Letting Agents.NA
15/01/2016,HOUSING NEEDS,D Singh Properties Ltd TA DS Properties,BED & BREAKFAST - PRIVATE CONTRACTORS PAYMENT,"1,860.00",Housing Management.Letting Agents.NA
15/01/2016,HOUSING NEEDS,D Singh Properties Ltd TA DS Properties,BED & BREAKFAST - PRIVATE CONTRACTORS PAYMENT,"1,860.00",Housing Management.Letting Agents.NA
15/01/2016,HOUSING NEEDS,D Singh Properties Ltd TA DS Properties,BED & BREAKFAST - PRIVATE CONTRACTORS PAYMENT,"1,860.00",Housing Management.Letting Agents.NA
15/01/2016,HOUSING NEEDS,Starting Care,BED & BREAKFAST - PRIVATE CONTRACTORS PAYMENT,"1,860.00",Housing Management.Letting Agents.NA
15/01/2016,HOUSING NEEDS,Starting Care,BED & BREAKFAST - PRIVATE CONTRACTORS PAYMENT,"1,860.00",Housing Management.Letting Agents.NA
15/01/2016,HOUSING NEEDS,Housing Action Management ltd,BED & BREAKFAST - PRIVATE CONTRACTORS PAYMENT,"1,860.00",Housing Management.Letting Agents.NA
15/01/2016,HOUSING NEEDS,Housing Action Management ltd,BED & BREAKFAST - PRIVATE CONTRACTORS PAYMENT,"1,860.00",Housing Management.Letting Agents.NA
15/01/2016,HOUSING NEEDS,Housing Action Management ltd,BED & BREAKFAST - PRIVATE CONTRACTORS PAYMENT,"1,860.00",Housing Management.Letting Agents.NA
15/01/2016,HOUSING NEEDS,Housing Action Management ltd,BED & BREAKFAST - PRIVATE CONTRACTORS PAYMENT,"1,860.00",Housing Management.Letting Agents.NA
15/01/2016,HOUSING NEEDS,Housing Action Management ltd,BED & BREAKFAST - PRIVATE CONTRACTORS PAYMENT,"1,860.00",Housing Management.Letting Agents.NA
15/01/2016,HOUSING NEEDS,Housing Action Management ltd,BED & BREAKFAST - PRIVATE CONTRACTORS PAYMENT,"1,860.00",Housing Management.Letting Agents.NA
15/01/2016,HOUSING NEEDS,Housing Action Management ltd,BED & BREAKFAST - PRIVATE CONTRACTORS PAYMENT,"1,860.00",Housing Management.Letting Agents.NA
15/01/2016,HOUSING NEEDS,Housing Action Management ltd,BED & BREAKFAST - PRIVATE CONTRACTORS PAYMENT,"1,860.00",Housing Management.Letting Agents.NA
15/01/2016,HOUSING NEEDS,Housing Action Management ltd,BED & BREAKFAST - PRIVATE CONTRACTORS PAYMENT,"1,860.00",Housing Management.Letting Agents.NA
15/01/2016,HOUSING NEEDS,Assetgrove Lettings Ltd,BED & BREAKFAST - PRIVATE CONTRACTORS PAYMENT,"1,860.00",Housing Management.Letting Agents.NA
15/01/2016,HOUSING NEEDS,Assetgrove Lettings Ltd,BED & BREAKFAST - PRIVATE CONTRACTORS PAYMENT,"1,860.00",Housing Management.Letting Agents.NA
15/01/2016,HOUSING NEEDS,Assetgrove Lettings Ltd,BED & BREAKFAST - PRIVATE CONTRACTORS PAYMENT,"1,860.00",Housing Management.Letting Agents.NA
15/01/2016,HOUSING NEEDS,Midos Estates Ltd,BED & BREAKFAST - PRIVATE CONTRACTORS PAYMENT,"1,860.00",Housing Management.Letting Agents.NA
15/01/2016,HOUSING NEEDS,Midos Estates Ltd,BED & BREAKFAST - PRIVATE CONTRACTORS PAYMENT,"1,860.00",Housing Management.Letting Agents.NA
15/01/2016,HOUSING NEEDS,Midos Estates Ltd,BED & BREAKFAST - PRIVATE CONTRACTORS PAYMENT,"1,860.00",Housing Management.Letting Agents.NA
15/01/2016,HOUSING NEEDS,Midos Estates Ltd,BED & BREAKFAST - PRIVATE CONTRACTORS PAYMENT,"1,860.00",Housing Management.Letting Agents.NA
15/01/2016,HOUSING NEEDS,Cromwood Ltd,BED & BREAKFAST - PRIVATE CONTRACTORS PAYMENT,"1,860.00",Housing Management.Letting Agents.NA
15/01/2016,HOUSING NEEDS,Euro Hotels Ltd,BED & BREAKFAST - PRIVATE CONTRACTORS PAYMENT,"1,860.00",Housing Management.Letting Agents.NA
15/01/2016,HOUSING NEEDS,Oliver Landon Ltd,BED & BREAKFAST - PRIVATE CONTRACTORS PAYMENT,"1,860.00",Housing Management.Letting Agents.NA
15/01/2016,HOUSING NEEDS,Risbol Ltd,BED & BREAKFAST - PRIVATE CONTRACTORS PAYMENT,"1,860.00",Housing Management.Stock Management.NA
15/01/2016,HOUSING NEEDS,Risbol Ltd,BED & BREAKFAST - PRIVATE CONTRACTORS PAYMENT,"1,860.00",Housing Management.Stock Management.NA
15/01/2016,HOUSING NEEDS,Risbol Ltd,BED & BREAKFAST - PRIVATE CONTRACTORS PAYMENT,"1,860.00",Housing Management.Stock Management.NA
15/01/2016,HOUSING NEEDS,Risbol Ltd,BED & BREAKFAST - PRIVATE CONTRACTORS PAYMENT,"1,860.00",Housing Management.Stock Management.NA
15/01/2016,HOUSING NEEDS,Risbol Ltd,BED & BREAKFAST - PRIVATE CONTRACTORS PAYMENT,"1,860.00",Housing Management.Stock Management.NA
15/01/2016,HOUSING NEEDS,Risbol Ltd,BED & BREAKFAST - PRIVATE CONTRACTORS PAYMENT,"1,860.00",Housing Management.Stock Management.NA
15/01/2016,HOUSING NEEDS,Risbol Ltd,BED & BREAKFAST - PRIVATE CONTRACTORS PAYMENT,"1,860.00",Housing Management.Stock Management.NA
15/01/2016,HOUSING NEEDS,Risbol Ltd,BED & BREAKFAST - PRIVATE CONTRACTORS PAYMENT,"1,860.00",Housing Management.Stock Management.NA
15/01/2016,CHILDREN'S SERVICES,Hytyme Ltd,BED & BREAKFAST - PRIVATE CONTRACTORS PAYMENT,"1,860.00","Social Community Care Supplies & Service.Adult.Temporary Accommodation, Short Stay"
15/01/2016,HOUSING NEEDS,Cromwood Ltd,BED & BREAKFAST - PRIVATE CONTRACTORS PAYMENT,"1,829.00",Housing Management.Letting Agents.NA
15/01/2016,NO RECOURSE TO PUBLIC FUNDS,R@W Logistics Ltd,RENTS PAYABLE,"1,806.71","Social Community Care Supplies & Service.Adult.Temporary Accommodation, Long Stay"
15/01/2016,CHILDREN'S SERVICES,Hytyme Ltd,BED & BREAKFAST - PRIVATE CONTRACTORS PAYMENT,"1,800.00","Social Community Care Supplies & Service.Adult.Temporary Accommodation, Short Stay"
15/01/2016,HOUSING NEEDS,Denhan International,BED & BREAKFAST - PRIVATE CONTRACTORS PAYMENT,"1,798.00",Housing Management.Letting Agents.NA
15/01/2016,HOUSING NEEDS,D Singh Properties Ltd TA DS Properties,BED & BREAKFAST - PRIVATE CONTRACTORS PAYMENT,"1,798.00",Housing Management.Letting Agents.NA
15/01/2016,HOUSING NEEDS,D Singh Properties Ltd TA DS Properties,BED & BREAKFAST - PRIVATE CONTRACTORS PAYMENT,"1,798.00",Housing Management.Letting Agents.NA
15/01/2016,HOUSING NEEDS,D Singh Properties Ltd TA DS Properties,BED & BREAKFAST - PRIVATE CONTRACTORS PAYMENT,"1,798.00",Housing Management.Letting Agents.NA
15/01/2016,HOUSING NEEDS,D Singh Properties Ltd TA DS Properties,BED & BREAKFAST - PRIVATE CONTRACTORS PAYMENT,"1,798.00",Housing Management.Letting Agents.NA
15/01/2016,HOUSING NEEDS,D Singh Properties Ltd TA DS Properties,BED & BREAKFAST - PRIVATE CONTRACTORS PAYMENT,"1,798.00",Housing Management.Letting Agents.NA
15/01/2016,HOUSING NEEDS,D Singh Properties Ltd TA DS Properties,BED & BREAKFAST - PRIVATE CONTRACTORS PAYMENT,"1,798.00",Housing Management.Letting Agents.NA
15/01/2016,HOUSING NEEDS,D Singh Properties Ltd TA DS Properties,BED & BREAKFAST - PRIVATE CONTRACTORS PAYMENT,"1,798.00",Housing Management.Letting Agents.NA
15/01/2016,HOUSING NEEDS,Forbes And Sawyer_d,BED & BREAKFAST - PRIVATE CONTRACTORS PAYMENT,"1,798.00",Housing Management.Letting Agents.NA
15/01/2016,HUMAN RESOURCES AND ORGANISATIONAL DEVELOPMENT (HRA),PDP Training,STAFF DEVELOPMENT AND TRAINING,"1,795.00",Human Resources.Training & Conferences.NA
15/01/2016,HOUSING NEEDS,Denhan International,BED & BREAKFAST - PRIVATE CONTRACTORS PAYMENT,"1,782.50",Housing Management.Letting Agents.NA
15/01/2016,HOUSING NEEDS,D Singh Properties Ltd TA DS Properties,BED & BREAKFAST - PRIVATE CONTRACTORS PAYMENT,"1,782.50",Housing Management.Letting Agents.NA
15/01/2016,HOUSING NEEDS,Bizylet Property Management Ltd,BED & BREAKFAST - PRIVATE CONTRACTORS PAYMENT,"1,782.50",Housing Management.Letting Agents.NA
15/01/2016,HOUSING NEEDS,Midos Estates Ltd,BED & BREAKFAST - PRIVATE CONTRACTORS PAYMENT,"1,782.50",Housing Management.Letting Agents.NA
15/01/2016,HOUSING NEEDS,Midos Estates Ltd,BED & BREAKFAST - PRIVATE CONTRACTORS PAYMENT,"1,782.50",Housing Management.Letting Agents.NA
15/01/2016,HOUSING NEEDS,Midos Estates Ltd,BED & BREAKFAST - PRIVATE CONTRACTORS PAYMENT,"1,782.50",Housing Management.Letting Agents.NA
15/01/2016,HOUSING NEEDS,Midos Estates Ltd,BED & BREAKFAST - PRIVATE CONTRACTORS PAYMENT,"1,782.50",Housing Management.Letting Agents.NA
15/01/2016,HOUSING NEEDS,Denhan International,BED & BREAKFAST - PRIVATE CONTRACTORS PAYMENT,"1,767.00",Housing Management.Letting Agents.NA
15/01/2016,HOUSING NEEDS,AA Care Homes Ltd,BED & BREAKFAST - PRIVATE CONTRACTORS PAYMENT,"1,767.00",Housing Management.Letting Agents.NA
15/01/2016,HOUSING NEEDS,D Singh Properties Ltd TA DS Properties,BED & BREAKFAST - PRIVATE CONTRACTORS PAYMENT,"1,767.00",Housing Management.Letting Agents.NA
15/01/2016,HOUSING NEEDS,D Singh Properties Ltd TA DS Properties,BED & BREAKFAST - PRIVATE CONTRACTORS PAYMENT,"1,767.00",Housing Management.Letting Agents.NA
15/01/2016,HOUSING NEEDS,Bizylet Property Management Ltd,BED & BREAKFAST - PRIVATE CONTRACTORS PAYMENT,"1,767.00",Housing Management.Letting Agents.NA
15/01/2016,HOUSING NEEDS,Housing Action Management ltd,BED & BREAKFAST - PRIVATE CONTRACTORS PAYMENT,"1,767.00",Housing Management.Letting Agents.NA
15/01/2016,HOUSING NEEDS,ITA Lettings Ltd,BED & BREAKFAST - PRIVATE CONTRACTORS PAYMENT,"1,767.00",Housing Management.Letting Agents.NA
15/01/2016,HOUSING NEEDS,Willow Estate Agents,BED & BREAKFAST - PRIVATE CONTRACTORS PAYMENT,"1,764.00",Housing Management.Letting Agents.NA
15/01/2016,BUSINESS TRANSFORMATION,Specialist Computer Centers Plc,CONSULTANCY FEES,"1,750.00",Information Communication Technology.Services.Consultancy
15/01/2016,HOUSING NEEDS,Starting Care,BED & BREAKFAST - PRIVATE CONTRACTORS PAYMENT,"1,748.00",Housing Management.Letting Agents.NA
15/01/2016,HOUSING NEEDS,Oliver Landon Ltd,BED & BREAKFAST - PRIVATE CONTRACTORS PAYMENT,"1,736.00",Housing Management.Letting Agents.NA
15/01/2016,HOUSING NEEDS,Denhan International,BED & BREAKFAST - PRIVATE CONTRACTORS PAYMENT,"1,725.00",Housing Management.Letting Agents.NA
15/01/2016,HOUSING NEEDS,Midos Estates Ltd,BED & BREAKFAST - PRIVATE CONTRACTORS PAYMENT,"1,711.00",Housing Management.Letting Agents.NA
15/01/2016,HOUSING NEEDS,Denhan International,BED & BREAKFAST - PRIVATE CONTRACTORS PAYMENT,"1,705.00",Housing Management.Letting Agents.NA
15/01/2016,HOUSING NEEDS,AA Care Homes Ltd,BED & BREAKFAST - PRIVATE CONTRACTORS PAYMENT,"1,705.00",Housing Management.Letting Agents.NA
15/01/2016,HOUSING NEEDS,AA Care Homes Ltd,BED & BREAKFAST - PRIVATE CONTRACTORS PAYMENT,"1,705.00",Housing Management.Letting Agents.NA
15/01/2016,HOUSING NEEDS,AA Care Homes Ltd,BED & BREAKFAST - PRIVATE CONTRACTORS PAYMENT,"1,705.00",Housing Management.Letting Agents.NA
15/01/2016,HOUSING NEEDS,AA Care Homes Ltd,BED & BREAKFAST - PRIVATE CONTRACTORS PAYMENT,"1,705.00",Housing Management.Letting Agents.NA
15/01/2016,HOUSING NEEDS,AA Care Homes Ltd,BED & BREAKFAST - PRIVATE CONTRACTORS PAYMENT,"1,705.00",Housing Management.Letting Agents.NA
15/01/2016,HOUSING NEEDS,AA Care Homes Ltd,BED & BREAKFAST - PRIVATE CONTRACTORS PAYMENT,"1,705.00",Housing Management.Letting Agents.NA
15/01/2016,HOUSING NEEDS,AA Care Homes Ltd,BED & BREAKFAST - PRIVATE CONTRACTORS PAYMENT,"1,705.00",Housing Management.Letting Agents.NA
15/01/2016,HOUSING NEEDS,UK Room (London) Ltd,BED & BREAKFAST - PRIVATE CONTRACTORS PAYMENT,"1,705.00",Housing Management.Letting Agents.NA
15/01/2016,HOUSING NEEDS,D Singh Properties Ltd TA DS Properties,BED & BREAKFAST - PRIVATE CONTRACTORS PAYMENT,"1,705.00",Housing Management.Letting Agents.NA
15/01/2016,HOUSING NEEDS,D Singh Properties Ltd TA DS Properties,BED & BREAKFAST - PRIVATE CONTRACTORS PAYMENT,"1,705.00",Housing Management.Letting Agents.NA
15/01/2016,HOUSING NEEDS,Assetgrove Lettings Ltd,BED & BREAKFAST - PRIVATE CONTRACTORS PAYMENT,"1,705.00",Housing Management.Letting Agents.NA
15/01/2016,HOUSING NEEDS,Assetgrove Lettings Ltd,BED & BREAKFAST - PRIVATE CONTRACTORS PAYMENT,"1,705.00",Housing Management.Letting Agents.NA
15/01/2016,HOUSING NEEDS,Midos Estates Ltd,BED & BREAKFAST - PRIVATE CONTRACTORS PAYMENT,"1,705.00",Housing Management.Letting Agents.NA
15/01/2016,HOUSING NEEDS,Midos Estates Ltd,BED & BREAKFAST - PRIVATE CONTRACTORS PAYMENT,"1,705.00",Housing Management.Letting Agents.NA
15/01/2016,HOUSING NEEDS,Midos Estates Ltd,BED & BREAKFAST - PRIVATE CONTRACTORS PAYMENT,"1,705.00",Housing Management.Letting Agents.NA
15/01/2016,HOUSING NEEDS,Midos Estates Ltd,BED & BREAKFAST - PRIVATE CONTRACTORS PAYMENT,"1,705.00",Housing Management.Letting Agents.NA
15/01/2016,HOUSING NEEDS,Midos Estates Ltd,BED & BREAKFAST - PRIVATE CONTRACTORS PAYMENT,"1,705.00",Housing Management.Letting Agents.NA
15/01/2016,HOUSING NEEDS,Cromwood Ltd,BED & BREAKFAST - PRIVATE CONTRACTORS PAYMENT,"1,705.00",Housing Management.Letting Agents.NA
15/01/2016,HOUSING NEEDS,Cromwood Ltd,BED & BREAKFAST - PRIVATE CONTRACTORS PAYMENT,"1,705.00",Housing Management.Letting Agents.NA
15/01/2016,HOUSING NEEDS,Cromwood Ltd,BED & BREAKFAST - PRIVATE CONTRACTORS PAYMENT,"1,705.00",Housing Management.Letting Agents.NA
15/01/2016,HOUSING NEEDS,ITA Lettings Ltd,BED & BREAKFAST - PRIVATE CONTRACTORS PAYMENT,"1,705.00",Housing Management.Letting Agents.NA
15/01/2016,HOUSING NEEDS,SK Housing_d,BED & BREAKFAST - PRIVATE CONTRACTORS PAYMENT,"1,705.00",Housing Management.Letting Agents.NA
15/01/2016,HOUSING NEEDS,Oliver Landon Ltd,BED & BREAKFAST - PRIVATE CONTRACTORS PAYMENT,"1,705.00",Housing Management.Letting Agents.NA
15/01/2016,HOUSING NEEDS,Risbol Ltd,BED & BREAKFAST - PRIVATE CONTRACTORS PAYMENT,"1,705.00",Housing Management.Stock Management.NA
15/01/2016,HOUSING NEEDS,Risbol Ltd,BED & BREAKFAST - PRIVATE CONTRACTORS PAYMENT,"1,705.00",Housing Management.Stock Management.NA
15/01/2016,HOUSING NEEDS,Risbol Ltd,BED & BREAKFAST - PRIVATE CONTRACTORS PAYMENT,"1,705.00",Housing Management.Stock Management.NA
15/01/2016,HOUSING NEEDS,Risbol Ltd,BED & BREAKFAST - PRIVATE CONTRACTORS PAYMENT,"1,705.00",Housing Management.Stock Management.NA
15/01/2016,HOUSING NEEDS,Risbol Ltd,BED & BREAKFAST - PRIVATE CONTRACTORS PAYMENT,"1,705.00",Housing Management.Stock Management.NA
15/01/2016,HOUSING NEEDS,Risbol Ltd,BED & BREAKFAST - PRIVATE CONTRACTORS PAYMENT,"1,705.00",Housing Management.Stock Management.NA
15/01/2016,HOUSING NEEDS,Risbol Ltd,BED & BREAKFAST - PRIVATE CONTRACTORS PAYMENT,"1,705.00",Housing Management.Stock Management.NA
15/01/2016,HOUSING NEEDS,Risbol Ltd,BED & BREAKFAST - PRIVATE CONTRACTORS PAYMENT,"1,705.00",Housing Management.Stock Management.NA
15/01/2016,HOUSING NEEDS,Norbury Property Services (London) Ltd,BED & BREAKFAST - PRIVATE CONTRACTORS PAYMENT,"1,689.50",Housing Management.Letting Agents.NA
15/01/2016,HOUSING NEEDS,Norbury Property Services (London) Ltd,BED & BREAKFAST - PRIVATE CONTRACTORS PAYMENT,"1,689.50",Housing Management.Letting Agents.NA
15/01/2016,HOUSING NEEDS,Norbury Property Services (London) Ltd,BED & BREAKFAST - PRIVATE CONTRACTORS PAYMENT,"1,689.50",Housing Management.Letting Agents.NA
15/01/2016,HOUSING NEEDS,Norbury Property Services (London) Ltd,BED & BREAKFAST - PRIVATE CONTRACTORS PAYMENT,"1,689.50",Housing Management.Letting Agents.NA
15/01/2016,HOUSING NEEDS,Risbol Ltd,BED & BREAKFAST - PRIVATE CONTRACTORS PAYMENT,"1,689.50",Housing Management.Stock Management.NA
15/01/2016,BUSINESS TRANSFORMATION,Specialist Computer Centers Plc,CONSULTANCY FEES,"1,687.50",Information Communication Technology.Services.Consultancy
15/01/2016,HOUSING NEEDS,Housing Action Management ltd,BED & BREAKFAST - PRIVATE CONTRACTORS PAYMENT,"1,680.00",Housing Management.Letting Agents.NA
15/01/2016,CHILDREN'S SERVICES,Hytyme Ltd,BED & BREAKFAST - PRIVATE CONTRACTORS PAYMENT,"1,680.00","Social Community Care Supplies & Service.Adult.Temporary Accommodation, Short Stay"
15/01/2016,HOUSING NEEDS,Galaxy Lettings Ltd,BED & BREAKFAST - PRIVATE CONTRACTORS PAYMENT,"1,674.00",Housing Management.Letting Agents.NA
15/01/2016,HOUSING NEEDS,Galaxy Lettings Ltd,BED & BREAKFAST - PRIVATE CONTRACTORS PAYMENT,"1,674.00",Housing Management.Letting Agents.NA
15/01/2016,HOUSING NEEDS,Galaxy Lettings Ltd,BED & BREAKFAST - PRIVATE CONTRACTORS PAYMENT,"1,674.00",Housing Management.Letting Agents.NA
15/01/2016,HOUSING NEEDS,Galaxy Lettings Ltd,BED & BREAKFAST - PRIVATE CONTRACTORS PAYMENT,"1,674.00",Housing Management.Letting Agents.NA
15/01/2016,HOUSING NEEDS,Galaxy Lettings Ltd,BED & BREAKFAST - PRIVATE CONTRACTORS PAYMENT,"1,674.00",Housing Management.Letting Agents.NA
15/01/2016,HOUSING NEEDS,Galaxy Lettings Ltd,BED & BREAKFAST - PRIVATE CONTRACTORS PAYMENT,"1,674.00",Housing Management.Letting Agents.NA
15/01/2016,HOUSING NEEDS,Galaxy Lettings Ltd,BED & BREAKFAST - PRIVATE CONTRACTORS PAYMENT,"1,674.00",Housing Management.Letting Agents.NA
15/01/2016,HOUSING NEEDS,Galaxy Lettings Ltd,BED & BREAKFAST - PRIVATE CONTRACTORS PAYMENT,"1,674.00",Housing Management.Letting Agents.NA
15/01/2016,HOUSING NEEDS,Galaxy Lettings Ltd,BED & BREAKFAST - PRIVATE CONTRACTORS PAYMENT,"1,674.00",Housing Management.Letting Agents.NA
15/01/2016,HOUSING NEEDS,Galaxy Lettings Ltd,BED & BREAKFAST - PRIVATE CONTRACTORS PAYMENT,"1,674.00",Housing Management.Letting Agents.NA
15/01/2016,HOUSING NEEDS,Denhan International,BED & BREAKFAST - PRIVATE CONTRACTORS PAYMENT,"1,674.00",Housing Management.Letting Agents.NA
15/01/2016,HOUSING NEEDS,Denhan International,BED & BREAKFAST - PRIVATE CONTRACTORS PAYMENT,"1,674.00",Housing Management.Letting Agents.NA
15/01/2016,HOUSING NEEDS,Denhan International,BED & BREAKFAST - PRIVATE CONTRACTORS PAYMENT,"1,674.00",Housing Management.Letting Agents.NA
15/01/2016,HOUSING NEEDS,Denhan International,BED & BREAKFAST - PRIVATE CONTRACTORS PAYMENT,"1,674.00",Housing Management.Letting Agents.NA
15/01/2016,HOUSING NEEDS,Denhan International,BED & BREAKFAST - PRIVATE CONTRACTORS PAYMENT,"1,674.00",Housing Management.Letting Agents.NA
15/01/2016,HOUSING NEEDS,Denhan International,BED & BREAKFAST - PRIVATE CONTRACTORS PAYMENT,"1,674.00",Housing Management.Letting Agents.NA
15/01/2016,HOUSING NEEDS,Denhan International,BED & BREAKFAST - PRIVATE CONTRACTORS PAYMENT,"1,674.00",Housing Management.Letting Agents.NA
15/01/2016,HOUSING NEEDS,Denhan International,BED & BREAKFAST - PRIVATE CONTRACTORS PAYMENT,"1,674.00",Housing Management.Letting Agents.NA
15/01/2016,HOUSING NEEDS,Denhan International,BED & BREAKFAST - PRIVATE CONTRACTORS PAYMENT,"1,674.00",Housing Management.Letting Agents.NA
15/01/2016,HOUSING NEEDS,Denhan International,BED & BREAKFAST - PRIVATE CONTRACTORS PAYMENT,"1,674.00",Housing Management.Letting Agents.NA
15/01/2016,HOUSING NEEDS,Denhan International,BED & BREAKFAST - PRIVATE CONTRACTORS PAYMENT,"1,674.00",Housing Management.Letting Agents.NA
15/01/2016,HOUSING NEEDS,Denhan International,BED & BREAKFAST - PRIVATE CONTRACTORS PAYMENT,"1,674.00",Housing Management.Letting Agents.NA
15/01/2016,HOUSING NEEDS,Denhan International,BED & BREAKFAST - PRIVATE CONTRACTORS PAYMENT,"1,674.00",Housing Management.Letting Agents.NA
15/01/2016,HOUSING NEEDS,Denhan International,BED & BREAKFAST - PRIVATE CONTRACTORS PAYMENT,"1,674.00",Housing Management.Letting Agents.NA
15/01/2016,HOUSING NEEDS,Denhan International,BED & BREAKFAST - PRIVATE CONTRACTORS PAYMENT,"1,674.00",Housing Management.Letting Agents.NA
15/01/2016,HOUSING NEEDS,Denhan International,BED & BREAKFAST - PRIVATE CONTRACTORS PAYMENT,"1,674.00",Housing Management.Letting Agents.NA
15/01/2016,HOUSING NEEDS,Denhan International,BED & BREAKFAST - PRIVATE CONTRACTORS PAYMENT,"1,674.00",Housing Management.Letting Agents.NA
15/01/2016,HOUSING NEEDS,Denhan International,BED & BREAKFAST - PRIVATE CONTRACTORS PAYMENT,"1,674.00",Housing Management.Letting Agents.NA
15/01/2016,HOUSING NEEDS,Denhan International,BED & BREAKFAST - PRIVATE CONTRACTORS PAYMENT,"1,674.00",Housing Management.Letting Agents.NA
15/01/2016,HOUSING NEEDS,Denhan International,BED & BREAKFAST - PRIVATE CONTRACTORS PAYMENT,"1,674.00",Housing Management.Letting Agents.NA
15/01/2016,HOUSING NEEDS,Denhan International,BED & BREAKFAST - PRIVATE CONTRACTORS PAYMENT,"1,674.00",Housing Management.Letting Agents.NA
15/01/2016,HOUSING NEEDS,Denhan International,BED & BREAKFAST - PRIVATE CONTRACTORS PAYMENT,"1,674.00",Housing Management.Letting Agents.NA
15/01/2016,HOUSING NEEDS,Denhan International,BED & BREAKFAST - PRIVATE CONTRACTORS PAYMENT,"1,674.00",Housing Management.Letting Agents.NA
15/01/2016,HOUSING NEEDS,Denhan International,BED & BREAKFAST - PRIVATE CONTRACTORS PAYMENT,"1,674.00",Housing Management.Letting Agents.NA
15/01/2016,HOUSING NEEDS,Denhan International,BED & BREAKFAST - PRIVATE CONTRACTORS PAYMENT,"1,674.00",Housing Management.Letting Agents.NA
15/01/2016,HOUSING NEEDS,Denhan International,BED & BREAKFAST - PRIVATE CONTRACTORS PAYMENT,"1,674.00",Housing Management.Letting Agents.NA
15/01/2016,HOUSING NEEDS,UK Room (London) Ltd,BED & BREAKFAST - PRIVATE CONTRACTORS PAYMENT,"1,674.00",Housing Management.Letting Agents.NA
15/01/2016,HOUSING NEEDS,Bizylet Property Management Ltd,BED & BREAKFAST - PRIVATE CONTRACTORS PAYMENT,"1,674.00",Housing Management.Letting Agents.NA
15/01/2016,HOUSING NEEDS,Housing Action Management ltd,BED & BREAKFAST - PRIVATE CONTRACTORS PAYMENT,"1,674.00",Housing Management.Letting Agents.NA
15/01/2016,HOUSING NEEDS,Midos Estates Ltd,BED & BREAKFAST - PRIVATE CONTRACTORS PAYMENT,"1,674.00",Housing Management.Letting Agents.NA
15/01/2016,HOUSING NEEDS,Midos Estates Ltd,BED & BREAKFAST - PRIVATE CONTRACTORS PAYMENT,"1,674.00",Housing Management.Letting Agents.NA
15/01/2016,HOUSING NEEDS,Midos Estates Ltd,BED & BREAKFAST - PRIVATE CONTRACTORS PAYMENT,"1,674.00",Housing Management.Letting Agents.NA
15/01/2016,HOUSING NEEDS,Midos Estates Ltd,BED & BREAKFAST - PRIVATE CONTRACTORS PAYMENT,"1,674.00",Housing Management.Letting Agents.NA
15/01/2016,HOUSING NEEDS,Midos Estates Ltd,BED & BREAKFAST - PRIVATE CONTRACTORS PAYMENT,"1,674.00",Housing Management.Letting Agents.NA
15/01/2016,HOUSING NEEDS,Midos Estates Ltd,BED & BREAKFAST - PRIVATE CONTRACTORS PAYMENT,"1,674.00",Housing Management.Letting Agents.NA
15/01/2016,HOUSING NEEDS,Midos Estates Ltd,BED & BREAKFAST - PRIVATE CONTRACTORS PAYMENT,"1,674.00",Housing Management.Letting Agents.NA
15/01/2016,HOUSING NEEDS,Midos Estates Ltd,BED & BREAKFAST - PRIVATE CONTRACTORS PAYMENT,"1,674.00",Housing Management.Letting Agents.NA
15/01/2016,HOUSING NEEDS,Midos Estates Ltd,BED & BREAKFAST - PRIVATE CONTRACTORS PAYMENT,"1,674.00",Housing Management.Letting Agents.NA
15/01/2016,HOUSING NEEDS,Midos Estates Ltd,BED & BREAKFAST - PRIVATE CONTRACTORS PAYMENT,"1,674.00",Housing Management.Letting Agents.NA
15/01/2016,HOUSING NEEDS,Midos Estates Ltd,BED & BREAKFAST - PRIVATE CONTRACTORS PAYMENT,"1,674.00",Housing Management.Letting Agents.NA
15/01/2016,HOUSING NEEDS,Midos Estates Ltd,BED & BREAKFAST - PRIVATE CONTRACTORS PAYMENT,"1,674.00",Housing Management.Letting Agents.NA
15/01/2016,HOUSING NEEDS,Midos Estates Ltd,BED & BREAKFAST - PRIVATE CONTRACTORS PAYMENT,"1,674.00",Housing Management.Letting Agents.NA
15/01/2016,HOUSING NEEDS,Midos Estates Ltd,BED & BREAKFAST - PRIVATE CONTRACTORS PAYMENT,"1,674.00",Housing Management.Letting Agents.NA
15/01/2016,HOUSING NEEDS,Midos Estates Ltd,BED & BREAKFAST - PRIVATE CONTRACTORS PAYMENT,"1,674.00",Housing Management.Letting Agents.NA
15/01/2016,HOUSING NEEDS,Midos Estates Ltd,BED & BREAKFAST - PRIVATE CONTRACTORS PAYMENT,"1,674.00",Housing Management.Letting Agents.NA
15/01/2016,HOUSING NEEDS,Midos Estates Ltd,BED & BREAKFAST - PRIVATE CONTRACTORS PAYMENT,"1,674.00",Housing Management.Letting Agents.NA
15/01/2016,HOUSING NEEDS,Midos Estates Ltd,BED & BREAKFAST - PRIVATE CONTRACTORS PAYMENT,"1,674.00",Housing Management.Letting Agents.NA
15/01/2016,HOUSING NEEDS,Midos Estates Ltd,BED & BREAKFAST - PRIVATE CONTRACTORS PAYMENT,"1,674.00",Housing Management.Letting Agents.NA
15/01/2016,HOUSING NEEDS,Midos Estates Ltd,BED & BREAKFAST - PRIVATE CONTRACTORS PAYMENT,"1,674.00",Housing Management.Letting Agents.NA
15/01/2016,HOUSING NEEDS,Midos Estates Ltd,BED & BREAKFAST - PRIVATE CONTRACTORS PAYMENT,"1,674.00",Housing Management.Letting Agents.NA
15/01/2016,HOUSING NEEDS,Midos Estates Ltd,BED & BREAKFAST - PRIVATE CONTRACTORS PAYMENT,"1,674.00",Housing Management.Letting Agents.NA
15/01/2016,HOUSING NEEDS,Midos Estates Ltd,BED & BREAKFAST - PRIVATE CONTRACTORS PAYMENT,"1,674.00",Housing Management.Letting Agents.NA
15/01/2016,HOUSING NEEDS,Midos Estates Ltd,BED & BREAKFAST - PRIVATE CONTRACTORS PAYMENT,"1,674.00",Housing Management.Letting Agents.NA
15/01/2016,HOUSING NEEDS,Midos Estates Ltd,BED & BREAKFAST - PRIVATE CONTRACTORS PAYMENT,"1,674.00",Housing Management.Letting Agents.NA
15/01/2016,HOUSING NEEDS,Midos Estates Ltd,BED & BREAKFAST - PRIVATE CONTRACTORS PAYMENT,"1,674.00",Housing Management.Letting Agents.NA
15/01/2016,HOUSING NEEDS,Midos Estates Ltd,BED & BREAKFAST - PRIVATE CONTRACTORS PAYMENT,"1,674.00",Housing Management.Letting Agents.NA
15/01/2016,HOUSING NEEDS,Midos Estates Ltd,BED & BREAKFAST - PRIVATE CONTRACTORS PAYMENT,"1,674.00",Housing Management.Letting Agents.NA
15/01/2016,HOUSING NEEDS,Midos Estates Ltd,BED & BREAKFAST - PRIVATE CONTRACTORS PAYMENT,"1,674.00",Housing Management.Letting Agents.NA
15/01/2016,HOUSING NEEDS,Midos Estates Ltd,BED & BREAKFAST - PRIVATE CONTRACTORS PAYMENT,"1,674.00",Housing Management.Letting Agents.NA
15/01/2016,HOUSING NEEDS,Midos Estates Ltd,BED & BREAKFAST - PRIVATE CONTRACTORS PAYMENT,"1,674.00",Housing Management.Letting Agents.NA
15/01/2016,HOUSING NEEDS,Midos Estates Ltd,BED & BREAKFAST - PRIVATE CONTRACTORS PAYMENT,"1,674.00",Housing Management.Letting Agents.NA
15/01/2016,HOUSING NEEDS,Midos Estates Ltd,BED & BREAKFAST - PRIVATE CONTRACTORS PAYMENT,"1,674.00",Housing Management.Letting Agents.NA
15/01/2016,HOUSING NEEDS,Midos Estates Ltd,BED & BREAKFAST - PRIVATE CONTRACTORS PAYMENT,"1,674.00",Housing Management.Letting Agents.NA
15/01/2016,HOUSING NEEDS,Midos Estates Ltd,BED & BREAKFAST - PRIVATE CONTRACTORS PAYMENT,"1,674.00",Housing Management.Letting Agents.NA
15/01/2016,HOUSING NEEDS,Midos Estates Ltd,BED & BREAKFAST - PRIVATE CONTRACTORS PAYMENT,"1,674.00",Housing Management.Letting Agents.NA
15/01/2016,HOUSING NEEDS,Midos Estates Ltd,BED & BREAKFAST - PRIVATE CONTRACTORS PAYMENT,"1,674.00",Housing Management.Letting Agents.NA
15/01/2016,HOUSING NEEDS,Galaxy Lettings Ltd,BED & BREAKFAST - PRIVATE CONTRACTORS PAYMENT,"1,658.50",Housing Management.Letting Agents.NA
15/01/2016,HOUSING NEEDS,Galaxy Lettings Ltd,BED & BREAKFAST - PRIVATE CONTRACTORS PAYMENT,"1,658.50",Housing Management.Letting Agents.NA
15/01/2016,HOUSING NEEDS,Galaxy Lettings Ltd,BED & BREAKFAST - PRIVATE CONTRACTORS PAYMENT,"1,658.50",Housing Management.Letting Agents.NA
15/01/2016,HOUSING NEEDS,Galaxy Lettings Ltd,BED & BREAKFAST - PRIVATE CONTRACTORS PAYMENT,"1,658.50",Housing Management.Letting Agents.NA
15/01/2016,HOUSING NEEDS,UK Room (London) Ltd,BED & BREAKFAST - PRIVATE CONTRACTORS PAYMENT,"1,658.50",Housing Management.Letting Agents.NA
15/01/2016,HOUSING NEEDS,D Singh Properties Ltd TA DS Properties,BED & BREAKFAST - PRIVATE CONTRACTORS PAYMENT,"1,658.50",Housing Management.Letting Agents.NA
15/01/2016,HOUSING NEEDS,D Singh Properties Ltd TA DS Properties,BED & BREAKFAST - PRIVATE CONTRACTORS PAYMENT,"1,658.50",Housing Management.Letting Agents.NA
15/01/2016,HOUSING NEEDS,D Singh Properties Ltd TA DS Properties,BED & BREAKFAST - PRIVATE CONTRACTORS PAYMENT,"1,658.50",Housing Management.Letting Agents.NA
15/01/2016,HOUSING NEEDS,D Singh Properties Ltd TA DS Properties,BED & BREAKFAST - PRIVATE CONTRACTORS PAYMENT,"1,658.50",Housing Management.Letting Agents.NA
15/01/2016,HOUSING NEEDS,D Singh Properties Ltd TA DS Properties,BED & BREAKFAST - PRIVATE CONTRACTORS PAYMENT,"1,658.50",Housing Management.Letting Agents.NA
15/01/2016,HOUSING NEEDS,Bizylet Property Management Ltd,BED & BREAKFAST - PRIVATE CONTRACTORS PAYMENT,"1,658.50",Housing Management.Letting Agents.NA
15/01/2016,HOUSING NEEDS,Willow Estate Agents,BED & BREAKFAST - PRIVATE CONTRACTORS PAYMENT,"1,658.50",Housing Management.Letting Agents.NA
15/01/2016,HOUSING NEEDS,Willow Estate Agents,BED & BREAKFAST - PRIVATE CONTRACTORS PAYMENT,"1,658.50",Housing Management.Letting Agents.NA
15/01/2016,HOUSING NEEDS,Housing Action Management ltd,BED & BREAKFAST - PRIVATE CONTRACTORS PAYMENT,"1,658.50",Housing Management.Letting Agents.NA
15/01/2016,HOUSING NEEDS,Housing Action Management ltd,BED & BREAKFAST - PRIVATE CONTRACTORS PAYMENT,"1,658.50",Housing Management.Letting Agents.NA
15/01/2016,HOUSING NEEDS,Housing Action Management ltd,BED & BREAKFAST - PRIVATE CONTRACTORS PAYMENT,"1,658.50",Housing Management.Letting Agents.NA
15/01/2016,HOUSING NEEDS,Midos Estates Ltd,BED & BREAKFAST - PRIVATE CONTRACTORS PAYMENT,"1,658.50",Housing Management.Letting Agents.NA
15/01/2016,HOUSING NEEDS,Midos Estates Ltd,BED & BREAKFAST - PRIVATE CONTRACTORS PAYMENT,"1,658.50",Housing Management.Letting Agents.NA
15/01/2016,HOUSING NEEDS,Midos Estates Ltd,BED & BREAKFAST - PRIVATE CONTRACTORS PAYMENT,"1,658.50",Housing Management.Letting Agents.NA
15/01/2016,HOUSING NEEDS,Risbol Ltd,BED & BREAKFAST - PRIVATE CONTRACTORS PAYMENT,"1,658.50",Housing Management.Stock Management.NA
15/01/2016,HOUSING NEEDS,Risbol Ltd,BED & BREAKFAST - PRIVATE CONTRACTORS PAYMENT,"1,658.50",Housing Management.Stock Management.NA
15/01/2016,HOUSING NEEDS,Risbol Ltd,BED & BREAKFAST - PRIVATE CONTRACTORS PAYMENT,"1,658.50",Housing Management.Stock Management.NA
15/01/2016,HOUSING NEEDS,Risbol Ltd,BED & BREAKFAST - PRIVATE CONTRACTORS PAYMENT,"1,658.50",Housing Management.Stock Management.NA
15/01/2016,CORPORATE AFFAIRS,Thomson Reuters,MEMBERSHIP AND SUBSCRIPTIONS,"1,653.00",Financial Services.Subscriptions.NA
15/01/2016,HOUSING NEEDS,AA Care Homes Ltd,BED & BREAKFAST - PRIVATE CONTRACTORS PAYMENT,"1,650.00",Housing Management.Letting Agents.NA
15/01/2016,HOUSING NEEDS,Denhan International,BED & BREAKFAST - PRIVATE CONTRACTORS PAYMENT,"1,643.00",Housing Management.Letting Agents.NA
15/01/2016,HOUSING NEEDS,D Singh Properties Ltd TA DS Properties,BED & BREAKFAST - PRIVATE CONTRACTORS PAYMENT,"1,643.00",Housing Management.Letting Agents.NA
15/01/2016,HOUSING NEEDS,Housing Action Management ltd,BED & BREAKFAST - PRIVATE CONTRACTORS PAYMENT,"1,643.00",Housing Management.Letting Agents.NA
15/01/2016,HOUSING NEEDS,Midos Estates Ltd,BED & BREAKFAST - PRIVATE CONTRACTORS PAYMENT,"1,643.00",Housing Management.Letting Agents.NA
15/01/2016,HOUSING NEEDS,Oliver Landon Ltd,BED & BREAKFAST - PRIVATE CONTRACTORS PAYMENT,"1,643.00",Housing Management.Letting Agents.NA
15/01/2016,HOUSING NEEDS,Denhan International,BED & BREAKFAST - PRIVATE CONTRACTORS PAYMENT,"1,620.00",Housing Management.Letting Agents.NA
15/01/2016,HOUSING NEEDS,Willow Estate Agents,BED & BREAKFAST - PRIVATE CONTRACTORS PAYMENT,"1,612.00",Housing Management.Letting Agents.NA
15/01/2016,HOUSING NEEDS,D Singh Properties Ltd TA DS Properties,BED & BREAKFAST - PRIVATE CONTRACTORS PAYMENT,"1,581.00",Housing Management.Letting Agents.NA
15/01/2016,HOUSING NEEDS,Bizylet Property Management Ltd,BED & BREAKFAST - PRIVATE CONTRACTORS PAYMENT,"1,581.00",Housing Management.Letting Agents.NA
15/01/2016,HOUSING NEEDS,Starting Care,BED & BREAKFAST - PRIVATE CONTRACTORS PAYMENT,"1,560.00",Housing Management.Letting Agents.NA
15/01/2016,CHILDREN'S SERVICES,Hytyme Ltd,BED & BREAKFAST - PRIVATE CONTRACTORS PAYMENT,"1,560.00","Social Community Care Supplies & Service.Adult.Temporary Accommodation, Short Stay"
15/01/2016,HOUSING NEEDS,Rent Connect,BED & BREAKFAST - PRIVATE CONTRACTORS PAYMENT,"1,550.00",Housing Management.Letting Agents.NA
15/01/2016,HOUSING NEEDS,Galaxy Lettings Ltd,BED & BREAKFAST - PRIVATE CONTRACTORS PAYMENT,"1,550.00",Housing Management.Letting Agents.NA
15/01/2016,HOUSING NEEDS,Denhan International,BED & BREAKFAST - PRIVATE CONTRACTORS PAYMENT,"1,550.00",Housing Management.Letting Agents.NA
15/01/2016,HOUSING NEEDS,Denhan International,BED & BREAKFAST - PRIVATE CONTRACTORS PAYMENT,"1,550.00",Housing Management.Letting Agents.NA
15/01/2016,HOUSING NEEDS,Denhan International,BED & BREAKFAST - PRIVATE CONTRACTORS PAYMENT,"1,550.00",Housing Management.Letting Agents.NA
15/01/2016,HOUSING NEEDS,Denhan International,BED & BREAKFAST - PRIVATE CONTRACTORS PAYMENT,"1,550.00",Housing Management.Letting Agents.NA
15/01/2016,HOUSING NEEDS,AA Care Homes Ltd,BED & BREAKFAST - PRIVATE CONTRACTORS PAYMENT,"1,550.00",Housing Management.Letting Agents.NA
15/01/2016,HOUSING NEEDS,AA Care Homes Ltd,BED & BREAKFAST - PRIVATE CONTRACTORS PAYMENT,"1,550.00",Housing Management.Letting Agents.NA
15/01/2016,HOUSING NEEDS,Hytyme Ltd,BED & BREAKFAST - PRIVATE CONTRACTORS PAYMENT,"1,550.00",Housing Management.Letting Agents.NA
